Workbook

Sheet 2017-2018
BR1: Data | BS1: Sarbatoare
BR2: 2017-11-30 | BS2: Sf Andrei
BR3: 2017-12-01 | BS3: Ziua Nationala
BR4: 2017-12-25 | BS4: Craciun
BR5: 2017-12-26 | BS5: Craciun
BR6: 2018-01-01 | BS6: Anul nou
BR7: 2018-01-02 | BS7: Anul nou
BB8: parteneri adiacenti | BC8: UR | BO8: parteneri adiacenti | BP8: UR | BR8: 2018-01-24 | BS8: Ziua unirii
A9: EVIDENȚA LIMITĂRILOR ȘI/SAU ÎNTRERUPERILOR PLANIFICATE ȘI NEPLANIFICATE pentru anul gazier 2017 - 2018 / RECORD OF THE PLANNED AND UNPLANNED LIMITATIONS AND/OR INTERRUPTIONS related to the gas year 2017 - 2018 | AQ9: Lucrari neprogramate | BA9: NU6 | BB9: =SUBTOTAL(9,AR:AR) -> 142 | BC9: =SUBTOTAL(9,AU:AU) -> 580 | BE9: Lucrari programate | BN9: NU5 | BO9: =SUBTOTAL(9,BF:BF) -> 6 | BP9: =SUBTOTAL(9,BI:BI) -> 2 | BR9: 2018-04-06 | BS9: Vinerea Mare
AQ10: Partener adiacent | AT10: UR | BA10: NUafectati | BB10: =SUBTOTAL(9,AS:AS) -> 145 | BC10: =SUBTOTAL(9,AV:AV) -> 886 | BE10: Partener adiacent | BH10: UR | BN10: NUafectati | BO10: =SUBTOTAL(9,BG:BG) -> 13 | BP10: =SUBTOTAL(9,BJ:BJ) -> 152 | BR10: 2018-04-09 | BS10: Paste
A11: Nr. crt. / Item No. | B11: Tipul limitării/întreruperii / Type of limitation/interruption | D11: Denumire lucrare/motiv limitare și/sau întrerupere / Name of the works/reason for the limitation and/or interruption | E11: Locația limitării/întreruperii / Location of the limitation/interruption | L11: Punct de ieșire/intrare afectat / Affected exit/entry point | T11: Cod punct relevant / Code of the relevant point | U11: Utilizator ST afectat / Affected TS user | W11: Perioada planificată de execuție a lucrării / Planned period for the execution of the works | X11: Data și ora limitării/întreruperii / Date and hour of the limitation/interruption | Z11: Data și ora reluării prestării serviciului / Date and hour the service supply is resumed | AB11: Exploatarea Teritorială / Regional Office | AC11: Observații / Comments | AD11: Justificarea modificării perioadei planificate de execuție a lucrări | AE11: Data și ora efectivă de limitare/întrerupere | AG11: Data și ora efectivă de reluare a prestării serviciului | AI11: Data și ora informării UR | AK11: Data și ora informării partenerului adiacent | AM11: Foaia de manevră | AN11: A fost afectat producătorul (în cazul PM) sau consumatorul final (în cazul SM)? (DA/NU) | AO11: Observatii | AQ11: Numar de ore de la producerea intreruperii / limitarii pana la anuntarea partenerului adiacent (trebuie sa fie mai mic decat 6) | AR11: NU6 | AS11: NUafectati | AT11: Numar de ore de la producerea intreruperii / limitarii pana la anuntarea UR (trebuie sa fie mai mic decat 6) | AU11: NU6 | AV11: NUafectati | AW11: Durata intreruperii / limitarii [ore] (daca este mai mare de 24, trebuie sa fie completata celula aferenta de pe coloana AZ) | AX11: NU24 | AY11: Nuafectati | AZ11: Partener adiacent informat din 12 in 12 ore, daca durata mai mare de 24h (DA/NU) | BA11: NU6 | BB11: =BB9+BC9 -> 722 | BC11: IP51 | BE11: Numar de zile lucratoare de anuntare partener adiacent pana la limitare / intrerupere (trebuie sa fie mai mare de 5) | BF11: NU5 | BG11: NUafectati | BH11: Numar de zile de anuntare UR pana la limitare / intrerupere (trebuie sa fie mai mare de 5) | BI11: NU5 | BJ11: NUafectati | BK11: Numar ore intre data anuntata si cea efectiva de reluare (trebuie sa fie mai mic sau egal cu 0) | BL11: NUreluate | BM11: NUafectati | BN11: NU5 | BO11: =BO9+BP9 -> 8 | BP11: IP61 | BR11: 2018-05-01 | BS11: Ziua muncii
E12: Siruta / Siruta code | F12: Localitate / Locality | G12: Județ / County | H12: Coordonate GPS început / GPS coordinates-beginning | J12: Coordonate GPS sfărșit / GPS coordinates-end | L12: Puncte de ieșire din SNT / NTS exit points | P12: Puncte de intrare în SNT / NTS entry points | BA12: NUafectati | BB12: =BB10+BC10 -> 1031 | BC12: =BB11/BB12 -> 0.7002909796 | BN12: NUafectati | BO12: =BO10+BP10 -> 165 | BP12: =IF(BO12=0,1,BO11/BO12) -> 0.04848484848 | BR12: 2018-06-01 | BS12: Ziua copilului
B13: Neplanificată / Unplanned | C13: Planificată / Planned | L13: Limitare / Limitation | N13: Întrerupere / Interruption | P13: Limitare / Limitation | R13: Întrerupere / Interruption | X13: Data / Date | Y13: Ora / Hour | Z13: Data / Date | AA13: Ora / Hour | AE13: Data | AF13: Ora | AG13: Data | AH13: Ora | AI13: Data | AJ13: Ora | AK13: Data | AL13: Ora | BA13: NU24 | BB13: =SUBTOTAL(9,AX:AX) -> 9 | BC13: IP52 | BN13: NUreluare | BO13: =SUBTOTAL(9,BL:BL) -> 91 | BP13: IP62 | BR13: 2018-05-28 | BS13: Rusalii
H14: X1 | I14: Y1 | J14: X2 | K14: Y2 | L14: Cod / Code | M14: Denumire / Name | N14: Cod / Code | O14: Denumire / Name | P14: Cod / Code | Q14: Denumire / Name | R14: Cod / Code | S14: Denumire / Name | U14: Utilizator de rețea / Network User | V14: Partener adiacent / Adjacent Partner | BA14: NUafectati | BB14: =SUBTOTAL(9,AY:AY) -> 14 | BC14: =IFERROR(BB13/BB14,1) -> 0.6428571429 | BN14: NUafectati | BO14: =SUBTOTAL(9,BM:BM) -> 165 | BP14: =IF(BO14=0,1,BO13/BO14) -> 0.5515151515 | BR14: 2018-08-15 | BS14: Adormirea Maicii Domnului
A15: 0 | B15: 1 | C15: 2 | D15: 3 | E15: 4 | F15: 5 | G15: 6 | H15: 7 | I15: 8 | J15: 9 | K15: 10 | L15: 11 | M15: 12 | N15: 13 | O15: 14 | P15: 15 | Q15: 16 | R15: 17 | S15: 18 | T15: 19 | U15: 20 | W15: 21 | X15: 22 | Y15: 23 | Z15: 24 | AA15: 25 | AB15: 26 | AC15: 27 | AE15: 28 | AF15: 29 | AG15: 30 | AH15: 31 | AI15: 33 | AJ15: 34 | AK15: 35 | AL15: 36 | AM15: 37 | AN15: 38
A16: 1 | B16: X | C16: - | D16: Probleme tehnice în instalația tehnologică SRM Vaduri | E16: 124938 | F16: Vaduri | G16: Neamț | H16: 594758.29 | I16: 604040.56 | J16: 594758.29 | K16: 604040.56 | L16: - | M16: - | N16: SM1052D0 | O16: Vaduri | P16: - | Q16: - | R16: - | S16: - | T16: SM-SD001 | U16: Premier Energy, Engie România, E.on Energie, OMV Petrom, Restart Energy, Enel | V16: Delgaz Grid | W16: - | X16: 2017-10-01 | Y16: 01:05:00 | Z16: 2017-10-01 | AA16: 09:05:00 | AB16: Bacău | AC16: Efectuată | AE16: 2017-10-01 | AF16: 01:05:00 | AG16: 2017-10-01 | AH16: 09:05:00 | AI16: 2017-10-02 | AJ16: 17:32:00 | AK16: 2017-10-01 | AL16: 01:15:00 | AM16: - | AN16: DA | AQ16: =IF(B16="X",IF(AN16="","Afectat sau NU?",IF(AN16="DA",IF(AK16="","Neinformat",((AK16+AL16)-(AE16+AF16))*24),IF(AN16="NU","Nu a fost afectat producator/consumator","Afectat sau NU?"))),"") -> 0.1666666667 | AR16: =IF(B16="X",IF(AN16="DA",IF(AQ16<6,LEN(TRIM(V16))-LEN(SUBSTITUTE(V16,CHAR(44),""))+1,0),"-"),"") -> 1 | AS16: =IF(B16="X",IF(AN16="DA",LEN(TRIM(V16))-LEN(SUBSTITUTE(V16,CHAR(44),""))+1,"-"),"") -> 1 | AT16: =IF(B16="X",IF(AN16="","Afectat sau NU?",IF(AN16="DA",IF(AI16="","Neinformat",((AI16+AJ16)-(AE16+AF16))*24),IF(AN16="NU","Nu a fost afectat producator/consumator","Afectat sau NU?"))),"") -> 40.45 | AU16: =IF(B16="X",IF(AN16="DA",IF(AT16<6,LEN(TRIM(U16))-LEN(SUBSTITUTE(U16,CHAR(44),""))+1,0),"-"),"") -> 0 | AV16: =IF(B16="X",IF(AN16="DA",LEN(TRIM(U16))-LEN(SUBSTITUTE(U16,CHAR(44),""))+1,"-"),"") -> 6 | AW16: =IF(B16="X",IF(AN16="","Afectat sau NU?",IF(AN16="DA",((AG16+AH16)-(AE16+AF16))*24,IF(AN16="NU","Nu a fost afectat producator/consumator","Afectat sau NU?"))),"") -> 8 | AX16: =IF(B16="X",IF(AN16="DA",IF(AW16>24,IF(AZ16="NU",0,LEN(TRIM(V16))-LEN(SUBSTITUTE(V16,CHAR(44),""))+1),0),"-"),"") -> 0 | AY16: =IF(B16="X",IF(AN16="DA",IF(AW16>24,LEN(TRIM(V16))-LEN(SUBSTITUTE(V16,CHAR(44),""))+1,0),"-"),"") -> 0 | BE16: =IF(C16="X",IF(AN16="","Afectat sau NU?",IF(AN16="DA",IF(AK16="","Neinformat",NETWORKDAYS(AK16+AL16,AE16+AF16,$BR$2:$BR$14)-1),IF(AN16="NU","Nu a fost afectat producator/consumator","Afectat sau NU?"))),"") ->  | BF16: =IF(C16="X",IF(AN16="DA",IF(AND(BE16>=5,AK16<>""),LEN(TRIM(V16))-LEN(SUBSTITUTE(V16,CHAR(44),""))+1,0),"-"),"") ->  | BG16: =IF(C16="X",IF(AN16="DA",LEN(TRIM(V16))-LEN(SUBSTITUTE(V16,CHAR(44),""))+1,"-"),"") ->  | BH16: =IF(C16="X",IF(AN16="","Afectat sau NU?",IF(AN16="DA",IF(AI16="","Neinformat",NETWORKDAYS(AI16+AJ16,AE16+AF16,$BR$2:$BR$14)-1),IF(AN16="NU","Nu a fost afectat producator/consumator","Afectat sau NU?"))),"") ->  | BI16: =IF(C16="X",IF(AN16="DA",IF(AND(BH16>=5,AI16<>""),LEN(TRIM(U16))-LEN(SUBSTITUTE(U16,CHAR(44),""))+1,0),"-"),"") ->  | BJ16: =IF(C16="X",IF(AN16="DA",LEN(TRIM(U16))-LEN(SUBSTITUTE(U16,CHAR(44),""))+1,"-"),"") ->  | BK16: =IF(C16="X",IF(AN16="","Afectat sau NU?",IF(AN16="DA",((AG16+AH16)-(Z16+AA16))*24,IF(AN16="NU","Nu a fost afectat producator/consumator","Afectat sau NU?"))),"") ->  | BL16: =IF(C16="X",IF(AN16<>"DA","-",IF(AND(AN16="DA",BK16<=0),LEN(TRIM(V16))-LEN(SUBSTITUTE(V16,CHAR(44),""))+1+LEN(TRIM(U16))-LEN(SUBSTITUTE(U16,CHAR(44),""))+1,0)),"") ->  | BM16: =IF(C16="X",IF(AN16="DA",LEN(TRIM(V16))-LEN(SUBSTITUTE(V16,CHAR(44),""))+1+LEN(TRIM(U16))-LEN(SUBSTITUTE(U16,CHAR(44),""))+1,"-"),"") -> 
A17: 2 | B17: X | C17: - | D17: Scoaterea din funcțiune SRM Ilimbav - la solicitarea Delgaz Grid | E17: 144893 | F17: Ilimbav | G17: Sibiu | H17: 462643.53 | I17: 486014.51 | J17: 462643.53 | K17: 486014.51 | L17: - | M17: - | N17: SM0792D0 | O17: Ilimbav | P17: - | Q17: - | R17: - | S17: - | T17: SM-SD001 | U17: E.on Energie | V17: Delgaz Grid | W17: - | X17: 2017-10-02 | Y17: 10:00:00 | Z17: 2017-10-02 | AA17: 13:00:00 | AB17: Mediaș | AC17: Efectuată | AE17: 2017-10-02 | AF17: 10:00:00 | AG17: 2017-10-02 | AH17: 11:00:00 | AI17: 2017-10-02 | AJ17: 17:32:00 | AK17: 2017-09-28 | AM17: 6615/29.09.2017 | AN17: DA | AO17: La solicitarea Delgaz Grid | AQ17: -106 | AR17: 1 | AS17: 1 | AT17: 7.533333333 | AU17: 0 | AV17: 1 | AW17: 1 | AX17: 0 | AY17: 0
A18: 3 | B18: X | C18: - | D18: Înlocuire robinet R7 de pe racord SRM Monsanto | E18: 105026 | F18: Sinești | G18: Ialomița | H18: 613320.56 | I18: 346763.66 | J18: 613643.84 | K18: 346539.06 | L18: - | M18: - | N18: SM1073D0 | O18: SC Monsanto Sinești | P18: - | Q18: - | R18: - | S18: - | T18: SM-CF001 | U18: Conef Gaz | V18: SC Monsanto | W18: - | X18: 2017-10-03 | Y18: 10:00:00 | Z18: 2017-10-03 | AA18: 15:00:00 | AB18: București | AC18: Efectuată | AE18: 2017-10-03 | AF18: 10:00:00 | AG18: 2017-10-03 | AH18: 15:00:00 | AI18: 2017-10-02 | AJ18: 17:32:00 | AK18: 2017-09-28 | AL18: 16:01:00 | AM18: 7781/29.09.2017 | AN18: DA | AQ18: -113.9833333 | AR18: 1 | AS18: 1 | AT18: -16.46666667 | AU18: 1 | AV18: 1 | AW18: 5 | AX18: 0 | AY18: 0
A19: =A18+1 -> 4 | B19: - | C19: X | D19: Curățire interioară 28” Medieșu Aurit - Sărmășel | E19: 109265 | F19: Ulmeni | G19: Maramureș | H19: 371312.82 | I19: 665034.53 | J19: 371420.04 | K19: 664986.78 | L19: SM0953D0 | M19: Ulmeni | N19: - | O19: - | P19: - | Q19: - | R19: - | S19: - | T19: SM-SD001 | U19: Cez Vânzare, Engie România, E-on Energie, Enel, E.on Energie | V19: Delgaz Grid | W19: aprilie - octombrie (reducere pe perioada trecerii PIG-ului / întrerupere în caz de blocare PIG) | X19: 2017-10-03 | Y19: 07:00:00 | Z19: 2017-10-04 | AA19: 16:00:00 | AB19: Cluj | AC19: Efectuată | AI19: 2017-10-02 | AJ19: 17:32:00 | AM19: 11793/02.10.2017 | AN19: NU | BE19: Nu a fost afectat producator/consumator | BF19: - | BG19: - | BH19: Nu a fost afectat producator/consumator | BI19: - | BJ19: - | BK19: Nu a fost afectat producator/consumator | BL19: - | BM19: -
A20: =A19+1 -> 5 | B20: - | C20: X | D20: Curățire interioară 28” Medieșu Aurit - Sărmășel | E20: 140244 | F20: Benesat | G20: Sălaj | H20: 369672.11 | I20: 658600.05 | J20: 370018.54 | K20: 658821.16 | L20: SM0954D0 | M20: Benesat | N20: - | O20: - | P20: - | Q20: - | R20: - | S20: - | T20: SM-SD001 | U20: Premier Energy, Alpiq Romindustries, Nova Power, Engie România, E.on Energie, OMV Petrom, Enel | V20: CPL Concordia | X20: 2017-10-03 | Y20: 07:00:00 | Z20: 2017-10-04 | AA20: 16:00:00 | AB20: Cluj | AC20: Efectuată | AI20: 2017-10-02 | AJ20: 17:32:00 | AM20: 11793/02.10.2017 | AN20: NU | BE20: Nu a fost afectat producator/consumator | BF20: - | BG20: - | BH20: Nu a fost afectat producator/consumator | BI20: - | BJ20: - | BK20: Nu a fost afectat producator/consumator | BL20: - | BM20: -
A21: 6 | B21: - | C21: X | D21: Curățire interioară 28” Medieșu Aurit - Sărmășel | E21: 142710 | F21: Someș Odorhei | G21: Sălaj | H21: 369658.85 | I21: 649334.05 | J21: 369552.55 | K21: 649326.13 | L21: SM1230D0 | M21: Someș Odorhei | N21: - | O21: - | P21: - | Q21: - | R21: - | S21: - | T21: SM-SD001 | U21: Nova Power, E.on Energie | V21: CPL Concordia | X21: 2017-10-03 | Y21: 07:00:00 | Z21: 2017-10-04 | AA21: 16:00:00 | AB21: Cluj | AC21: Efectuată | AI21: 2017-10-02 | AJ21: 17:32:00 | AM21: 11793/02.10.2017 | AN21: NU | BE21: Nu a fost afectat producator/consumator | BF21: - | BG21: - | BH21: Nu a fost afectat producator/consumator | BI21: - | BJ21: - | BK21: Nu a fost afectat producator/consumator | BL21: - | BM21: -
A22: 7 | B22: X | C22: - | D22: Lucrări de mentenanță în SRM Brașov I | E22: 40198 | F22: Brașov | G22: Brașov | H22: 545998.22 | I22: 463646.55 | J22: 545998.22 | K22: 463646.55 | L22: - | M22: - | N22: SM0047D0 | O22: Brașov I | P22: - | Q22: - | R22: - | S22: - | T22: SM-SD001 | U22: Premier Energy, Met România, Alpiq Romindustries, Nova Power, Cez Vânzare, Cis Gaz, Engie România, E.on Energie, Gaz Est, OMV Petrom, Energy Gas, Restart Energy, RWE Supply, Tinmar, Enel, Gaz&Energy Distribuție | V22: Distrigaz Sud Rețele | W22: - | X22: 2017-09-04 | Y22: 10:00:00 | Z22: 2017-10-02 | AA22: 10:00:00 | AB22: Brașov | AC22: Efectuată | AE22: 2017-09-04 | AF22: 10:00:00 | AG22: 2017-10-02 | AH22: 10:00:00 | AI22: 04.09.2017 25.09.2017 (modificare PIF) | AJ22: 07:50:00 13:37:00 | AK22: 2017-08-07 | AL22: 10:37:00 | AM22: 3099/02.10.2017 | AN22: NU | AQ22: Nu a fost afectat producator/consumator | AR22: - | AS22: - | AT22: Nu a fost afectat producator/consumator | AU22: - | AV22: - | AW22: Nu a fost afectat producator/consumator | AX22: - | AY22: -
A23: 8 | B23: X | C23: - | D23: Curățire interioară conductă 12” Mărșa - Videle | E23: 104225 | F23: Mârșa | G23: Giurgiu | H23: 543749.42 | I23: 321212.49 | J23: 543275.2217 | K23: 310036.73 | L23: - | M23: - | N23: SM1165D0 | O23: Depozit 160 Videle | P23: - | Q23: - | R23: - | S23: - | T23: SM-SD001 | V23: OMV Petrom | W23: - | X23: 2017-10-04 | Y23: 08:00:00 | Z23: 2017-10-04 | AA23: 20:00:00 | AB23: București | AC23: Efectuată | AI23: 2017-09-29 | AJ23: 08:35:00 | AK23: 2017-09-23 | AL23: 10:30:00 | AM23: 7735/28.09.2017 | AN23: NU | AQ23: Nu a fost afectat producator/consumator | AR23: - | AS23: - | AT23: Nu a fost afectat producator/consumator | AU23: - | AV23: - | AW23: Nu a fost afectat producator/consumator | AX23: - | AY23: -
A24: 9 | B24: X | C24: - | D24: Curățire interioară conductă 12” Mărșa - Videle | E24: 151905 | F24: Videle | G24: Teleorman | H24: 543749.42 | I24: 321212.49 | J24: 543275.2217 | K24: 310036.73 | L24: - | M24: - | N24: SM1111D0 | O24: Videle | P24: - | Q24: - | R24: - | S24: - | T24: SM-SD001 | U24: Cez Vânzare, Energie România, E-on Energie, Gaz Est, OMV Petrom | V24: Premier Energy | W24: - | X24: 2017-10-04 | Y24: 08:00:00 | Z24: 2017-10-04 | AA24: 20:00:00 | AB24: București | AC24: Efectuată | AE24: 2017-10-04 | AF24: 08:00:00 | AG24: 2017-10-04 | AH24: 19:39:00 | AI24: 2017-09-29 | AJ24: 08:35:00 | AK24: 2017-09-25 | AL24: 09:43:00 | AM24: 7735/28.09.2017 | AN24: DA | AQ24: -214.2833333 | AR24: 1 | AS24: 1 | AT24: -119.4166667 | AU24: 5 | AV24: 5 | AW24: 11.65 | AX24: 0 | AY24: 0
A25: 10 | B25: X | C25: - | D25: Sistare alimentare cu gaze naturale a SRM Giugiu - la solicitarea WIROM Gas SA | E25: 100521 | F25: Giurgiu | G25: Giurgiu | H25: 580171.38 | I25: 269491.87 | J25: 580171.38 | K25: 269491.87 | L25: - | M25: - | N25: SM1047D0 | O25: Giurgiu | P25: - | Q25: - | R25: - | S25: - | T25: SM-SD001 | U25: Premier Energy, Alpha Metal, Alpiq Romindustries, Cez Vânzare, Engie România, E-on Energie, OMV Petrom, Restart Energy, WIEE România, Cis Gaz, Enel | V25: Wirom Gas | W25: - | X25: 2017-10-05 | Y25: 07:00:00 | Z25: 2017-10-05 | AA25: 19:00:00 | AB25: București | AC25: Efectuată | AE25: 2017-10-05 | AF25: 07:12:00 | AG25: 2017-10-05 | AH25: 16:00:00 | AI25: 2017-09-29 | AJ25: 08:35:00 | AK25: 2017-09-25 | AM25: 7736/28.09.2017 | AN25: DA | AO25: La solicitarea Wirom | AQ25: -247.2 | AR25: 1 | AS25: 1 | AT25: -142.6166667 | AU25: 11 | AV25: 11 | AW25: 8.8 | AX25: 0 | AY25: 0
A26: 11 | B26: X | C26: - | D26: Scoatere din funcțiune SRM Bazna - la solicitarea Delgaz Grid | E26: 144152 | F26: Bazna | G26: Sibiu | H26: 445143.62 | I26: 521596.53 | J26: 445143.62 | K26: 521596.53 | L26: - | M26: - | N26: SM0854D0 | O26: Bazna | P26: - | Q26: - | R26: - | S26: - | T26: SM-SD001 | U26: E.on Energie | V26: Delgaz Grid | W26: - | X26: 2017-10-05 | Y26: 09:00:00 | Z26: 2017-10-05 | AA26: 18:00:00 | AB26: Mediaș | AC26: Efectuată | AE26: 2017-10-05 | AF26: 09:00:00 | AG26: 2017-10-05 | AH26: 18:00:00 | AI26: 2017-10-05 | AJ26: 08:47:00 | AK26: 2017-10-02 | AM26: 6726/04.10.2017 | AN26: DA | AO26: La solicitarea Delgaz Grid | AQ26: -81 | AR26: 1 | AS26: 1 | AT26: -0.2166666667 | AU26: 1 | AV26: 1 | AW26: 9 | AX26: 0 | AY26: 0
A27: =A26+1 -> 12 | B27: X | C27: - | D27: Lucrări de mentenanță în SRM Măgurele București | E27: 179409 | F27: Măgurele | G27: Ilfov | H27: 583339.9 | I27: 319846.43 | J27: 583339.9 | K27: 319846.43 | L27: - | M27: - | N27: SM0252D0 | O27: Măgurele București | P27: - | Q27: - | R27: - | S27: - | T27: SM-SD001 | U27: Premier Energy, Met România, Alpiq Romindustries, Nova Power, Cez Vânzare, Cis Gaz, Conef Gaz, Distrigaz Vest, Engie România, Axpo Energy, E.on Energie, Electrocentrale București, Gaz Est, OMV Petrom, Energy Gas, Restart Energy, RWE Supply, Tinmar, WIEE România, Energy Distribution, Enel, C-Gaz&Energy | V27: Distrigaz Sud Rețele | W27: - | X27: 2017-09-25 | Y27: 10:00:00 | Z27: 2017-10-05 | AA27: 12:00:00 | AB27: București | AC27: Efectuată | AE27: 2017-09-25 | AF27: 10:00:00 | AG27: 2017-10-05 | AH27: 11:18:00 | AI27: 2017-09-22 | AJ27: 16:53:00 | AK27: 2017-09-20 | AL27: 09:21:00 | AM27: 7563/22.09.2017 | AN27: NU | AQ27: Nu a fost afectat producator/consumator | AR27: - | AS27: - | AT27: Nu a fost afectat producator/consumator | AU27: - | AV27: - | AW27: Nu a fost afectat producator/consumator | AX27: - | AY27: -
A28: 13 | B28: X | C28: - | D28: Demontare priză de prelevare gaze naturale a gazcromatografului montat în panoul de măsură Munteni | E28: 75267 | F28: Munteni | G28: Galați | H28: 688535.03 | I28: 495715.6 | J28: 688535.67 | K28: 495718.75 | L28: - | M28: - | N28: - | O28: - | P28: - | Q28: - | R28: PM0103 | S28: Munteni | T28: PM-PP001 | U28: Premier Energy, Met România, Alpha Metal, Azomures, Cez Vânzare, Engie România, E-on Energie, Gaz Est, Ottogaz, OMV Petrom, Energy Gas, Restart Energy, Saint Gobain, WIEE România, Donau Chem, E.on Energie, Cis Gaz, C-Gaz&Energy | V28: OMV Petrom | W28: - | X28: 2017-10-06 | Y28: 11:00:00 | Z28: 2017-10-06 | AA28: 12:00:00 | AB28: Brăila | AC28: Efectuată | AE28: 2017-10-06 | AF28: 10:20:00 | AG28: 2017-10-06 | AH28: 10:40:00 | AI28: 2017-10-05 | AJ28: 17:19:00 | AK28: 2017-10-04 | AL28: 09:43:00 | AM28: 7243/05.10.2017 | AN28: DA | AQ28: -48.61666667 | AR28: 1 | AS28: 1 | AT28: -17.01666667 | AU28: 18 | AV28: 18 | AW28: 0.3333333334 | AX28: 0 | AY28: 0
A29: 14 | B29: - | C29: X | D29: Curățire interioară 28” Medieșu Aurit - Sărmășel | E29: 109265 | F29: Ulmeni | G29: Maramureș | H29: 371312.82 | I29: 665034.53 | J29: 371420.04 | K29: 664986.78 | L29: SM0953D0 | M29: Ulmeni | N29: - | O29: - | P29: - | Q29: - | R29: - | S29: - | T29: SM-SD001 | U29: Cez Vânzare, Engie România, E-on Energie, Enel, E.on Energie | V29: Delgaz Grid | W29: aprilie - octombrie (reducere pe perioada trecerii PIG-ului / întrerupere în caz de blocare PIG) | X29: 2017-10-10 | Y29: 08:00:00 | Z29: 2017-10-11 | AA29: 17:00:00 | AB29: Cluj | AC29: Efectuată | AI29: 2017-10-10 | AJ29: 08:32:00 | AM29: 12139/09.10.2017 | AN29: NU | BE29: Nu a fost afectat producator/consumator | BF29: - | BG29: - | BH29: Nu a fost afectat producator/consumator | BI29: - | BJ29: - | BK29: Nu a fost afectat producator/consumator | BL29: - | BM29: -
A30: 15 | B30: - | C30: X | D30: Curățire interioară 28” Medieșu Aurit - Sărmășel | E30: 140244 | F30: Benesat | G30: Sălaj | H30: 369672.11 | I30: 658600.05 | J30: 370018.54 | K30: 658821.16 | L30: SM0954D0 | M30: Benesat | N30: - | O30: - | P30: - | Q30: - | R30: - | S30: - | T30: SM-SD001 | U30: Premier Energy, Alpiq Romindustries, Nova Power, Engie România, E-on Energie, OMV Petrom, Tinmar, Enel | V30: CPL Concordia | W30: aprilie - octombrie (reducere pe perioada trecerii PIG-ului / întrerupere în caz de blocare PIG) | X30: 2017-10-10 | Y30: 08:00:00 | Z30: 2017-10-11 | AA30: 17:00:00 | AB30: Cluj | AC30: Efectuată | AI30: 2017-10-10 | AJ30: 08:32:00 | AM30: 12139/09.10.2017 | AN30: NU | BE30: Nu a fost afectat producator/consumator | BF30: - | BG30: - | BH30: Nu a fost afectat producator/consumator | BI30: - | BJ30: - | BK30: Nu a fost afectat producator/consumator | BL30: - | BM30: -
A31: 16 | B31: - | C31: X | D31: Curățire interioară 28” Medieșu Aurit - Sărmășel | E31: 142710 | F31: Someș Odorhei | G31: Sălaj | H31: 369658.85 | I31: 649334.05 | J31: 369552.55 | K31: 649326.13 | L31: SM1230D0 | M31: Someș Odorhei | N31: - | O31: - | P31: - | Q31: - | R31: - | S31: - | T31: SM-SD001 | U31: Nova Power, E.on Energie | V31: CPL Concordia | W31: aprilie - octombrie (reducere pe perioada trecerii PIG-ului / întrerupere în caz de blocare PIG) | X31: 2017-10-10 | Y31: 08:00:00 | Z31: 2017-10-11 | AA31: 17:00:00 | AB31: Cluj | AC31: Efectuată | AI31: 2017-10-10 | AJ31: 08:32:00 | AM31: 12139/09.10.2017 | AN31: NU | BE31: Nu a fost afectat producator/consumator | BF31: - | BG31: - | BH31: Nu a fost afectat producator/consumator | BI31: - | BJ31: - | BK31: Nu a fost afectat producator/consumator | BL31: - | BM31: -
A32: 17 | B32: X | C32: - | D32: Lucrări de mentenanță în SRM Măgurele București | E32: 179409 | F32: Măgurele | G32: Ilfov | H32: 583339.9 | I32: 319846.43 | J32: 583339.9 | K32: 319846.43 | L32: - | M32: - | N32: SM0252D0 | O32: Măgurele București | P32: - | Q32: - | R32: - | S32: - | T32: SM-SD001 | U32: Premier Energy, Met România, Alpiq Romindustries, Nova Power, Cez Vânzare, Cis Gaz, Conef Gaz, Distrigaz Vest, Engie România, Axpo Energy, E-on Energy, Electrocentrale București, Gaz Est, OMV Petrom, Energy Gas, Restart Energy, RWE Supply, Tinmar, WIEE România, Energy Distribution, Enel, C-Gaz&Energy | V32: Distrigaz Sud Rețele | W32: - | X32: 2017-10-10 | Y32: 09:00:00 | Z32: 2017-10-10 | AA32: 15:00:00 | AB32: București | AC32: Efectuată | AE32: 2017-10-10 | AF32: 09:12:00 | AG32: 2017-10-10 | AH32: 16:42:00 | AI32: 2017-10-10 | AJ32: 08:32:00 | AK32: 2017-10-06 | AL32: 10:07:00 | AM32: 7973/09.10.2017 | AN32: NU | AQ32: Nu a fost afectat producator/consumator | AR32: - | AS32: - | AT32: Nu a fost afectat producator/consumator | AU32: - | AV32: - | AW32: Nu a fost afectat producator/consumator | AX32: - | AY32: -
A33: 18 | B33: X | C33: - | D33: Remediere defect produs pe conducta 3" Racord SRM Spitalul de pneumoftiziologie Bisericani | E33: 124938 | F33: Bisericani | G33: Neamț | H33: 596501.02 | I33: 605284.88 | J33: 594526.65 | K33: 607349.33 | L33: - | M33: - | N33: SM0456D0 | O33: Spitalul de pneumoftiziologie Bisericani | P33: - | Q33: - | R33: - | S33: - | T33: SM-CF001 | U33: Met Romania, Engie România | V33: Spitalul de pneumoftiziologie Bisericani | W33: - | X33: 2017-10-12 | Y33: 07:30:00 | Z33: 2017-10-12 | AA33: 18:00:00 | AB33: Bacău | AC33: Efectuată | AE33: 2017-10-12 | AF33: 07:40:00 | AG33: 2017-10-12 | AH33: 13:30:00 | AI33: 2017-10-12 | AJ33: 10:32:00 | AK33: 2017-10-12 | AL33: 12:42:00 | AM33: - | AN33: DA | AQ33: 5.033333333 | AR33: 1 | AS33: 1 | AT33: 2.866666667 | AU33: 1 | AV33: 1 | AW33: 5.833333333 | AX33: 0 | AY33: 0
A34: 19 | B34: X | C34: - | D34: Cuplare si punere in funcțiune SRM Boureni nou | E34: 98220 | F34: Moțca | G34: Iași | H34: 620717.24 | I34: 637616.85 | J34: 620717.24 | K34: 637616.85 | L34: - | M34: - | N34: SM0477D1 | O34: Boureni | P34: - | Q34: - | R34: - | S34: - | T34: SM-SD001 | U34: Wiee Romania SRL | V34: Prisma Serv Company | W34: - | X34: 2017-10-13 | Y34: 08:00:00 | Z34: 2017-10-13 | AA34: 15:00:00 | AB34: Bacău | AC34: Efectuată | AE34: 2017-10-13 | AF34: 10:30:00 | AG34: 2017-10-13 | AH34: 13:15:00 | AI34: 2017-10-12 | AJ34: 13:18:00 | AK34: 2017-10-13 | AL34: 09:00:00 | AM34: 7048/11.10.2017 | AN34: DA | AQ34: -1.5 | AR34: 1 | AS34: 1 | AT34: -21.2 | AU34: 1 | AV34: 1 | AW34: 2.75 | AX34: 0 | AY34: 0
A35: 20 | B35: X | C35: - | D35: Înlocuire flanșă electroizolantă pe conducta 2” racord SRM SC Fabrica de pâine Șerban Filipești | E35: 22576 | F35: Filipești | G35: Bacău | H35: 632623.04 | I35: 526849.34 | J35: 632633.76 | K35: 526820.47 | L35: - | M35: - | N35: SM0128D0 | O35: SC Fabrica de pâine Șerban Filipești | P35: - | Q35: - | R35: - | S35: - | T35: SM-CF001 | U35: E-on Energie | V35: SC Fabrica de pâine Șerban SRL | W35: - | X35: 2017-10-10 | Y35: 09:00:00 | Z35: 2017-10-10 | AA35: 13:00:00 | AB35: Bacău | AC35: Efectuată | AE35: 2017-10-10 | AF35: 10:20:00 | AG35: 2017-10-10 | AH35: 12:40:00 | AK35: 2017-10-04 | AL35: 09:30:00 | AM35: 6916/09.10.2017 | AN35: DA | AO35: FM aprobată nu a ajuns la BET ptr publicare și informare | AQ35: -144.8333333 | AR35: 1 | AS35: 1 | AT35: Neinformat | AU35: 0 | AV35: 1 | AW35: 2.333333333 | AX35: 0 | AY35: 0
A36: 21 | B36: X | C36: - | D36: Remediere definitivă a defectului apărut pe conducta 20” Hurezani - Corbu, fir II, zona Oporelu | E36: 127858 | F36: Oporelu | G36: Olt | H36: 453702.67 | I36: 343855.96 | J36: 445078.83 | K36: 351326.97 | L36: - | M36: - | N36: SM0243D0 | O36: Oporelu | P36: - | Q36: - | R36: - | S36: - | T36: SM-CF001 | V36: OMV Petrom | W36: - | X36: 2017-10-18 | Y36: 08:00:00 | Z36: 2017-10-18 | AA36: 18:00:00 | AB36: Craiova | AC36: Efectuată | AE36: 2017-10-18 | AF36: 08:00:00 | AG36: 2017-10-18 | AH36: 16:00:00 | AI36: 2017-10-16 | AJ36: 16:28:00 | AK36: 2017-10-13 | AL36: 13:57:00 | AM36: 2663/16.10.2017 | AN36: NU | AQ36: Nu a fost afectat producator/consumator | AR36: - | AS36: - | AT36: Nu a fost afectat producator/consumator | AU36: - | AV36: - | AW36: Nu a fost afectat producator/consumator | AX36: - | AY36: -
A37: 22 | B37: X | C37: - | D37: Refulare conductă 4” racord SRM SC Vanbet Rebricea în scopul eliminării impurităților lichide | E37: 165719 | F37: Rebricea | G37: Vaslui | H37: 695823.67 | I37: 600897.4 | J37: 695520.33 | K37: 600606.66 | L37: - | M37: - | N37: SM1177D0 | O37: SC Vanbet Rebricea | P37: - | Q37: - | R37: - | S37: - | T37: SM-CF001 | U37: WIEE România | V37: Vanbet SRL | W37: - | X37: 2017-10-18 | Y37: 10:00:00 | Z37: 2017-10-18 | AA37: 14:00:00 | AB37: Brăila | AC37: Efectuată | AE37: 2017-10-18 | AF37: 11:15:00 | AG37: 2017-10-18 | AH37: 12:00:00 | AI37: 2017-10-17 | AJ37: 12:33:00 | AK37: 2017-10-16 | AL37: 13:52:00 | AM37: 7529/16.10.2017 | AN37: DA | AQ37: -45.38333333 | AR37: 1 | AS37: 1 | AT37: -22.7 | AU37: 1 | AV37: 1 | AW37: 0.75 | AX37: 0 | AY37: 0
A38: 23 | B38: X | C38: - | D38: Remediere defect de coroziune pe conducta 12” Nord I, Cormeniș - Apa, zona Finteuș | E38: 109176 | F38: Finteușu Mare | G38: Maramureș | H38: 382207 | I38: 677818.04 | J38: 386030.18 | K38: 665573.95 | L38: - | M38: - | N38: SM0569D0 | O38: Finteușu Mare | P38: - | Q38: - | R38: - | S38: - | T38: SM-SD001 | U38: E.on Energie | V38: Delgaz Grid | W38: - | X38: 2017-10-18 | Y38: 08:00:00 | Z38: 2017-10-18 | AA38: 16:00:00 | AB38: Cluj | AC38: Efectuată | AI38: 2017-10-17 | AJ38: 15:01:00 | AK38: 2017-10-05 | AM38: 12536/17.10.2017 | AN38: NU | AQ38: =IF(B38="X",IF(AN38="","Afectat sau NU?",IF(AN38="DA",IF(AK38="","Neinformat",((AK38+AL38)-(AE38+AF38))*24),IF(AN38="NU","Nu a fost afectat producator/consumator","Afectat sau NU?"))),"") -> Nu a fost afectat producator/consumator | AR38: - | AS38: - | AT38: Nu a fost afectat producator/consumator | AU38: - | AV38: - | AW38: Nu a fost afectat producator/consumator | AX38: - | AY38: -
A39: 24 | B39: X | C39: - | D39: Remediere defect de coroziune pe conducta 12” Nord I, Cormeniș - Apa, zona Finteuș | E39: 108491 | F39: Remetea Chioarului | G39: Maramureș | H39: 382207 | I39: 677818.04 | J39: 386030.18 | K39: 665573.95 | L39: - | M39: - | N39: SM0568D0 | O39: Remetea Chioarului | P39: - | Q39: - | R39: - | S39: - | T39: SM-SD001 | U39: E.on Energie | V39: Delgaz Grid | W39: - | X39: 2017-10-18 | Y39: 08:00:00 | Z39: 2017-10-18 | AA39: 16:00:00 | AB39: Cluj | AC39: Efectuată | AI39: 2017-10-17 | AJ39: 15:01:00 | AK39: 2017-10-17 | AL39: 11:16:00 | AM39: 12536/17.10.2017 | AN39: NU | AQ39: Nu a fost afectat producator/consumator | AR39: - | AS39: - | AT39: Nu a fost afectat producator/consumator | AU39: - | AV39: - | AW39: Nu a fost afectat producator/consumator | AX39: - | AY39: -
A40: 25 | B40: X | C40: - | D40: Remediere defect de coroziune pe conducta 12” Nord I, Cormeniș - Apa, zona Finteuș | E40: 108712 | F40: Satulung | G40: Maramureș | H40: 382207 | I40: 677818.04 | J40: 386030.18 | K40: 665573.95 | L40: - | M40: - | N40: SM0562D0 | O40: Satulung | P40: - | Q40: - | R40: - | S40: - | T40: SM-SD001 | U40: Engie România, Enel, E.on Energie | V40: Delgaz Grid | W40: - | X40: 2017-10-18 | Y40: 08:00:00 | Z40: 2017-10-18 | AA40: 16:00:00 | AB40: Cluj | AC40: Efectuată | AI40: 2017-10-17 | AJ40: 15:01:00 | AK40: 2017-10-05 | AM40: 12536/17.10.2017 | AN40: NU | AQ40: =IF(B40="X",IF(AN40="","Afectat sau NU?",IF(AN40="DA",IF(AK40="","Neinformat",((AK40+AL40)-(AE40+AF40))*24),IF(AN40="NU","Nu a fost afectat producator/consumator","Afectat sau NU?"))),"") -> Nu a fost afectat producator/consumator | AR40: - | AS40: - | AT40: Nu a fost afectat producator/consumator | AU40: - | AV40: - | AW40: Nu a fost afectat producator/consumator | AX40: - | AY40: -
A41: 26 | B41: X | C41: - | D41: Cuplare tronson relocat/protejat al racordului 6” SRM Zimandu Nou | E41: 12876 | F41: Zimandu Nou | G41: Arad | H41: 226619.64 | I41: 535961.09 | J41: 222116.54 | K41: 536871.12 | L41: - | M41: - | N41: SM0355D0 | O41: Zimandu Nou | P41: - | Q41: - | R41: - | S41: - | T41: SM-SD001 | U41: Alpiq Romindustries, Engie România, OMV Petrom | V41: Gaz Vest | W41: - | X41: 2017-10-23 | Y41: 08:00:00 | Z41: 2017-10-23 | AA41: 16:00:00 | AB41: Arad | AC41: Efectuată | AE41: 2017-10-23 | AF41: 10:40:00 | AG41: 2017-10-23 | AH41: 14:57:00 | AI41: 2017-10-19 | AJ41: 13:47:00 | AK41: 2017-10-16 | AM41: 10379/17.10.2017 | AN41: DA | AQ41: -178.6666667 | AR41: 1 | AS41: 1 | AT41: -92.88333333 | AU41: 3 | AV41: 3 | AW41: 4.283333333 | AX41: 0 | AY41: 0
A42: 27 | B42: - | C42: X | D42: Curățirea interioară 20” Urziceni - Moara Domnească | E42: 100683 | F42: Urziceni | G42: Ialomița | H42: 626882.03 | I42: 358926.8 | J42: 626882.03 | K42: 358926.8 | L42: SM1098D0 | M42: SC Lemarco Cristal Urziceni | N42: - | O42: - | P42: - | Q42: - | R42: - | S42: - | T42: SM-CF001 | U42: Engie România | V42: Lemarco Cristal | W42: septembrie - octombrie (reducere pe perioada trecerii PIG-ului / întrerupere în caz de blocare PIG) | X42: 2017-10-24 | Y42: 09:00:00 | Z42: 2017-10-24 | AA42: 15:00:00 | AB42: Brăila | AC42: Efectuată | AI42: 2017-10-23 | AJ42: 15:45:00 | AM42: 7704/23.10.2017 | AN42: NU | AQ42: =IF(B42="X",IF(AN42="","Afectat sau NU?",IF(AN42="DA",IF(AK42="","Neinformat",((AK42+AL42)-(AE42+AF42))*24),IF(AN42="NU","Nu a fost afectat producator/consumator","Afectat sau NU?"))),"") ->  | BE42: Nu a fost afectat producator/consumator | BF42: - | BG42: - | BH42: Nu a fost afectat producator/consumator | BI42: - | BJ42: - | BK42: Nu a fost afectat producator/consumator | BL42: - | BM42: -
A43: 28 | B43: - | C43: X | D43: Curățirea interioară 20” Urziceni - Moara Domnească | E43: 102240 | F43: Coșereni | G43: Ialomița | H43: 622086.68 | I43: 355324.11 | J43: 622086.68 | K43: 355324.11 | L43: SM1178D0 | M43: Coșereni | N43: - | O43: - | P43: - | Q43: - | R43: - | S43: - | T43: SM-SD001 | U43: Cez Vânzare, Engie România | V43: Megaconstruct | W43: septembrie - octombrie (reducere pe perioada trecerii PIG-ului / întrerupere în caz de blocare PIG) | X43: 2017-10-24 | Y43: 09:00:00 | Z43: 2017-10-24 | AA43: 15:00:00 | AB43: București | AC43: Efectuată | AI43: 2017-10-23 | AJ43: 15:45:00 | AM43: 8305/23.10.2017 | AN43: NU | AQ43: =IF(B43="X",IF(AN43="","Afectat sau NU?",IF(AN43="DA",IF(AK43="","Neinformat",((AK43+AL43)-(AE43+AF43))*24),IF(AN43="NU","Nu a fost afectat producator/consumator","Afectat sau NU?"))),"") ->  | BE43: Nu a fost afectat producator/consumator | BF43: - | BG43: - | BH43: Nu a fost afectat producator/consumator | BI43: - | BJ43: - | BK43: Nu a fost afectat producator/consumator | BL43: - | BM43: -
A44: 29 | B44: X | C44: - | D44: Sistare alimentare cu gaze naturale a SRM Șura Mare - la solicitarea Delgaz Grid | E44: 145765 | F44: Șura Mare | G44: Sibiu | H44: 434542.98 | I44: 483711.13 | J44: 434542.98 | K44: 483711.13 | L44: - | M44: - | N44: SM0742D0 | O44: Șura Mare | P44: - | Q44: - | R44: - | S44: - | T44: SM-SD001 | U44: Engie România, E-on Energie, Enel | V44: Delgaz Grid | W44: - | X44: 2017-10-25 | Y44: 10:00:00 | Z44: 2017-10-25 | AA44: 14:00:00 | AB44: Mediaș | AC44: Efectuată | AE44: 2017-10-25 | AF44: 10:00:00 | AG44: 2017-10-25 | AH44: 13:45:00 | AI44: 2017-10-25 | AJ44: 08:32:00 | AK44: 2017-10-23 | AM44: 7228/24.10.2017 | AN44: DA | AO44: La solicitarea Delgaz Grid | AQ44: -58 | AR44: 1 | AS44: 1 | AT44: -1.466666667 | AU44: 3 | AV44: 3 | AW44: 3.75 | AX44: 0 | AY44: 0
A45: 30 | B45: - | C45: X | D45: Curățire interioară 28” Medieșu Aurit - Sărmășel | E45: 109265 | F45: Ulmeni | G45: Maramureș | H45: 371312.82 | I45: 665034.53 | J45: 371420.04 | K45: 664986.78 | L45: SM0953D0 | M45: Ulmeni | N45: - | O45: - | P45: - | Q45: - | R45: - | S45: - | T45: SM-SD001 | U45: Cez Vânzare, Engie România, E-on Energie, OMV Petrom, Enel, E.on Energie | V45: Delgaz Grid | W45: aprilie - octombrie (reducere pe perioada trecerii PIG-ului / întrerupere în caz de blocare PIG) | X45: 2017-10-25 | Y45: 13:00:00 | Z45: 2017-10-26 | AA45: 10:00:00 | AB45: Cluj | AC45: Efectuată | AI45: 2017-10-25 | AJ45: 08:32:00 | AM45: 12848/24.10.2017 | AN45: NU | BE45: Nu a fost afectat producator/consumator | BF45: - | BG45: - | BH45: Nu a fost afectat producator/consumator | BI45: - | BJ45: - | BK45: Nu a fost afectat producator/consumator | BL45: - | BM45: -
A46: 31 | B46: - | C46: X | D46: Curățire interioară 28” Medieșu Aurit - Sărmășel | E46: 140244 | F46: Benesat | G46: Sălaj | H46: 369672.11 | I46: 658600.05 | J46: 370018.54 | K46: 658821.16 | L46: SM0954D0 | M46: Benesat | N46: - | O46: - | P46: - | Q46: - | R46: - | S46: - | T46: SM-SD001 | U46: Premier Energy, Alpiq Romindustries, Nova Power, Engie România, E-on Energie, OMV Petrom, Tinmar, Enel | V46: CPL Concordia | W46: aprilie - octombrie (reducere pe perioada trecerii PIG-ului / întrerupere în caz de blocare PIG) | X46: 2017-10-25 | Y46: 13:00:00 | Z46: 2017-10-26 | AA46: 10:00:00 | AB46: Cluj | AC46: Efectuată | AI46: 2017-10-25 | AJ46: 08:32:00 | AM46: 12848/24.10.2017 | AN46: NU | BE46: Nu a fost afectat producator/consumator | BF46: - | BG46: - | BH46: Nu a fost afectat producator/consumator | BI46: - | BJ46: - | BK46: Nu a fost afectat producator/consumator | BL46: - | BM46: -
A47: 32 | B47: - | C47: X | D47: Curățire interioară 28” Medieșu Aurit - Sărmășel | E47: 142710 | F47: Someș Odorhei | G47: Sălaj | H47: 369658.85 | I47: 649334.05 | J47: 369552.55 | K47: 649326.13 | L47: SM1230D0 | M47: Someș Odorhei | N47: - | O47: - | P47: - | Q47: - | R47: - | S47: - | T47: SM-SD001 | U47: Nova Power, E.on Energie | V47: CPL Concordia | W47: aprilie - octombrie (reducere pe perioada trecerii PIG-ului / întrerupere în caz de blocare PIG) | X47: 2017-10-25 | Y47: 13:00:00 | Z47: 2017-10-26 | AA47: 10:00:00 | AB47: Cluj | AC47: Efectuată | AI47: 2017-10-25 | AJ47: 08:32:00 | AM47: 12848/24.10.2017 | AN47: NU | BE47: Nu a fost afectat producator/consumator | BF47: - | BG47: - | BH47: Nu a fost afectat producator/consumator | BI47: - | BJ47: - | BK47: Nu a fost afectat producator/consumator | BL47: - | BM47: -
A48: 33 | B48: X | C48: - | D48: Înlocuire contor în SRM Sâmbăta de Sus | E48: 42464 | F48: Sâmbata de Sus | G48: Brașov | H48: 486437.48 | I48: 474249.04 | J48: 486437.48 | K48: 474249.04 | L48: - | M48: - | N48: SM0807D0 | O48: Sâmbăta de Sus | P48: - | Q48: - | R48: - | S48: - | T48: SM-SD001 | U48: Engie Romania | V48: Distrigaz Sud Rețele | W48: - | X48: 2017-10-27 | Y48: 10:00:00 | Z48: 2017-10-27 | AA48: 13:00:00 | AB48: Brașov | AC48: Efectuată | AE48: 2017-10-27 | AF48: 10:00:00 | AG48: 2017-10-27 | AH48: 13:00:00 | AI48: 2017-10-27 | AJ48: 14:06:00 | AK48: 2017-10-23 | AL48: 12:50:00 | AM48: 3412/27.10.2017 | AN48: NU | AQ48: =IF(B48="X",IF(AN48="","Afectat sau NU?",IF(AN48="DA",IF(AK48="","Neinformat",((AK48+AL48)-(AE48+AF48))*24),IF(AN48="NU","Nu a fost afectat producator/consumator","Afectat sau NU?"))),"") -> Nu a fost afectat producator/consumator | AR48: =IF(B48="X",IF(AN48="DA",IF(AQ48<6,LEN(TRIM(V48))-LEN(SUBSTITUTE(V48,CHAR(44),""))+1,0),"-"),"") -> - | AS48: =IF(B48="X",IF(AN48="DA",LEN(TRIM(V48))-LEN(SUBSTITUTE(V48,CHAR(44),""))+1,"-"),"") -> - | AT48: =IF(B48="X",IF(AN48="","Afectat sau NU?",IF(AN48="DA",IF(AI48="","Neinformat",((AI48+AJ48)-(AE48+AF48))*24),IF(AN48="NU","Nu a fost afectat producator/consumator","Afectat sau NU?"))),"") -> Nu a fost afectat producator/consumator | AU48: =IF(B48="X",IF(AN48="DA",IF(AT48<6,LEN(TRIM(U48))-LEN(SUBSTITUTE(U48,CHAR(44),""))+1,0),"-"),"") -> - | AV48: - | AW48: =IF(B48="X",IF(AN48="","Afectat sau NU?",IF(AN48="DA",((AG48+AH48)-(AE48+AF48))*24,IF(AN48="NU","Nu a fost afectat producator/consumator","Afectat sau NU?"))),"") -> Nu a fost afectat producator/consumator | AX48: =IF(B48="X",IF(AN48="DA",IF(AW48>24,IF(AZ48="NU",0,LEN(TRIM(V48))-LEN(SUBSTITUTE(V48,CHAR(44),""))+1),0),"-"),"") -> - | AY48: =IF(B48="X",IF(AN48="DA",IF(AW48>24,LEN(TRIM(V48))-LEN(SUBSTITUTE(V48,CHAR(44),""))+1,0),"-"),"") -> - | BE48: =IF(C48="X",IF(AN48="","Afectat sau NU?",IF(AN48="DA",IF(AK48="","Neinformat",NETWORKDAYS(AK48+AL48,AE48+AF48,$BR$2:$BR$14)-1),IF(AN48="NU","Nu a fost afectat producator/consumator","Afectat sau NU?"))),"") ->  | BF48: =IF(C48="X",IF(AN48="DA",IF(AND(BE48>=5,AK48<>""),LEN(TRIM(V48))-LEN(SUBSTITUTE(V48,CHAR(44),""))+1,0),"-"),"") ->  | BG48: =IF(C48="X",IF(AN48="DA",LEN(TRIM(V48))-LEN(SUBSTITUTE(V48,CHAR(44),""))+1,"-"),"") ->  | BH48: =IF(C48="X",IF(AN48="","Afectat sau NU?",IF(AN48="DA",IF(AI48="","Neinformat",NETWORKDAYS(AI48+AJ48,AE48+AF48,$BR$2:$BR$14)-1),IF(AN48="NU","Nu a fost afectat producator/consumator","Afectat sau NU?"))),"") ->  | BI48: =IF(C48="X",IF(AN48="DA",IF(AND(BH48>=5,AI48<>""),LEN(TRIM(U48))-LEN(SUBSTITUTE(U48,CHAR(44),""))+1,0),"-"),"") ->  | BK48: =IF(C48="X",IF(AN48="","Afectat sau NU?",IF(AN48="DA",((AG48+AH48)-(Z48+AA48))*24,IF(AN48="NU","Nu a fost afectat producator/consumator","Afectat sau NU?"))),"") ->  | BL48: =IF(C48="X",IF(AN48<>"DA","-",IF(AND(AN48="DA",BK48<=0),LEN(TRIM(V48))-LEN(SUBSTITUTE(V48,CHAR(44),""))+1+LEN(TRIM(U48))-LEN(SUBSTITUTE(U48,CHAR(44),""))+1,0)),"") -> 
A49: 34 | B49: X | C49: - | D49: Remedierea unui defect de coroziune în regim de urgență pe conducta 24” Ernei - Târgu Mureș | E49: 116652 | F49: Ernei | G49: Mureș | H49: 62284.93652 | I49: 56742.04787 | J49: 471863.9125 | K49: 66227.45852 | L49: - | M49: - | N49: - | O49: - | P49: - | Q49: - | R49: PM0125 | S49: Ernei - golire SU | T49: PM-PP001 | U49: Premier Energy, Met România, Alpha Metal, Nova Power, Cis Gaz, Complex Energetic Hunedoara, Conef Gaz, Engie România, E-on Energie, Electrocentrale București, C-Gaz&Energy, Ottogaz, Romgaz, WIEE România, Energy Distribution, Tinmar | V49: Romgaz | W49: - | X49: 2017-10-27 | Y49: 14:27:00 | Z49: 2017-10-27 | AA49: 20:00:00 | AB49: Cluj | AC49: Efectuată | AE49: 2017-10-27 | AF49: 11:18:00 | AG49: 2017-10-27 | AH49: 18:48:00 | AK49: 2017-10-27 | AL49: 11:36:00 | AM49: 12989/27.10.2017 | AN49: DA | AO49: FM a ajuns la BET după ora 15:30 | AQ49: 0.2999999999 | AR49: 1 | AS49: 1 | AT49: Neinformat | AU49: 0 | AV49: 16 | AW49: 7.5 | AX49: 0 | AY49: 0
A50: 35 | B50: X | C50: - | D50: Lucrări de mentenanță pe conducta 12” Sibiu - Cisnădie - Tălmaciu și înlocuire SRM Șelimbăr | E50: 143557 | F50: Șelimbăr | G50: Sibiu | H50: 438109.45 | I50: 473474.76 | J50: 438109.45 | K50: 473474.76 | L50: - | M50: - | N50: SM0732D0 | O50: Șelimbăr | P50: - | Q50: - | R50: - | S50: - | T50: SM-SD001 | U50: Premier Energy, Alpiq Romindustries, Cez Vânzare, Engie România, E-on Energie, Gaz Est, OMV Petrom, Energy Gas, Restart Energy, Enel | V50: Delgaz Grid | W50: - | X50: 2017-10-28 | Y50: 08:00:00 | Z50: 2017-10-28 | AA50: 15:00:00 | AB50: Mediaș | AC50: Efectuată | AE50: 2017-10-28 | AF50: 08:00:00 | AG50: 2017-10-28 | AH50: 16:00:00 | AK50: 2017-10-13 | AM50: 7346/27.10.2017 | AN50: DA | AO50: FM neaprobată | AQ50: -368 | AR50: 1 | AS50: 1 | AT50: Neinformat | AU50: 0 | AV50: 10 | AW50: 8 | AX50: 0 | AY50: 0
A51: 36 | B51: X | C51: - | D51: Lucrări de mentenanță pe conducta 12” Sibiu - Cisnădie - Tălmaciu și înlocuire SRM Șelimbăr | E51: 143557 | F51: Șelimbăr | G51: Sibiu | H51: 437947.89 | I51: 473137.15 | J51: 437947.89 | K51: 473137.15 | L51: - | M51: - | N51: SM0888D0 | O51: SC Intercar Șelimbăr | P51: - | Q51: - | R51: - | S51: - | T51: SM-CF001 | U51: E-on Energie, C-Gaz&Energy | V51: Intercar | W51: - | X51: 2017-10-28 | Y51: 08:00:00 | Z51: 2017-10-28 | AA51: 15:00:00 | AB51: Mediaș | AC51: Efectuată | AE51: 2017-10-28 | AF51: 08:00:00 | AG51: 2017-10-28 | AH51: 16:30:00 | AK51: 2017-10-25 | AL51: 12:00:00 | AM51: 7346/27.10.2017 | AN51: DA | AO51: FM neaprobată | AQ51: -68 | AR51: 1 | AS51: 1 | AT51: Neinformat | AU51: 0 | AV51: 2 | AW51: 8.5 | AX51: 0 | AY51: 0
A52: 37 | B52: X | C52: - | D52: Lucrări de mentenanță pe conducta 12” Sibiu - Cisnădie - Tălmaciu și înlocuire SRM Șelimbăr | E52: 143557 | F52: Șelimbăr | G52: Sibiu | H52: 437768 | I52: 473110.81 | J52: 437768 | K52: 473110.81 | L52: - | M52: - | N52: SM0762D0 | O52: SC Transilvania Automobile Șelimbăr | P52: - | Q52: - | R52: - | S52: - | T52: SM-CF001 | U52: E-on Energie | V52: Transilvania Automobile | W52: - | X52: 2017-10-28 | Y52: 08:00:00 | Z52: 2017-10-28 | AA52: 15:00:00 | AB52: Mediaș | AC52: Efectuată | AE52: 2017-10-28 | AF52: 08:00:00 | AG52: 2017-10-28 | AH52: 20:00:00 | AK52: 2017-10-25 | AL52: 12:00:00 | AM52: 7346/27.10.2017 | AN52: DA | AO52: FM neaprobată | AQ52: -68 | AR52: 1 | AS52: 1 | AT52: Neinformat | AU52: 0 | AV52: 1 | AW52: 12 | AX52: 0 | AY52: 0
A53: 38 | B53: X | C53: - | D53: Lucrări de mentenanță pe conducta 12” Sibiu - Cisnădie - Tălmaciu și înlocuire SRM Șelimbăr | E53: 143557 | F53: Șelimbăr | G53: Sibiu | H53: 437717.49 | I53: 472496.31 | J53: 437717.49 | K53: 472496.31 | L53: - | M53: - | N53: SM0728D0 | O53: SC Germano Trans Șelimbăr | P53: - | Q53: - | R53: - | S53: - | T53: SM-CF001 | U53: E-on Energie | V53: Germano Trans | W53: - | X53: 2017-10-28 | Y53: 08:00:00 | Z53: 2017-10-28 | AA53: 15:00:00 | AB53: Mediaș | AC53: Efectuată | AE53: 2017-10-28 | AF53: 08:00:00 | AG53: 2017-10-28 | AH53: 16:15:00 | AK53: 2017-10-25 | AL53: 12:00:00 | AM53: 7346/27.10.2017 | AN53: DA | AO53: FM neaprobată | AQ53: -68 | AR53: 1 | AS53: 1 | AT53: Neinformat | AU53: 0 | AV53: 1 | AW53: 8.25 | AX53: 0 | AY53: 0
A54: 39 | B54: X | C54: - | D54: Lucrări de mentenanță pe conducta 12” Sibiu - Cisnădie - Tălmaciu și înlocuire SRM Șelimbăr | E54: 143557 | F54: Șelimbăr | G54: Sibiu | H54: 435532.6 | I54: 470616.06 | J54: 435532.6 | K54: 470616.06 | L54: - | M54: - | N54: SM0760D0 | O54: SC Prodial Cisnădie | P54: - | Q54: - | R54: - | S54: - | T54: SM-CF001 | U54: E-on Energie | V54: Prodial | W54: - | X54: 2017-10-28 | Y54: 08:00:00 | Z54: 2017-10-28 | AA54: 15:00:00 | AB54: Mediaș | AC54: Efectuată | AE54: 2017-10-28 | AF54: 08:00:00 | AG54: 2017-10-28 | AH54: 16:45:00 | AK54: 2017-10-25 | AL54: 12:00:00 | AM54: 7346/27.10.2017 | AN54: DA | AO54: FM neaprobată | AQ54: -68 | AR54: 1 | AS54: 1 | AT54: Neinformat | AU54: 0 | AV54: 1 | AW54: 8.75 | AX54: 0 | AY54: 0
A55: 40 | B55: X | C55: - | D55: Lucrări de mentenanță pe conducta 12” Sibiu - Cisnădie - Tălmaciu și înlocuire SRM Șelimbăr | E55: 143735 | F55: Cisnădie | G55: Sibiu | H55: 434558.17 | I55: 469530.9 | J55: 434558.17 | K55: 469530.9 | L55: - | M55: - | N55: SM0726D0 | O55: Cisnădie | P55: - | Q55: - | R55: - | S55: - | T55: SM-SD001 | U55: Premier Energy, Cez Vânzare, Cis Gaz, Engie România, E-on Energie, Restart Energy, RWE Supply, Enel | V55: Delgaz Grid | W55: - | X55: 2017-10-28 | Y55: 08:00:00 | Z55: 2017-10-28 | AA55: 15:00:00 | AB55: Mediaș | AC55: Efectuată | AE55: 2017-10-28 | AF55: 08:00:00 | AG55: 2017-10-28 | AH55: 17:30:00 | AK55: 2017-10-13 | AM55: 7346/27.10.2017 | AN55: DA | AO55: FM neaprobată | AQ55: -368 | AR55: 1 | AS55: 1 | AT55: Neinformat | AU55: 0 | AV55: 8 | AW55: 9.5 | AX55: 0 | AY55: 0
A56: 41 | B56: X | C56: - | D56: Lucrări de mentenanță pe conducta 12” Sibiu - Cisnădie - Tălmaciu și înlocuire SRM Șelimbăr | E56: 143735 | F56: Cisnădie | G56: Sibiu | H56: 433908.5 | I56: 472158.75 | J56: 433908.5 | K56: 472158.75 | L56: - | M56: - | N56: SM0727D0 | O56: Cisnădie II (Seviș) | P56: - | Q56: - | R56: - | S56: - | T56: SM-SD001 | U56: Premier Energy, Cez Vânzare, Cis Gaz, Engie România, E-on Energie, Restart Energy, RWE Supply, Enel | V56: Delgaz Grid | W56: - | X56: 2017-10-28 | Y56: 08:00:00 | Z56: 2017-10-28 | AA56: 15:00:00 | AB56: Mediaș | AC56: Efectuată | AE56: 2017-10-28 | AF56: 08:00:00 | AG56: 2017-10-28 | AH56: 17:10:00 | AK56: 2017-10-13 | AM56: 7346/27.10.2017 | AN56: DA | AO56: FM neaprobată | AQ56: -368 | AR56: 1 | AS56: 1 | AT56: Neinformat | AU56: 0 | AV56: 8 | AW56: 9.166666667 | AX56: 0 | AY56: 0
A57: 42 | B57: X | C57: - | D57: Lucrări de mentenanță pe conducta 12” Sibiu - Cisnădie - Tălmaciu și înlocuire SRM Șelimbăr | E57: 143735 | F57: Cisnădie | G57: Sibiu | H57: 435212.79 | I57: 469658.34 | J57: 435212.79 | K57: 469658.34 | L57: - | M57: - | N57: SM1007D0 | O57: SC Panalim Cisnădie | P57: - | Q57: - | R57: - | S57: - | T57: SM-CF001 | U57: Premier Energy | V57: Panalim | W57: - | X57: 2017-10-28 | Y57: 08:00:00 | Z57: 2017-10-28 | AA57: 15:00:00 | AB57: Mediaș | AC57: Efectuată | AE57: 2017-10-28 | AF57: 08:00:00 | AG57: 2017-10-28 | AH57: 17:45:00 | AK57: 2017-10-25 | AL57: 12:00:00 | AM57: 7346/27.10.2017 | AN57: DA | AO57: FM neaprobată | AQ57: -68 | AR57: 1 | AS57: 1 | AT57: Neinformat | AU57: 0 | AV57: 1 | AW57: 9.75 | AX57: 0 | AY57: 0
A58: 43 | B58: X | C58: - | D58: Lucrări de mentenanță pe conducta 12” Sibiu - Cisnădie - Tălmaciu și înlocuire SRM Șelimbăr | E58: 145836 | F58: Tălmaciu | G58: Sibiu | H58: 441989.99 | I58: 463883.41 | J58: 441989.99 | K58: 463883.41 | L58: - | M58: - | N58: SM0733D1 | O58: SC Romanofir Tălmaciu | P58: - | Q58: - | R58: - | S58: - | T58: SM-CF001 | U58: E-on Energie | V58: Romanofir | W58: - | X58: 2017-10-28 | Y58: 08:00:00 | Z58: 2017-10-28 | AA58: 15:00:00 | AB58: Mediaș | AC58: Efectuată | AE58: 2017-10-28 | AF58: 08:00:00 | AG58: 2017-10-28 | AH58: 19:00:00 | AK58: 2017-10-25 | AL58: 12:00:00 | AM58: 7346/27.10.2017 | AN58: DA | AO58: FM neaprobată | AQ58: -68 | AR58: 1 | AS58: 1 | AT58: Neinformat | AU58: 0 | AV58: 1 | AW58: 11 | AX58: 0 | AY58: 0
A59: 44 | B59: X | C59: - | D59: Lucrări de mentenanță pe conducta 12” Sibiu - Cisnădie - Tălmaciu și înlocuire SRM Șelimbăr | E59: 145827 | F59: Tălmaciu | G59: Sibiu | H59: 441989.99 | I59: 463883.41 | J59: 441989.99 | K59: 463883.41 | L59: - | M59: - | N59: SM0733D2 | O59: Tălmaciu | P59: - | Q59: - | R59: - | S59: - | T59: SM-SD001 | U59: Engie România, E-on România, Gaz Est, OMV Petrom, Enel | V59: Delgaz Grid | W59: - | X59: 2017-10-28 | Y59: 08:00:00 | Z59: 2017-10-28 | AA59: 15:00:00 | AB59: Mediaș | AC59: Efectuată | AE59: 2017-10-28 | AF59: 08:00:00 | AG59: 2017-10-28 | AH59: 19:00:00 | AK59: 2017-10-13 | AM59: 7346/27.10.2017 | AN59: DA | AO59: FM neaprobată | AQ59: -368 | AR59: 1 | AS59: 1 | AT59: Neinformat | AU59: 0 | AV59: 5 | AW59: 11 | AX59: 0 | AY59: 0
A60: 45 | B60: X | C60: - | D60: Lucrări de mentenanță pe conducta 12” Sibiu - Cisnădie - Tălmaciu și înlocuire SRM Șelimbăr | E60: 145471 | F60: Sadu | G60: Sibiu | H60: 437389.03 | I60: 464457.73 | J60: 437389.03 | K60: 464457.73 | L60: - | M60: - | N60: SM0730D0 | O60: Sadu | P60: - | Q60: - | R60: - | S60: - | T60: SM-SD001 | U60: E-on Energie | V60: Delgaz Grid | W60: - | X60: 2017-10-28 | Y60: 08:00:00 | Z60: 2017-10-28 | AA60: 15:00:00 | AB60: Mediaș | AC60: Efectuată | AE60: 2017-10-28 | AF60: 08:00:00 | AG60: 2017-10-28 | AH60: 19:00:00 | AK60: 2017-10-13 | AM60: 7346/27.10.2017 | AN60: DA | AO60: FM neaprobată | AQ60: -368 | AR60: 1 | AS60: 1 | AT60: Neinformat | AU60: 0 | AV60: 1 | AW60: 11 | AX60: 0 | AY60: 0
A61: 46 | B61: X | C61: - | D61: Lucrări de mentenanță pe conducta 12” Sibiu - Cisnădie - Tălmaciu și înlocuire SRM Șelimbăr | E61: 145827 | F61: Tălmaciu | G61: Sibiu | H61: 441290.51 | I61: 461208.58 | J61: 441290.51 | K61: 461208.58 | L61: - | M61: - | N61: SM0735D0 | O61: Tălmăcel | P61: - | Q61: - | R61: - | S61: - | T61: SM-SD001 | U61: E-on Energie, Enel | V61: Delgaz Grid | W61: - | X61: 2017-10-28 | Y61: 08:00:00 | Z61: 2017-10-28 | AA61: 15:00:00 | AB61: Mediaș | AC61: Efectuată | AE61: 2017-10-28 | AF61: 08:00:00 | AG61: 2017-10-28 | AH61: 19:00:00 | AK61: 2017-10-13 | AM61: 7346/27.10.2017 | AN61: DA | AO61: FM neaprobată | AQ61: -368 | AR61: 1 | AS61: 1 | AT61: Neinformat | AU61: 0 | AV61: 2 | AW61: 11 | AX61: 0 | AY61: 0
A62: 47 | B62: X | C62: - | D62: Lucrări de mentenanță pe conducta 12” Sibiu - Cisnădie - Tălmaciu și înlocuire SRM Șelimbăr | E62: 145827 | F62: Tălmăcel | G62: Sibiu | H62: 441757.18 | I62: 461422.56 | J62: 441757.18 | K62: 461422.56 | L62: - | M62: - | N62: SM1160D0 | O62: Tălmăcel II | P62: - | Q62: - | R62: - | S62: - | T62: SM-SD001 | V62: Delgaz Grid | W62: - | X62: 2017-10-28 | Y62: 08:00:00 | Z62: 2017-10-28 | AA62: 15:00:00 | AB62: Mediaș | AC62: Efectuată | AK62: 2017-10-13 | AM62: 7346/27.10.2017 | AN62: NU | AO62: FM neaprobată | AQ62: Nu a fost afectat producator/consumator | AR62: - | AS62: - | AT62: Nu a fost afectat producator/consumator | AU62: - | AV62: - | AW62: Nu a fost afectat producator/consumator | AX62: - | AY62: -
A63: 48 | B63: X | C63: - | D63: Lucrări de mentenanță pe conducta 12” Sibiu - Cisnădie - Tălmaciu și înlocuire SRM Șelimbăr | E63: 145827 | F63: Boița | G63: Sibiu | H63: 442446.22 | I63: 460048.53 | J63: 442446.22 | K63: 460048.53 | L63: - | M63: - | N63: SM0736D0 | O63: Boița | P63: - | Q63: - | R63: - | S63: - | T63: SM-SD001 | U63: E-on Energie | V63: Delgaz Grid | W63: - | X63: 2017-10-28 | Y63: 08:00:00 | Z63: 2017-10-28 | AA63: 15:00:00 | AB63: Mediaș | AC63: Efectuată | AE63: 2017-10-28 | AF63: 08:00:00 | AG63: 2017-10-28 | AH63: 19:00:00 | AK63: 2017-10-13 | AM63: 7346/27.10.2017 | AN63: DA | AO63: FM neaprobată | AQ63: -368 | AR63: 1 | AS63: 1 | AT63: Neinformat | AU63: 0 | AV63: 1 | AW63: 11 | AX63: 0 | AY63: 0
A64: 49 | B64: X | C64: - | D64: Lucrări de mentenanță pe conducta 12” Sibiu - Cisnădie - Tălmaciu și înlocuire SRM Șelimbăr | E64: 143735 | F64: Cisnădioara | G64: Sibiu | H64: 430124.6031 | I64: 467602.03 | J64: 430124.6031 | K64: 467602.03 | L64: - | M64: - | N64: SM0051D0 | O64: Cisnădioara | P64: - | Q64: - | R64: - | S64: - | T64: SM-SD001 | U64: E-on Energie, Enel | V64: Delgaz Grid | W64: - | X64: 2017-10-28 | Y64: 08:00:00 | Z64: 2017-10-28 | AA64: 15:00:00 | AB64: Mediaș | AC64: Efectuată | AK64: 2017-10-13 | AM64: 7346/27.10.2017 | AN64: NU | AO64: FM neaprobată | AQ64: Nu a fost afectat producator/consumator | AR64: - | AS64: - | AT64: Nu a fost afectat producator/consumator | AU64: - | AV64: - | AW64: Nu a fost afectat producator/consumator | AX64: - | AY64: -
A65: 50 | B65: X | C65: - | D65: Cuplare tronson relocat/protejat al conductei 20” Deleni - Cuci | E65: 116395 | F65: Șeulia de Mureș | G65: Mureș | H65: 438160.16 | I65: 550349.33 | J65: 442750.25 | K65: 543079.81 | L65: - | M65: - | N65: SM0685D0 | O65: Șeulia de Mureș | P65: - | Q65: - | R65: - | S65: - | T65: SM-SD001 | U65: CIS Gaz, E-on Energie | V65: Delgaz Grid | W65: - | X65: 2017-10-30 | Y65: 08:00:00 | Z65: 2017-10-30 | AA65: 19:00:00 | AB65: Cluj | AC65: Efectuată | AE65: 2017-10-30 | AF65: 12:00:00 | AG65: 2017-10-31 | AH65: 10:03:00 | AI65: 2017-10-30 | AJ65: 11:42:00 | AK65: 2017-10-19 | AM65: 13003/27.10.2017 | AN65: DA | AQ65: -276 | AR65: 1 | AS65: 1 | AT65: -0.2999999999 | AU65: 2 | AV65: 2 | AW65: 22.05 | AX65: 0 | AY65: 0
A66: 51 | B66: X | C66: - | D66: Scoaterea din funcțiune SRM Târnava Șomârd - la solicitarea Delgaz Grid | E66: 143646 | F66: Târnava | G66: Sibiu | H66: 447307.5949 | I66: 514435.1082 | J66: 447307.5949 | K66: 514435.1082 | L66: - | M66: - | N66: SM0865D0 | O66: Târnava Șomârd | P66: - | Q66: - | R66: - | S66: - | T66: SM-SD001 | U66: E-on Energie, E-on Gaz Furnizare, Restart Energy | V66: Delgaz Grid | W66: - | X66: 2017-11-01 | Y66: 09:00:00 | Z66: 2017-11-01 | AA66: 13:00:00 | AB66: Mediaș | AC66: Efectuată | AE66: 2017-11-01 | AF66: 09:00:00 | AG66: 2017-11-01 | AH66: 10:00:00 | AI66: 2017-11-01 | AJ66: 15:29:00 | AK66: 2017-10-31 | AM66: 7453/31.10.2017 | AN66: DA | AO66: La solicitarea Delgaz Grid | AQ66: -33 | AR66: 1 | AS66: 1 | AT66: 6.483333333 | AU66: 0 | AV66: 3 | AW66: 0.9999999999 | AX66: 0 | AY66: 0
A67: 52 | B67: X | C67: - | D67: Lucrări de mentenanță în SRM Drăgășani I | E67: 167981 | F67: Drăgășani | G67: Vâlcea | H67: 442104.89 | I67: 347636.75 | J67: 442104.89 | K67: 347636.75 | L67: - | M67: - | N67: SM0234D1 | O67: Drăgășani I | P67: - | Q67: - | R67: - | S67: - | T67: SM-SD001 | U67: Cez Vânzare, Engie România, Restart Energy | V67: Distrigaz Sud Rețele | W67: - | X67: 2017-11-03 | Y67: 11:00:00 | Z67: 2017-11-03 | AA67: 13:00:00 | AB67: Craiova | AC67: Efectuată | AE67: 2017-11-03 | AF67: 11:02:00 | AG67: 2017-11-03 | AH67: 11:18:00 | AI67: 2017-11-02 | AJ67: 15:25:00 | AK67: 2017-10-31 | AL67: 14:44:00 | AM67: 2926/02.11.2017 | AN67: NU | AQ67: Nu a fost afectat producator/consumator | AR67: - | AS67: - | AT67: Nu a fost afectat producator/consumator | AU67: - | AV67: - | AW67: Nu a fost afectat producator/consumator | AX67: - | AY67: -
A68: 53 | B68: X | C68: - | D68: Realizare by-pass între conducta 10” Șincai - Zau - Ceanu Mare și racordul 3” SRM Hodăi Boian | E68: 56844 | F68: Hodăi-Boian | G68: Cluj | H68: 424196.47 | I68: 572114.57 | J68: 424309.89 | K68: 572213.86 | L68: - | M68: - | N68: SM0627D0 | O68: Hodăi Boian | P68: - | Q68: - | R68: - | S68: - | T68: SM-SD001 | U68: E-on Energie, E.on Gaz Furnizare | V68: Delgaz Grid | W68: - | X68: 2017-11-07 | Y68: 10:00:00 | Z68: 2017-11-07 | AA68: 13:00:00 | AB68: Cluj | AC68: Efectuată | AE68: 2017-11-07 | AF68: 10:00:00 | AG68: 2017-11-07 | AH68: 13:15:00 | AI68: 2017-11-07 | AJ68: 11:12:00 | AK68: 2017-11-03 | AL68: 14:52:00 | AM68: 13385/06.11.2017 | AN68: DA | AQ68: -91.13333333 | AR68: 1 | AS68: 1 | AT68: 1.2 | AU68: 2 | AV68: 2 | AW68: 3.25 | AX68: 0 | AY68: 0
A69: 54 | B69: X | C69: - | D69: Înlocuire flanșă electroizolantă pe conducta 2” racord SRM Moara Maria Chizătău | E69: 155797 | F69: Chizătău | G69: Timiș | H69: 245621.16 | I69: 478903.88 | J69: 245549.45 | K69: 478986.31 | L69: - | M69: - | N69: SM0329D0 | O69: SC Moara Maria Chizătău | P69: - | Q69: - | R69: - | S69: - | T69: SM-CF001 | U69: E-on Energie | V69: SC Moara Maria Chizătău SRL | W69: - | X69: 2017-11-09 | Y69: 09:00:00 | Z69: 2017-11-09 | AA69: 15:00:00 | AB69: Arad | AC69: Efectuată | AE69: 2017-11-09 | AF69: 09:00:00 | AG69: 2017-11-09 | AH69: 11:30:00 | AI69: 2017-11-09 | AJ69: 12:25:00 | AK69: 2017-11-03 | AM69: 11234/08.11.2017 | AN69: DA | AQ69: -153 | AR69: 1 | AS69: 1 | AT69: 3.416666667 | AU69: 1 | AV69: 1 | AW69: 2.5 | AX69: 0 | AY69: 0
A70: 55 | B70: X | C70: - | D70: Scoaterea din funcțiune SRM Conpet Bărăganu - la solicitarea CONPET | E70: 92961 | F70: Borcea | G70: Călărași | H70: 713270.06 | I70: 327780.58 | J70: 713270.06 | K70: 327780.58 | L70: - | M70: - | N70: SM1090D0 | O70: SC Conpet Bărăganu | P70: - | Q70: - | R70: - | S70: - | T70: SM-CF001 | U70: Premier Energy, Engie România | V70: SC Conpet | W70: - | X70: 2017-11-08 | Y70: 08:00:00 | Z70: 2017-11-08 | AA70: 14:00:00 | AB70: Brăila | AC70: Efectuată | AE70: 2017-11-08 | AF70: 10:00:00 | AG70: 2017-11-08 | AH70: 14:00:00 | AK70: 2017-11-07 | AL70: 08:59:00 | AM70: 8144/07.11.2017 | AN70: DA | AO70: La solicitarea CONPET | AQ70: -25.01666667 | AR70: 1 | AS70: 1 | AT70: Neinformat | AU70: 0 | AV70: 2 | AW70: 4 | AX70: 0 | AY70: 0
A71: 56 | B71: X | C71: - | D71: Cuplare conducta 8" racord SRM Lemarco Cristal Urziceni în conducta 32" Urziceni - București | E71: 100683 | F71: Uriceni | G71: Ialomița | H71: 626908.045 | I71: 358786.7431 | J71: 626881.9909 | K71: 358926.8504 | L71: - | M71: - | N71: SM1098D0 | O71: SC Lemarco Cristal Urziceni | P71: - | Q71: - | R71: - | S71: - | T71: SM-CF001 | U71: Engie Romania | V71: SC Lemarco Cristal SRL | W71: - | X71: 2017-11-15 | Y71: 09:00:00 | Z71: 2017-11-15 | AA71: 16:00:00 | AB71: Brăila | AC71: Efectuată | AE71: 2017-11-15 | AF71: 10:15:00 | AG71: 2017-11-15 | AH71: 13:10:00 | AI71: 2017-11-13 | AJ71: 13:12:00 | AK71: 2017-11-09 | AL71: 09:23:00 | AM71: 8272/10.11.2017 | AN71: DA | AQ71: -144.8666667 | AR71: 1 | AS71: 1 | AT71: -45.05 | AU71: 1 | AV71: 1 | AW71: 2.916666667 | AX71: 0 | AY71: 0
A72: 57 | B72: X | C72: - | D72: Înlocuire două tronsoane și montare robinet pe conducta 20” Bratei - Victoria | E72: 144232 | F72: Pelișor | G72: Sibiu | H72: 462529.73 | I72: 505071.29 | J72: 462529.73 | K72: 505071.29 | L72: - | M72: - | N72: SM0904D0 | O72: Pelișor | P72: - | Q72: - | R72: - | S72: - | T72: SM-SD001 | U72: E-on Energie, E.on Gaz Furnizare | V72: Delgaz Grid | W72: - | X72: 2017-11-14 | Y72: 08:00:00 | Z72: 2017-11-14 | AA72: 17:00:00 | AB72: Mediaș | AC72: Efectuată | AE72: 2017-11-14 | AF72: 08:15:00 | AG72: 2017-11-14 | AH72: 18:10:00 | AI72: 2017-11-14 | AJ72: 12:19:00 | AK72: 2017-11-08 | AM72: 7710/13.11.2017 | AN72: DA | AQ72: -152.25 | AR72: 1 | AS72: 1 | AT72: 4.066666667 | AU72: 2 | AV72: 2 | AW72: 9.916666667 | AX72: 0 | AY72: 0
A73: 58 | B73: X | C73: - | D73: Înlocuire două tronsoane și montare robinet pe conducta 20” Bratei - Victoria | E73: 144232 | F73: Bârghiș | G73: Sibiu | H73: 464305.97 | I73: 499196.48 | J73: 464305.97 | K73: 499196.48 | L73: - | M73: - | N73: SM0787D0 | O73: Bârghiș | P73: - | Q73: - | R73: - | S73: - | T73: SM-SD001 | U73: E-on Energie, Enel, E.on Gaz Furnizare | V73: Delgaz Grid | W73: - | X73: 2017-11-14 | Y73: 08:00:00 | Z73: 2017-11-14 | AA73: 17:00:00 | AB73: Mediaș | AC73: Efectuată | AE73: 2017-11-14 | AF73: 08:15:00 | AG73: 2017-11-14 | AH73: 17:20:00 | AI73: 2017-11-14 | AJ73: 12:19:00 | AK73: 2017-11-08 | AM73: 7710/13.11.2017 | AN73: DA | AQ73: -152.25 | AR73: 1 | AS73: 1 | AT73: 4.066666667 | AU73: 3 | AV73: 3 | AW73: 9.083333333 | AX73: 0 | AY73: 0
A74: 59 | B74: X | C74: - | D74: Înlocuire două tronsoane și montare robinet pe conducta 20” Bratei - Victoria | E74: 143682 | F74: Coveș | G74: Sibiu | H74: 467035.87 | I74: 497972.82 | J74: 467035.87 | K74: 497972.82 | L74: - | M74: - | N74: SM0781D0 | O74: Coveș | P74: - | Q74: - | R74: - | S74: - | T74: SM-SD001 | U74: E-on Energie, E.on Gaz Furnizare | V74: Delgaz Grid | W74: - | X74: 2017-11-14 | Y74: 08:00:00 | Z74: 2017-11-14 | AA74: 17:00:00 | AB74: Mediaș | AC74: Efectuată | AI74: 2017-11-14 | AJ74: 12:19:00 | AK74: 2017-11-08 | AM74: 7710/13.11.2017 | AN74: NU | AO74: A consumat din zestrea racordului | AQ74: Nu a fost afectat producator/consumator | AR74: - | AS74: - | AT74: Nu a fost afectat producator/consumator | AU74: - | AV74: - | AW74: Nu a fost afectat producator/consumator | AX74: - | AY74: -
A75: 60 | B75: X | C75: - | D75: Cuplare tronson relocat/protejat al conductei 20" Corbu - București Fir 1 | E75: 102605 | F75: Dragomirești | G75: Ilfov | H75: 574828.5978 | I75: 328018.3191 | J75: 578264.9485 | K75: 331833.035 | L75: - | M75: - | N75: SM0098D0 | O75: Dragomirești | P75: - | Q75: - | R75: - | S75: - | T75: SM-SD001 | U75: CEZ Vânzare, Engie România, Enel, Premier Enrgy, Energy Gas | V75: Distrigaz Sud Rețele | W75: - | X75: 2017-11-15 | Y75: 08:00:00 | Z75: 2017-11-15 | AA75: 20:00:00 | AB75: București | AC75: Efectuată | AE75: 2017-11-15 | AF75: 08:10:00 | AG75: 2017-11-15 | AH75: 19:50:00 | AK75: 2017-11-09 | AL75: 10:21:00 | AM75: 8844/13.11.2017 | AN75: DA | AO75: SAS a omis transmiterea FM catre BET | AQ75: -141.8166667 | AR75: 1 | AS75: 1 | AT75: Neinformat | AU75: 0 | AV75: 5 | AW75: 11.66666667 | AX75: 0 | AY75: 0
A76: 61 | B76: X | C76: - | D76: Cuplare tronson relocat/protejat al conductei 20" Corbu - București Fir 1 | E76: 179285 | F76: Rudeni | G76: Ilfov | H76: 574828.5978 | I76: 328018.3191 | J76: 578264.9485 | K76: 331833.035 | L76: - | M76: - | N76: SM1023D0 | O76: Rudeni | P76: - | Q76: - | R76: - | S76: - | T76: SM-SD001 | U76: Alpiq Romindustries, Nova Power, Engie România, OMV Petrom | V76: Distrigaz Sud Rețele | W76: - | X76: 2017-11-15 | Y76: 08:00:00 | Z76: 2017-11-15 | AA76: 20:00:00 | AB76: București | AC76: Efectuată | AE76: 2017-11-15 | AF76: 08:10:00 | AG76: 2017-11-15 | AH76: 19:50:00 | AK76: 2017-11-09 | AL76: 10:21:00 | AM76: 8844/13.11.2017 | AN76: DA | AO76: SAS a omis transmiterea FM catre BET | AQ76: -141.8166667 | AR76: 1 | AS76: 1 | AT76: Neinformat | AU76: 0 | AV76: 4 | AW76: 11.66666667 | AX76: 0 | AY76: 0
A77: 62 | B77: X | C77: - | D77: Scoaterea din funcțiune SRM Sălard - la solicitarea Delgaz Grid | E77: 31011 | F77: Sălard | G77: Bihor | H77: 275737.8406 | I77: 639288.1373 | J77: 275737.8406 | K77: 639288.1373 | L77: - | M77: - | N77: SM0364D0 | O77: Sălard | P77: - | Q77: - | R77: - | S77: - | T77: SM-SD001 | U77: Alpiq Romindustries, Distrigaz Vest, Engie România, E-on Energie, E-on Gaz Furnizare, Restart Energy | V77: Delgaz Grid | W77: - | X77: 2017-11-17 | Y77: 11:20:00 | Z77: 2017-11-17 | AA77: 15:20:00 | AB77: Cluj | AC77: Efectuată | AE77: 2017-11-17 | AF77: 11:20:00 | AG77: 2017-11-17 | AH77: 15:15:00 | AI77: 2017-11-17 | AJ77: 13:17:00 | AK77: 2017-11-17 | AL77: 10:45:00 | AM77: - | AN77: DA | AO77: La solicitarea Delgaz Grid | AQ77: -0.5833333333 | AR77: 1 | AS77: 1 | AT77: 1.95 | AU77: 6 | AV77: 6 | AW77: 3.916666667 | AX77: 0 | AY77: 0
A78: 63 | B78: X | C78: - | D78: Scoaterea din funcțiune SRM Godinești - la solicitarea Distrigaz Sud Rețele | E78: 80427 | F78: Godinești | G78: Gorj | H78: 339549.92 | I78: 389220.58 | J78: 339549.92 | K78: 389220.58 | L78: - | M78: - | N78: SM0960D0 | O78: Godinești | P78: - | Q78: - | R78: - | S78: - | T78: SM-SD001 | U78: Cez Vânzare, Engie România | V78: Distrigaz Sud Rețele | W78: - | X78: 2017-11-22 | Y78: 09:00:00 | Z78: 2017-11-22 | AA78: 15:00:00 | AB78: Craiova | AC78: Efectuată | AE78: 2017-11-22 | AF78: 09:00:00 | AG78: 2017-11-22 | AH78: 14:00:00 | AI78: 2017-11-21 | AJ78: 16:25:00 | AK78: 2017-11-20 | AL78: 13:54:00 | AM78: - | AN78: DA | AO78: La solicitarea Distrigaz Sud Rețele | AQ78: -43.1 | AR78: 1 | AS78: 1 | AT78: -16.58333333 | AU78: 2 | AV78: 2 | AW78: 5 | AX78: 0 | AY78: 0
A79: 64 | B79: X | C79: - | D79: Înlocuire contor cu pistoane rotative la SRM Simionești | E79: 120888 | F79: Simionești | G79: Neamț | H79: 641447.96 | I79: 609975.43 | J79: 641447.96 | K79: 609975.43 | L79: - | M79: - | N79: SM0957D0 | O79: Simionești | P79: - | Q79: - | R79: - | S79: - | T79: SM-SD001 | U79: Met Romania, Engie România, Energy Gas, WIEE România | V79: Cordun Gaz | W79: - | X79: 2017-11-23 | Y79: 11:00:00 | Z79: 2017-11-23 | AA79: 13:00:00 | AB79: Bacău | AC79: Efectuată | AE79: 2017-11-23 | AF79: 11:00:00 | AG79: 2017-11-23 | AH79: 12:40:00 | AI79: 2017-11-22 | AJ79: 12:26:00 | AK79: 2017-11-21 | AL79: 11:20:00 | AM79: 8077/21.11.2017 | AN79: NU | AQ79: Nu a fost afectat producator/consumator | AR79: - | AS79: - | AT79: Nu a fost afectat producator/consumator | AU79: - | AV79: - | AW79: Nu a fost afectat producator/consumator | AX79: - | AY79: -
A80: 65 | B80: X | C80: - | D80: Lucrări de mentenanță în SRM Henkel Heran București | E80: 179515 | F80: Pantelimon | G80: Ilfov | H80: 597907.15 | I80: 332508.51 | J80: 597907.15 | K80: 332508.51 | L80: - | M80: - | N80: SM0167D0 | O80: Henkel Heran București | P80: - | Q80: - | R80: - | S80: - | T80: SM-SD001 | U80: Premier Energy, Met România, Engie România, E-on Energie, OMV Petrom, C-Gaz&Energy | V80: Gaz Sud | W80: - | X80: 2017-11-23 | Y80: 10:00:00 | Z80: 2017-11-23 | AA80: 11:00:00 | AB80: București | AC80: Efectuată | AE80: 2017-11-23 | AF80: 10:03:00 | AG80: 2017-11-23 | AH80: 11:00:00 | AI80: 2017-11-22 | AJ80: 17:05:00 | AK80: 2017-11-22 | AL80: 12:21:00 | AM80: 9084/22.11.2017 | AN80: DA | AQ80: =IF(B80="X",IF(AN80="","Afectat sau NU?",IF(AN80="DA",IF(AK80="","Neinformat",((AK80+AL80)-(AE80+AF80))*24),IF(AN80="NU","Nu a fost afectat producator/consumator","Afectat sau NU?"))),"") -> -21.7 | AR80: =IF(B80="X",IF(AN80="DA",IF(AQ80<6,LEN(TRIM(V80))-LEN(SUBSTITUTE(V80,CHAR(44),""))+1,0),"-"),"") -> 1 | AS80: =IF(B80="X",IF(AN80="DA",LEN(TRIM(V80))-LEN(SUBSTITUTE(V80,CHAR(44),""))+1,"-"),"") -> 1 | AT80: =IF(B80="X",IF(AN80="","Afectat sau NU?",IF(AN80="DA",IF(AI80="","Neinformat",((AI80+AJ80)-(AE80+AF80))*24),IF(AN80="NU","Nu a fost afectat producator/consumator","Afectat sau NU?"))),"") -> -16.96666667 | AU80: =IF(B80="X",IF(AN80="DA",IF(AT80<6,LEN(TRIM(U80))-LEN(SUBSTITUTE(U80,CHAR(44),""))+1,0),"-"),"") -> 6 | AV80: =IF(B80="X",IF(AN80="DA",LEN(TRIM(U80))-LEN(SUBSTITUTE(U80,CHAR(44),""))+1,"-"),"") -> 6 | AW80: =IF(B80="X",IF(AN80="","Afectat sau NU?",IF(AN80="DA",((AG80+AH80)-(AE80+AF80))*24,IF(AN80="NU","Nu a fost afectat producator/consumator","Afectat sau NU?"))),"") -> 0.9500000001 | AX80: =IF(B80="X",IF(AN80="DA",IF(AW80>24,IF(AZ80="NU",0,LEN(TRIM(V80))-LEN(SUBSTITUTE(V80,CHAR(44),""))+1),0),"-"),"") -> 0 | AY80: =IF(B80="X",IF(AN80="DA",IF(AW80>24,LEN(TRIM(V80))-LEN(SUBSTITUTE(V80,CHAR(44),""))+1,0),"-"),"") -> 0 | BE80: =IF(C80="X",IF(AN80="","Afectat sau NU?",IF(AN80="DA",IF(AK80="","Neinformat",NETWORKDAYS(AK80+AL80,AE80+AF80,$BR$2:$BR$14)-1),IF(AN80="NU","Nu a fost afectat producator/consumator","Afectat sau NU?"))),"") ->  | BF80: =IF(C80="X",IF(AN80="DA",IF(AND(BE80>=5,AK80<>""),LEN(TRIM(V80))-LEN(SUBSTITUTE(V80,CHAR(44),""))+1,0),"-"),"") ->  | BG80: =IF(C80="X",IF(AN80="DA",LEN(TRIM(V80))-LEN(SUBSTITUTE(V80,CHAR(44),""))+1,"-"),"") ->  | BH80: =IF(C80="X",IF(AN80="","Afectat sau NU?",IF(AN80="DA",IF(AI80="","Neinformat",NETWORKDAYS(AI80+AJ80,AE80+AF80,$BR$2:$BR$14)-1),IF(AN80="NU","Nu a fost afectat producator/consumator","Afectat sau NU?"))),"") ->  | BI80: =IF(C80="X",IF(AN80="DA",IF(AND(BH80>=5,AI80<>""),LEN(TRIM(U80))-LEN(SUBSTITUTE(U80,CHAR(44),""))+1,0),"-"),"") ->  | BJ80: =IF(C80="X",IF(AN80="DA",LEN(TRIM(U80))-LEN(SUBSTITUTE(U80,CHAR(44),""))+1,"-"),"") ->  | BK80: =IF(C80="X",IF(AN80="","Afectat sau NU?",IF(AN80="DA",((AG80+AH80)-(Z80+AA80))*24,IF(AN80="NU","Nu a fost afectat producator/consumator","Afectat sau NU?"))),"") ->  | BL80: =IF(C80="X",IF(AN80<>"DA","-",IF(AND(AN80="DA",BK80<=0),LEN(TRIM(V80))-LEN(SUBSTITUTE(V80,CHAR(44),""))+1+LEN(TRIM(U80))-LEN(SUBSTITUTE(U80,CHAR(44),""))+1,0)),"") ->  | BM80: =IF(C80="X",IF(AN80="DA",LEN(TRIM(V80))-LEN(SUBSTITUTE(V80,CHAR(44),""))+1+LEN(TRIM(U80))-LEN(SUBSTITUTE(U80,CHAR(44),""))+1,"-"),"") -> 
A81: 66 | B81: X | C81: - | D81: Scoaterea din funcțiune SRM Arpașu de Jos - la solicitarea Delgaz Grid | E81: 143959 | F81: Arpașu de Jos | G81: Sibiu | H81: 471523.035 | I81: 475803.958 | J81: 471523.035 | K81: 475803.958 | L81: - | M81: - | N81: SM0814D0 | O81: Arpașu de Jos | P81: - | Q81: - | R81: - | S81: - | T81: SM-SD001 | U81: Engie România, E-on Energie, E.on Gaz Furnziare | V81: Delgaz Grid | W81: - | X81: 2017-11-25 | Y81: 09:00:00 | Z81: 2017-11-25 | AA81: 13:00:00 | AB81: Brașov | AC81: Efectuată | AE81: 2017-11-25 | AF81: 09:00:00 | AG81: 2017-11-25 | AH81: 16:50:00 | AI81: 2017-11-24 | AJ81: 15:50:00 | AK81: 2017-11-23 | AL81: 14:56:00 | AM81: 3717/24.11.2017 | AN81: DA | AO81: La solicitarea Delgaz Grid | AQ81: -42.06666667 | AR81: 1 | AS81: 1 | AT81: -17.16666667 | AU81: 3 | AV81: 3 | AW81: 7.833333333 | AX81: 0 | AY81: 0
A82: 67 | B82: X | C82: - | D82: Montare contor pentru efectuare proving la sistemul de măsură în SCV Urziceni - la solicitarea Romgaz | E82: 100683 | F82: Urziceni | G82: Ialomița | H82: 627365.7289 | I82: 359086.4056 | J82: 627365.7289 | K82: 359086.4056 | L82: - | M82: - | N82: - | O82: - | P82: - | Q82: - | R82: PM0028 | S82: Urziceni Extras | T82: VPM01 | U82: Alpha Metal, Alpiq Romindustries, Nova Power, Azomureș, Cez Vânzare, Complexul Energetic Hunedoara, Distrigaz Vest, Engie România, E-on Energie, Electrocentrale București, Energy Distribution, E.on Gaz Furnizare, Gaz Est, C-Gaz & Energy, Ottogaz, Premier Energy, OMV Petrom, Restart Energy, Romgaz, Tinmar, Wiee România | V82: Romgaz - Depozit | W82: - | X82: 2017-11-27 | Y82: 10:00:00 | Z82: 2017-11-27 | AA82: 13:00:00 | AB82: Brăila | AC82: Efectuată | AE82: 2017-11-27 | AF82: 10:48:00 | AG82: 2017-11-27 | AH82: 13:06:00 | AI82: 2017-11-27 | AJ82: 14:50:00 | AK82: 2017-11-20 | AL82: 10:47:00 | AM82: 8710/24.11.2017 | AN82: DA | AO82: La solicitarea Romgaz | AQ82: -168.0166667 | AR82: 1 | AS82: 1 | AT82: 4.033333333 | AU82: 21 | AV82: 21 | AW82: 2.3 | AX82: 0 | AY82: 0
A83: 68 | B83: X | C83: - | D83: Demontare contor folosit pentru efectuare proving la sistemul de măsură în SCV Urziceni - la solicitarea Romgaz | E83: 100683 | F83: Urziceni | G83: Ialomița | H83: 627365.7289 | I83: 359086.4056 | J83: 627365.7289 | K83: 359086.4056 | L83: - | M83: - | N83: - | O83: - | P83: - | Q83: - | R83: PM0028 | S83: Urziceni Extras | T83: VPM01 | U83: Alpha Metal, Alpiq Romindustries, Nova Power, Azomureș, Cez Vânzare, Complexul Energetic Hunedoara, Distrigaz Vest, Engie România, E-on Energie, Electrocentrale București, Energy Distribution, E.on Gaz Furnizare, Gaz Est, C-Gaz & Energy, Ottogaz, Premier Energy, OMV Petrom, Restart Energy, Romgaz, Tinmar, Wiee România | V83: Romgaz - Depozit | W83: - | X83: 2017-11-28 | Y83: 10:00:00 | Z83: 2017-11-28 | AA83: 13:00:00 | AB83: Brăila | AC83: Efectuată | AE83: 2017-11-28 | AF83: 10:15:00 | AG83: 2017-11-28 | AH83: 11:00:00 | AI83: 2017-11-28 | AJ83: 12:21:00 | AK83: 2017-11-20 | AL83: 10:47:00 | AM83: 8733/27.11.2017 | AN83: DA | AO83: La solicitarea Romgaz | AQ83: -191.4666667 | AR83: 1 | AS83: 1 | AT83: 2.1 | AU83: 21 | AV83: 21 | AW83: 0.75 | AX83: 0 | AY83: 0
A84: 69 | B84: X | C84: - | D84: Înlocuire contor în SRM Săbăoani | E84: 124206 | F84: Săbăoani | G84: Neamț | H84: 640933.1093 | I84: 613500.8714 | J84: 640933.1093 | K84: 613500.8714 | L84: - | M84: - | N84: SM0925D0 | O84: Săbăoani | P84: - | Q84: - | R84: - | S84: - | T84: SM-SD001 | U84: Engie România, Wiee România | V84: Cordun Gaz | W84: - | X84: 2017-11-29 | Y84: 11:00:00 | Z84: 2017-11-29 | AA84: 13:00:00 | AB84: Bacău | AC84: Efectuată | AE84: 2017-11-29 | AF84: 11:43:00 | AG84: 2017-11-29 | AH84: 13:15:00 | AI84: 2017-11-28 | AJ84: 14:34:00 | AK84: 2017-11-27 | AM84: 8282/28.11.2017 | AN84: NU | AQ84: Nu a fost afectat producator/consumator | AR84: - | AS84: - | AT84: Nu a fost afectat producator/consumator | AU84: - | AV84: - | AW84: Nu a fost afectat producator/consumator | AX84: - | AY84: -
A85: 70 | B85: X | C85: - | D85: Cuplare instalați tehnologice in SRM Macon Bârcea + Diverși | E85: 86687 | F85: Bârcea | G85: Hunedoara | H85: 340555.8664 | I85: 484362.7392 | J85: 340555.8664 | K85: 484362.7392 | L85: - | M85: - | N85: SM0298D0 | O85: Macon Bârcea + Diverși | P85: - | Q85: - | R85: - | S85: - | T85: SM-SD001 | U85: Engie România, E-on Energie, E.on Gaz Furnizare, Gaz Est | V85: Delgaz Grid | W85: - | X85: 2017-12-04 | Y85: 08:00:00 | Z85: 2017-12-04 | AA85: 18:00:00 | AB85: Arad | AC85: Efectuată | AE85: 2017-12-04 | AF85: 08:10:00 | AG85: 2017-12-04 | AH85: 16:45:00 | AI85: 2017-12-04 | AJ85: 11:12:00 | AK85: 2017-11-23 | AM85: 11979/29.11.2017 | AN85: DA | AQ85: -272.1666667 | AR85: 1 | AS85: 1 | AT85: 3.033333333 | AU85: 4 | AV85: 4 | AW85: 8.583333333 | AX85: 0 | AY85: 0
A86: 71 | B86: X | C86: - | D86: Cuplare instalație de reglare măsurare provizorie în vederea modernizării SRM Ișalnița | E86: 70094 | F86: Ișalnița | G86: Dolj | H86: 399102.2883 | I86: 320723.9759 | J86: 399102.2883 | K86: 320723.9759 | L86: - | M86: - | N86: SM0207D6 | O86: CET Ișalnița | P86: - | Q86: - | R86: - | S86: - | T86: SM-CF001 | U86: Tinmar | V86: Complexul Energetic Oltenia | W86: - | X86: 2017-12-04 | Y86: 08:00:00 | Z86: 2017-12-04 | AA86: 20:00:00 | AB86: Craiova | AC86: Efectuată | AE86: 2017-12-04 | AF86: 08:45:00 | AG86: 2017-12-04 | AH86: 18:30:00 | AI86: 2017-12-04 | AJ86: 11:12:00 | AK86: 2017-11-29 | AL86: 10:06:00 | AM86: 3207/29.11.2017 | AN86: DA | AQ86: -118.65 | AR86: 1 | AS86: 1 | AT86: 2.45 | AU86: 1 | AV86: 1 | AW86: 9.75 | AX86: 0 | AY86: 0
A87: 72 | B87: X | C87: - | D87: Remediere defect pe conducta 14" Racord PM Mădulari | E87: 171218 | F87: Mădulari | G87: Vîlcea | H87: 430371.5667 | I87: 358245.2462 | J87: 428807.4748 | K87: 356611.1259 | L87: - | M87: - | N87: - | O87: - | P87: - | Q87: - | R87: PM0191 | S87: Mădulari | T87: PM-PP001 | U87: Alpha Metal, Alpiq Romindustries, Azomureș, Nova Power, Cez Vânzare, Cis Gaz, Distrigaz Vest, Engie România, Axpo Energy, E-on Energie, E.on Furnizare, Enel, Gaz Est, C-Gaz & Energy, Met România, OMV Petrom, Premier Energy, Energy Gas, Restart Energy, RWE Supply, Saint Gobain, WIEE România | V87: OMV Petrom | W87: - | X87: 2017-12-05 | Y87: 10:00:00 | Z87: 2017-12-05 | AA87: 15:00:00 | AB87: Craiova | AC87: Efectuată | AE87: 2017-12-05 | AF87: 10:00:00 | AG87: 2017-12-05 | AH87: 12:30:00 | AI87: 2017-12-05 | AJ87: 13:50:00 | AK87: 2017-12-04 | AL87: 12:09:00 | AM87: 3242/05.12.2017 | AN87: DA | AQ87: -21.85 | AR87: 1 | AS87: 1 | AT87: 3.833333333 | AU87: 22 | AV87: 22 | AW87: 2.5 | AX87: 0 | AY87: 0
A88: 73 | B88: X | C88: - | D88: Cuplare deviere conductă 16” Gura Șuții - București, zona Dragomirești | E88: 102605 | F88: Dragomirești Vale | G88: Ilfov | H88: 574824.61 | I88: 328018.73 | J88: 575177.67 | K88: 327177.67 | L88: - | M88: - | N88: SM1004D0 | O88: Portland Chiajna | P88: - | Q88: - | R88: - | S88: - | T88: SM-SD001 | U88: Alpiq Romindustries, Nova Power, Cez Vânzare, Cis Gaz, Distrigaz Vest, Engie România, Axpo Energy, E-on Energie, Electrocentrale București, Energy Distribution, Enel Energie, Gaz Est, C-Gaz&Energy, Premier Energy, OMV Petrom, Energy Gas, Restart Energy, RWE Supply, Tinmar, WIEE România, Met România | V88: Distrigaz Sud Rețele | W88: - | X88: 2017-12-20 | Y88: 07:00:00 | Z88: 2017-12-20 | AA88: 19:00:00 | AB88: București | AC88: Efectuată | AE88: 2017-12-20 | AF88: 08:33:00 | AG88: 2017-12-20 | AH88: 19:27:00 | AI88: 2017-12-19 | AJ88: 17:05:00 | AK88: 2017-12-14 | AL88: 11:59:00 | AM88: 9542/19.12.2017 | AN88: DA | AQ88: =IF(B88="X",IF(AN88="","Afectat sau NU?",IF(AN88="DA",IF(((AK88+AL88)-(AE88+AF88))*24<-720,"Neinformat",((AK88+AL88)-(AE88+AF88))*24),"Nu a fost afectat producator/consumator")),"") -> -140.5666667 | AR88: 1 | AS88: 1 | AT88: =IF(B88="X",IF(AN88="","Afectat sau NU?",IF(AN88="DA",IF(((AI88+AJ88)-(AE88+AF88))*24<-720,"Neinformat",((AI88+AJ88)-(AE88+AF88))*24),"Nu a fost afectat producator/consumator")),"") -> -15.46666667 | AU88: 21 | AV88: 21 | AW88: =IF(B88="X",IF(AN88="","Afectat sau NU?",IF(AN88="DA",((AG88+AH88)-(AE88+AF88))*24,"Nu a fost afectat producator/consumator")),"") -> 10.9 | AX88: 0 | AY88: 0 | BE88: =IF(C88="X",IF(AN88="","Afectat sau NU?",IF(AN88="DA",IF(AK88="","Neinformat",NETWORKDAYS(AK88+AL88,AE88+AF88,$BR$2:$BR$14)-1),"Nu a fost afectat producator/consumator")),"") ->  | BH88: =IF(C88="X",IF(AN88="","Afectat sau NU?",IF(AN88="DA",IF(AI88="","Neinformat",NETWORKDAYS(AI88+AJ88,AE88+AF88,$BR$2:$BR$14)-1),"Nu a fost afectat producator/consumator")),"") ->  | BK88: =IF(C88="X",IF(AN88="","Afectat sau NU?",IF(AN88="DA",((AG88+AH88)-(Z88+AA88))*24,"Nu a fost afectat producator/consumator")),"") -> 
A89: 74 | B89: X | C89: - | D89: Cuplare deviere conductă 16” Gura Șuții - București, zona Dragomirești | E89: 179249 | F89: Chiajna | G89: Ilfov | H89: 574824.61 | I89: 328018.73 | J89: 575177.67 | K89: 327177.67 | L89: - | M89: - | N89: SM0911D0 | O89: CEFIN (IVECO) Chiajna | P89: - | Q89: - | R89: - | S89: - | T89: SM-SD001 | U89: Alpiq Romindustries, Nova Power, Cez Vânzare, Cis Gaz, Distrigaz Vest, Engie România, Axpo Energy, E-on Energie, Electrocentrale București, Energy Distribution, Enel Energie, Gaz Est, C-Gaz&Energy, Premier Energy, OMV Petrom, Energy Gas, Restart Energy, RWE Supply, Tinmar, WIEE România, Met România | V89: Distrigaz Sud Rețele | W89: - | X89: 2017-12-20 | Y89: 07:00:00 | Z89: 2017-12-20 | AA89: 19:00:00 | AB89: București | AC89: Efectuată | AE89: 2017-12-20 | AF89: 08:30:00 | AG89: 2017-12-20 | AH89: 19:27:00 | AI89: 2017-12-19 | AJ89: 17:05:00 | AK89: 2017-12-14 | AL89: 11:59:00 | AM89: 9542/19.12.2017 | AN89: DA | AQ89: -140.5166667 | AR89: 1 | AS89: 1 | AT89: -15.41666667 | AU89: 21 | AV89: 21 | AW89: 10.95 | AX89: 0 | AY89: 0
A90: 75 | B90: X | C90: - | D90: Remediere defect pe conducta 10” Alunu - Zătreni, zona separator Văleni | E90: 170346 | F90: Grădiștea | G90: Vâlcea | H90: 408180.689 | I90: 379756.527 | J90: 408180.689 | K90: 379756.527 | L90: - | M90: - | N90: - | O90: - | P90: - | Q90: - | R90: PM0053 | S90: Grădiștea | T90: PM-PP001 | U90: Alpha Metal, Alpiq Romindustries, Nova Power, Cez Vânzare, Cis Gaz, Complex Energetic Hunedoara, Distrigaz Vest, Engie România, E-on Energie, Electrocentrale București, Energy Distribution, E.on Gaz Furnizare, C-Gaz&Energy, Gaz Est, Met România, Ottogaz, Premier Energy, Petrom, Energy Gas, Restart Energy, Romgaz, RWE Supply, Saint Gobain, Tinmar, WIEE România | V90: Romgaz | W90: - | X90: 2017-12-23 | Y90: 09:40:00 | Z90: 2017-12-23 | AA90: 14:30:00 | AB90: Craiova | AC90: Efectuată | AE90: 2017-12-23 | AF90: 09:40:00 | AG90: 2017-12-23 | AH90: 14:00:00 | AK90: 2017-12-23 | AL90: 09:00:00 | AM90: - | AN90: DA | AO90: mail de informare primit de la Dan Lazarescu sâmbătă 23 dec, zi nelucrătoare | AQ90: -0.6666666667 | AR90: 1 | AS90: 1 | AT90: Neinformat | AU90: 0 | AV90: 25 | AW90: 4.333333333 | AX90: 0 | AY90: 0
A91: =A90+1 -> 76 | B91: X | C91: - | D91: Reducere temporară a presiunii de ieșire din SRM Colonești - la solicitarea Distrigaz Sud Rețele | E91: 126228 | F91: Colonești | G91: Olt | H91: 475916.1214 | I91: 349886.8171 | J91: 475916.1214 | K91: 349886.8171 | L91: SM0964D0 | M91: Colonești | N91: - | O91: - | P91: - | Q91: - | R91: - | S91: - | T91: SM-SD001 | U91: Premier Energy, Engie România | V91: Distrigaz Sud Rețele | W91: - | X91: 2018-01-10 | Y91: 10:30:00 | Z91: 2018-01-10 | AA91: 14:30:00 | AB91: Craiova | AC91: Efectuată | AE91: 2018-01-10 | AF91: 10:30:00 | AG91: 2018-01-10 | AH91: 14:30:00 | AK91: 2018-01-09 | AL91: 09:24:00 | AM91: - | AN91: NU | AO91: La solicitarea Distrigaz Sud Rețele | AQ91: Nu a fost afectat producator/consumator | AR91: - | AS91: - | AT91: Nu a fost afectat producator/consumator | AU91: - | AV91: - | AW91: Nu a fost afectat producator/consumator | AX91: - | AY91: -
A92: 77 | B92: X | C92: - | D92: Probleme tehnice în instalația tehnologică SRM Porumbenii Mici | E92: 85127 | F92: Porumbenii Mici | G92: Harghita | H92: 508390.27 | I92: 530075.37 | J92: 508390.27 | K92: 530075.37 | L92: - | M92: - | N92: SM0382D0 | O92: Porumbenii Mici | P92: - | Q92: - | R92: - | S92: - | T92: SM-SD001 | U92: Alpiq Romindustries, Met România | V92: Harghita Gaz | W92: - | X92: 2018-01-14 | Y92: 17:35:00 | Z92: 2018-01-14 | AA92: 18:35:00 | AB92: Brașov | AC92: Efectuată | AE92: 2018-01-14 | AF92: 17:35:00 | AG92: 2018-01-14 | AH92: 18:35:00 | AK92: 2018-01-14 | AL92: 17:37:00 | AM92: - | AN92: NU | AQ92: Nu a fost afectat producator/consumator | AR92: - | AS92: - | AT92: Nu a fost afectat producator/consumator | AU92: - | AV92: - | AW92: Nu a fost afectat producator/consumator | AX92: - | AY92: -
A93: 78 | B93: - | C93: X | D93: Sistematizare conducte în zona NT Moșu | E93: 101564 | F93: Butimanu | G93: Dîmbovița | H93: 575362.143 | I93: 342970.907 | J93: 571035.058 | K93: 354388.152 | L93: - | M93: - | N93: SM1066D0 | O93: Butimanu Înmagazinat | P93: - | Q93: - | R93: - | S93: - | T93: VSM01 | U93: Engie România, WIEE România | V93: Romgaz - Depozit | W93: aprilie - iunie 2018 octombrie 2018 - septembrie 2019 | AB93: București | AC93: Se amână pentru anul gazier 2018-2019 | AD93: Modificare proiect / în curs de obținere a unei noi autorizații de construcție | BE93: Afectat sau NU? | BF93: - | BG93: - | BH93: Afectat sau NU? | BI93: - | BJ93: - | BK93: Afectat sau NU? | BL93: - | BM93: -
A94: 79 | B94: - | C94: X | D94: Modernizare alimentare cu gaze naturale a municipiului Ploiești | E94: 130892 | F94: Strejnic | G94: Prahova | H94: 582017.656 | I94: 384857.523 | J94: 580681.363 | K94: 385825.565 | L94: - | M94: - | N94: SM0124D0 | O94: Strejnic | P94: - | Q94: - | R94: - | S94: - | T94: SM-SD001 | U94: Engie România, Premier Energy | V94: Distrigaz Sud Rețele | W94: aprilie - iunie 2018 octombrie 2018 - septembrie 2019 | AB94: București | AC94: Se amână pentru anul gazier 2018-2019 | AD94: În curs de obținere a Acordului de acces în teren | BE94: Afectat sau NU? | BF94: - | BG94: - | BH94: Afectat sau NU? | BI94: - | BJ94: - | BK94: Afectat sau NU? | BL94: - | BM94: -
A95: 80 | B95: - | C95: X | D95: Modernizare alimentare cu gaze naturale a municipiului Ploiești | E95: 130534 | F95: Ploiești | G95: Prahova | H95: 582017.656 | I95: 384857.523 | J95: 580681.363 | K95: 385825.565 | L95: - | M95: - | N95: SM0130D1 | O95: SC VEGA Ploiești | P95: - | Q95: - | R95: - | S95: - | T95: SM-CF001 | U95: OMV Petrom | V95: Rompetrol Vega Ploiești | W95: aprilie - iunie 2018 noiembrie 2018 | AB95: București | AC95: Se amână pentru anul gazier 2018-2019 | AD95: Simultan cu revizia programată la Vega Ploiești de către Rompertrol Rafinărie | BE95: Afectat sau NU? | BF95: - | BG95: - | BH95: Afectat sau NU? | BI95: - | BJ95: - | BK95: Afectat sau NU? | BL95: - | BM95: -
A96: 81 | B96: - | C96: X | D96: Modernizare alimentare cu gaze naturale a municipiului Ploiești | E96: 130534 | F96: Ploiești | G96: Prahova | H96: 582017.656 | I96: 384857.523 | J96: 580681.363 | K96: 385825.565 | L96: - | M96: - | N96: SM0130D2 | O96: Ploiești Nord colonie | P96: - | Q96: - | R96: - | S96: - | T96: SM-SD001 | U96: Cez Vânzare, Engie România, E-on Enrgie, Met România, Premier Enrgy, OMV Petrom, Energy Gas, Restart Energy | V96: Distrigaz Sud Rețele | W96: aprilie - iunie 2018 noiembrie 2018 | AB96: București | AC96: Se amână pentru anul gazier 2018-2019 | AD96: Simultan cu revizia programată la Vega Ploiești de către Rompertrol Rafinărie | BE96: Afectat sau NU? | BF96: - | BG96: - | BH96: Afectat sau NU? | BI96: - | BJ96: - | BK96: Afectat sau NU? | BL96: - | BM96: -
A97: 82 | B97: - | C97: X | D97: Modernizare alimentare cu gaze naturale a municipiului Ploiești | E97: 132075 | F97: Stoenești | G97: Prahova | H97: 582017.656 | I97: 384857.523 | J97: 580681.363 | K97: 385825.565 | L97: - | M97: - | N97: SM0121D0 | O97: Stoienești | P97: - | Q97: - | R97: - | S97: - | T97: SM-SD001 | U97: Engie România, E-on Energie | V97: Distrigaz Sud Rețele | W97: aprilie - iunie 2018 octombrie 2018 - septembrie 2019 | AB97: București | AC97: Se amână pentru anul gazier 2018-2019 | AD97: În curs de obținere a Acordului de acces în teren | BE97: Afectat sau NU? | BF97: - | BG97: - | BH97: Afectat sau NU? | BI97: - | BJ97: - | BK97: Afectat sau NU? | BL97: - | BM97: -
A98: 83 | B98: - | C98: X | D98: Modernizare alimentare cu gaze naturale a municipiului Ploiești | E98: 132075 | F98: Aricești Rahtivani | G98: Prahova | H98: 565988.752 | I98: 384473.089 | J98: 566751.095 | K98: 384322.746 | L98: - | M98: - | N98: SM0120D0 | O98: Aricești | P98: - | Q98: - | R98: - | S98: - | T98: SM-SD001 | U98: Engie România, Energy Gas, Tinmar | V98: Distrigaz Sud Rețele | W98: aprilie - iunie 2018 octombrie 2018 - septembrie 2019 | AB98: București | AC98: Se amână pentru anul gazier 2018-2019 | AD98: În curs de obținere a Acordului de acces în teren | BE98: Afectat sau NU? | BF98: - | BG98: - | BH98: Afectat sau NU? | BI98: - | BJ98: - | BK98: Afectat sau NU? | BL98: - | BM98: -
A99: 84 | B99: - | C99: X | D99: Modernizare alimentare cu gaze naturale a municipiului Ploiești | E99: 130534 | F99: Ploiești | G99: Prahova | H99: 578793.968 | I99: 380660.897 | J99: 565576.08 | K99: 380715.142 | L99: - | M99: - | N99: SM0122D0 | O99: Crângul lui Bot | P99: - | Q99: - | R99: - | S99: - | T99: SM-SD001 | U99: Engie România | V99: Distrigaz Sud Rețele | W99: aprilie - iunie 2018 octombrie 2018 - septembrie 2019 | AB99: București | AC99: Se amână pentru anul gazier 2018-2019 | AD99: În curs de obținere a Acordului de acces în teren | BE99: Afectat sau NU? | BF99: - | BG99: - | BH99: Afectat sau NU? | BI99: - | BJ99: - | BK99: Afectat sau NU? | BL99: - | BM99: -
A100: 85 | B100: - | C100: X | D100: Montare gară de primire godevil pe conducta 20” Șendreni - Albești | E100: 49661 | F100: Bărbuncești | G100: Buzău | H100: 625768.21 | I100: 414382.25 | J100: 625768.21 | K100: 414382.25 | L100: - | M100: - | N100: - | O100: - | P100: PM0032 | Q100: Bărbuncești | R100: - | S100: - | T100: PM-PP001 | U100: Alpha Metal, Nova Power, Cez Vânzare, Cis Gaz, Distrigaz Vest, Engie România, E-on Energie, Energy Distribution, E.on Gaz Furnizare, Met România, Next Energy, Premier Energy, OMV Petrom, Energy Gas, Restart Energy, Romgaz, Saint Gobain, WIEE România | V100: OMV Petrom | W100: aprilie - iunie mai - iunie 2018 septembrie 2018 | X100: 2018-09-11 | Y100: 07:00:00 | Z100: 2018-09-11 | AA100: 19:00:00 | AB100: Brăila | AC100: Efectuată (NU a mai fost necesară limitarea) | AD100: Ordin de sistare a lucrărilor datorat condițiilor meteo nefavorabile și accesului dificil în teren în curs de achiziție materiale | AI100: 2018-09-04 | AJ100: 11:02:00 | AK100: 2018-09-04 | AL100: 10:41:00 | AM100: 7204/11.09.2018 | AN100: NU | AO100: Montat by-pass conform FM 7164/10.09.2018 | BE100: Nu a fost afectat producator/consumator | BF100: - | BG100: - | BH100: Nu a fost afectat producator/consumator | BI100: - | BJ100: - | BK100: Nu a fost afectat producator/consumator | BL100: - | BM100: -
A101: 86 | B101: - | C101: X | D101: Reabilitare conductă 20” Hurezani - Hațeg, jud. Hunedoara, subtraversare DN66 | E101: 78463 | F101: Țicleni | G101: Gorj | H101: 376120.48 | I101: 380646.45 | J101: 376120.48 | K101: 380646.45 | L101: - | M101: - | N101: - | O101: - | P101: PM0272 | Q101: Dezbenzinare Țicleni | R101: - | S101: - | T101: PM-PP001 | U101: Alpha Metal, Alpiq Romindustries, Cez Vânzare, Cis Gaz, Distrigaz Vest, Engie România, E-on Energie, Energy Distribution, Enel, E.on Gaz Furnizare, Gaz Est, C-Gaz Energy, Met România, Next Energy, Ottogaz, Premier Energy, OMV Petrom, Energy Gas, Restart Energy, Saint Gobain, Tinmar, WIEE România | V101: OMV Petrom | W101: aprilie - septembrie mai - octombrie 2018 septembrie - octombrie 2018 | AB101: Craiova | AD101: Avize neobținute în totalitate momentan | BE101: Afectat sau NU? | BF101: - | BG101: - | BH101: Afectat sau NU? | BI101: - | BJ101: - | BK101: Afectat sau NU? | BL101: - | BM101: -
A102: 87 | B102: - | C102: X | D102: Reabilitare conductă 20” Hurezani - Hațeg, jud. Hunedoara, subtraversare DN66 | E102: 71064 | F102: Brădești | G102: Dolj | H102: 393288.95 | I102: 331381.36 | J102: 393288.95 | K102: 331381.36 | M102: - | N102: - | O102: - | P102: PM0277 | Q102: Brădești | R102: - | S102: - | T102: PM-PP001 | U102: Alpha Metal, Nova Power, Cez Vânzare, Cis Gaz, Distrigaz Vest, Engie România, E-on Energie, Energy Distribution, E.on Gaz Furnizare, Gaz Est, Met România, Next Energy, Premier Energy, OMV Petrom, Energy Gas, Restart Energy, Saint Gobain, WIEE România | V102: OMV Petrom | W102: aprilie - septembrie mai - octombrie 2018 septembrie - octombrie 2018 | AB102: Craiova | AD102: Avize neobținute în totalitate momentan | BE102: Afectat sau NU? | BF102: - | BG102: - | BH102: Afectat sau NU? | BI102: - | BJ102: - | BK102: Afectat sau NU? | BL102: - | BM102: -
A103: 88 | B103: - | C103: X | D103: Reabilitare conductă 20” Hurezani - Hațeg, jud. Hunedoara, subtraversare DN66 | E103: 81816 | F103: Bibești | G103: Gorj | H103: 381014.72 | I103: 363384.3 | J103: 381014.72 | K103: 363384.3 | L103: - | M103: - | N103: - | O103: - | P103: PM0196 | Q103: Bibești | R103: - | S103: - | T103: PM-PP001 | U103: Cez Vânzare, Distrigaz Vest, Engie România, E.on Energie, Enel, Energia Gas & Power, Met România, Next Energy, Premier Energy, OMV Petrom, Restart Energy, RWE Supply, Wiee România | V103: Romgaz | W103: aprilie - septembrie mai - octombrie 2018 septembrie - octombrie 2018 | AB103: Craiova | AD103: Avize neobținute în totalitate momentan | BE103: Afectat sau NU? | BF103: - | BG103: - | BH103: Afectat sau NU? | BI103: - | BJ103: - | BK103: Afectat sau NU? | BL103: - | BM103: -
A104: 89 | B104: - | C104: X | D104: Reabilitare conductă 20” Hurezani - Hațeg, jud. Hunedoara, subtraversare DN66 | E104: 78828 | F104: Socu | G104: Gorj | H104: 379651.04 | I104: 377092.85 | J104: 379651.04 | K104: 377092.85 | L104: - | M104: - | N104: - | O104: - | P104: PM0065 | Q104: Socu | R104: - | S104: - | T104: PM-PP001 | U104: Alpha Metal, Nova Power, Complexul Energetic Hunedoara, Engie România, E-on Energie, Electrocentrale București, E.on Gaz Furnizare, Ottogaz, Premier Energy, Restart Energy, Romgaz, Tinmar | V104: Amronco Energy | W104: aprilie - septembrie mai - octombrie 2018 septembrie - octombrie 2018 | AB104: Craiova | AD104: Avize neobținute în totalitate momentan | BE104: Afectat sau NU? | BF104: - | BG104: - | BH104: Afectat sau NU? | BI104: - | BJ104: - | BK104: Afectat sau NU? | BL104: - | BM104: -
A105: 90 | B105: - | C105: X | D105: Reabilitare conductă 20” Hurezani - Hațeg, jud. Hunedoara, subtraversare DN66 | E105: 78828 | F105: Socu | G105: Gorj | H105: 379648.41 | I105: 377091.82 | J105: 379648.41 | K105: 377091.82 | L105: - | M105: - | N105: - | O105: - | P105: PM0289 | Q105: Socu II | R105: - | S105: - | T105: PM-PP001 | U105: Alpha Metal, Nova Power, Complexul Energetic Hunedoara, Engie România, E-on Energie, Electrocentrale București, E.on Gaz Furnizare, Ottogaz, Premier Energy, Restart Energy, Romgaz, Tinmar | V105: Amronco Energy | W105: aprilie - septembrie mai - octombrie 2018 septembrie - octombrie 2018 | AB105: Craiova | AD105: Avize neobținute în totalitate momentan | BE105: Afectat sau NU? | BF105: - | BG105: - | BH105: Afectat sau NU? | BI105: - | BJ105: - | BK105: Afectat sau NU? | BL105: - | BM105: -
A106: 91 | B106: - | C106: X | D106: Conducta 12” Drăgășani - Caracal, subtraversare râu Olt | E106: 125472 | F106: Caracal | G106: Olt | H106: 460257.4093 | I106: 298101.539 | J106: 449764.9228 | K106: 290090.9701 | L106: - | M106: - | N106: SM0934D0 | O106: Caracal | P106: - | Q106: - | R106: - | S106: - | T106: SM-SD001 | U106: Cez Vânzare, Cis Gaz, Engie România, E-on Energie, Enel, Met România, Premier Energy, Energy Gas, Restart Energy, RWE Supply, Tinmar | V106: Distrigaz Sud Rețele | W106: iulie - septembrie 2018 octombrie - decembrie 2019 aprilie - septembrie 2020 | AB106: Craiova | AC106: Se amână pentru anul gazier 2019-2020 | AD106: Procedură de licitație nefinalizată (întocmire raport anulare) | BE106: Afectat sau NU? | BF106: - | BG106: - | BH106: Afectat sau NU? | BI106: - | BJ106: - | BK106: Afectat sau NU? | BL106: - | BM106: -
A107: 92 | B107: - | C107: X | D107: Conducta 20” Schitu Golești - Țigveni - refacere traversare râu Argeș, zona Valea Danului, et.I și et.II | E107: 13819 | F107: Albeștii de Argeș | G107: Argeș | H107: 474251.5922 | I107: 409341.5399 | J107: 461815.1715 | K107: 401058.3432 | L107: - | M107: - | N107: SM1244D0 | O107: Albești de Argeș | P107: - | Q107: - | R107: - | S107: - | T107: SM-SD001 | U107: Cez Vânzare, Engie România, Enel | V107: Distrigaz Sud Rețele | W107: iulie - septembrie 2018 iulie - septembrie 2019 | AB107: Craiova | AC107: Se amână pentru anul gazier 2018-2019 | AD107: Procedură de licitație nefinalizată (evaluare financiară) | BE107: Afectat sau NU? | BF107: - | BG107: - | BH107: Afectat sau NU? | BI107: - | BJ107: - | BK107: Afectat sau NU? | BL107: - | BM107: -
A108: 93 | B108: - | C108: X | D108: Conducta 20” Schitu Golești - Țigveni - refacere traversare râu Argeș, zona Valea Danului, et.I și et.II | E108: 19249 | F108: Blaju | G108: Argeș | H108: 474251.5922 | I108: 409341.5399 | J108: 461815.1715 | K108: 401058.3432 | L108: - | M108: - | N108: - | O108: - | P108: - | Q108: - | R108: PM0288 | S108: Ciofrângeni | T108: PM-PP001 | U108: Cez Vânzare, Distrigaz Vest, Engie România, E-on Energie, Enel, Energia Gas & Power, Met România, Energy Gas Provider, Restart Energy, RWE Supply, WIEE România | V108: Amronco Energy | W108: iulie - septembrie 2018 iulie - septembrie 2019 | AB108: Craiova | AC108: Se amână pentru anul gazier 2018-2019 | AD108: Procedură de licitație nefinalizată (evaluare financiară) | BE108: Afectat sau NU? | BF108: - | BG108: - | BH108: Afectat sau NU? | BI108: - | BJ108: - | BK108: Afectat sau NU? | BL108: - | BM108: -
A109: 94 | B109: - | C109: X | D109: Înlocuire conductă de racord SRM Comănești II | E109: 20821 | F109: Comănești | G109: Bacău | H109: 613079.43 | I109: 546959.34 | J109: 613298.44 | K109: 546937.11 | L109: - | M109: - | N109: SM1156D0 | O109: Comănești II | P109: - | Q109: - | R109: - | S109: - | T109: SM-SD001 | U109: Cez Vânzare, Cis Gaz, Engie România, E-on Energie, Enel, E.on Gaz Furnizare, Premier Energy, OMV Petrom, Restart Energy, Tinmar | V109: Delgaz Grid | W109: aprilie - iunie 2018 | AB109: Bacău | AC109: Efectuată | AO109: A fost efectuata cu o luna inainte si publicata la pozitia 229 | BE109: Afectat sau NU? | BF109: - | BG109: - | BH109: Afectat sau NU? | BI109: - | BJ109: - | BK109: Afectat sau NU? | BL109: - | BM109: -
A110: 95 | B110: - | C110: X | D110: Adaptare la teren SRM DEJ II | E110: 55008 | F110: Dej | G110: Cluj | H110: 415417.21 | I110: 629079.68 | J110: 415417.21 | K110: 629079.68 | L110: - | M110: - | N110: SM0546D1 | O110: Dej II oraș | P110: - | Q110: - | R110: - | S110: - | T110: SM-SD001 | U110: Alpiq Romindustries, Nova Power, Cez Vânzare, Cis Gaz, Engie România, E-on Energie, Enel, Energia Gas & Power, E.on Gaz Furnizare, Gaz Est, Premier Energy, OMV Petrom, Restart Energy, RWE Supply, Tinmar | V110: Delgaz Grid | W110: aprilie - iunie mai - iunie 2018 | AB110: Cluj | AD110: În funcție de disponibilitatea Sucursalei Mediaș | BE110: Afectat sau NU? | BF110: - | BG110: - | BH110: Afectat sau NU? | BI110: - | BJ110: - | BK110: Afectat sau NU? | BL110: - | BM110: -
A111: 96 | B111: - | C111: X | D111: Adaptare la teren SRM DEJ II | E111: 55008 | F111: Dej | G111: Cluj | H111: 415417.21 | I111: 629079.68 | J111: 415417.21 | K111: 629079.68 | L111: - | M111: - | N111: SM0546D2 | O111: Dej II industrie | P111: - | Q111: - | R111: - | S111: - | T111: SM-SD001 | U111: Alpiq Romindustries, Nova Power, Cez Vânzare, Cis Gaz, Engie România, E-on Energie, Enel, Energia Gas & Power, E.on Gaz Furnizare, Gaz Est, Premier Energy, OMV Petrom, Restart Energy, RWE Supply, Tinmar | V111: Delgaz Grid | W111: aprilie - iunie mai - iunie 2018 | AB111: Cluj | AD111: În funcție de disponibilitatea Sucursalei Mediaș | BE111: Afectat sau NU? | BF111: - | BG111: - | BH111: Afectat sau NU? | BI111: - | BJ111: - | BK111: Afectat sau NU? | BL111: - | BM111: -
A112: 97 | B112: - | C112: X | D112: Punere în siguranță conducta de racord SRM Răcăciuni, zona popas turistic Dumbrava | E112: 24766 | F112: Răcăciuni | G112: Bacău | H112: 653314.98 | I112: 541191.14 | J112: 653314.98 | K112: 541191.14 | L112: - | M112: - | N112: SM0505D0 | O112: Răcăciuni | P112: - | Q112: - | R112: - | S112: - | T112: SM-SD001 | U112: E-on Energie, E.on Gaz Furnizare | V112: Delgaz Grid | W112: iulie - septembrie 2018 octombrie 2018 | AB112: Bacău | AC112: Se amână pentru anul gazier 2018-2019 | AD112: Procedura de licitație nefinalizată | AR112: =IF(B112="X",IF(AN112="DA",IF(AQ112<6,LEN(TRIM(V112))-LEN(SUBSTITUTE(V112,CHAR(44),""))+1,0),"-"),"") ->  | AS112: =IF(B112="X",IF(AN112="DA",LEN(TRIM(V112))-LEN(SUBSTITUTE(V112,CHAR(44),""))+1,"-"),"") ->  | AU112: =IF(B112="X",IF(AN112="DA",IF(AT112<6,LEN(TRIM(U112))-LEN(SUBSTITUTE(U112,CHAR(44),""))+1,0),"-"),"") ->  | AX112: =IF(B112="X",IF(AN112="DA",IF(AW112>24,IF(AZ112="NU",0,LEN(TRIM(V112))-LEN(SUBSTITUTE(V112,CHAR(44),""))+1),0),"-"),"") ->  | AY112: =IF(B112="X",IF(AN112="DA",IF(AW112>24,LEN(TRIM(V112))-LEN(SUBSTITUTE(V112,CHAR(44),""))+1,0),"-"),"") ->  | BE112: Afectat sau NU? | BF112: =IF(C112="X",IF(AN112="DA",IF(AND(BE112>=5,AK112<>""),LEN(TRIM(V112))-LEN(SUBSTITUTE(V112,CHAR(44),""))+1,0),"-"),"") -> - | BG112: =IF(C112="X",IF(AN112="DA",LEN(TRIM(V112))-LEN(SUBSTITUTE(V112,CHAR(44),""))+1,"-"),"") -> - | BH112: Afectat sau NU? | BI112: =IF(C112="X",IF(AN112="DA",IF(AND(BH112>=5,AI112<>""),LEN(TRIM(U112))-LEN(SUBSTITUTE(U112,CHAR(44),""))+1,0),"-"),"") -> - | BJ112: - | BK112: Afectat sau NU? | BL112: =IF(C112="X",IF(AN112<>"DA","-",IF(AND(AN112="DA",BK112<=0),LEN(TRIM(V112))-LEN(SUBSTITUTE(V112,CHAR(44),""))+1+LEN(TRIM(U112))-LEN(SUBSTITUTE(U112,CHAR(44),""))+1,0)),"") -> - | BM112: -
A113: 98 | B113: - | C113: X | D113: Punere în siguranță conducta de racord SRM Brăila, zona Ferma Agricolă | E113: 42682 | F113: Brăila | G113: Brăila | H113: 722659.63 | I113: 428684.71 | J113: 730172.74 | K113: 425143.96 | L113: - | M113: - | N113: SM0529D0 | O113: Brăila | P113: - | Q113: - | R113: - | S113: - | T113: SM-SD001 | U113: Cez Vânzare, Cis Gaz, Engie România, E-on Energie, Energy Distribution, Enel, Energia Gas & Power, Gaz Est, Met România, Premier Energy, OMV Petrom, Energy Gas, Restart Energy, RWE Supply, Tinmar, WIEE România | V113: Distrigaz Sud Rețele | W113: iulie - septembrie 2018 septembrie 2018 | AB113: Brăila | AD113: constructorul nu a început lucrarea deși s-a predat amplasamentul și există ordin de începere a lucrărilor | BE113: Afectat sau NU? | BF113: - | BG113: - | BH113: Afectat sau NU? | BI113: - | BJ113: - | BK113: Afectat sau NU? | BL113: - | BM113: -
A114: 99 | B114: - | C114: X | D114: Punere în siguranță conducta de racord SRM Brăila, zona Ferma Agricolă | E114: 42682 | F114: Brăila | G114: Brăila | H114: 722659.63 | I114: 428684.71 | J114: 730172.74 | K114: 425143.96 | L114: - | M114: - | N114: SM0530D0 | O114: SC Comsuin Brăila | P114: - | Q114: - | R114: - | S114: - | T114: SM-SD001 | U114: Engie România, Energy Distribution, Premier Energy | V114: Distrigaz Sud Rețele | W114: iulie - septembrie 2018 septembrie 2018 | AB114: Brăila | AD114: constructorul nu a început lucrarea deși s-a predat amplasamentul și există ordin de începere a lucrărilor | BE114: Afectat sau NU? | BF114: - | BG114: - | BH114: Afectat sau NU? | BI114: - | BJ114: - | BK114: Afectat sau NU? | BL114: - | BM114: -
A115: 100 | B115: - | C115: X | D115: Reparație conductă 12” Turburea - Turceni, tronson Aninoasa - Turceni | E115: 81264 | F115: Plopșoru | G115: Dolj | H115: 378027.1161 | I115: 356211.2951 | J115: 374011.133 | K115: 354479.244 | L115: - | M115: - | N115: SM1166D0 | O115: Turceni | P115: - | Q115: - | R115: - | S115: - | T115: SM-SD001 | U115: Cez Vânzare, Engie România, E-on Energie, Enel, OMV Petrom, Tinmar | V115: Distrigaz Sud Rețele | W115: iulie 2018 august 2018 | X115: 2018-08-23 | Y115: 08:00:00 | Z115: 2018-08-23 | AA115: 18:00:00 | AB115: Craiova | AC115: Efectuată | AD115: Se va face concomitent cu cuplarea racordului SRM CET Turceni | AE115: 2018-08-23 | AF115: 08:00:00 | AG115: 2018-08-23 | AH115: 16:55:00 | AK115: 2018-08-20 | AL115: 13:27:00 | AM115: 2209/22.08.2018 | AN115: DA | AO115: ET a transmis e-mail de solicitare accept catre partenerul adiacent cu 3 zile inainte de lucrare, fara a transmite si catre Serviciul Dispecerizare | BE115: 3 | BF115: 0 | BG115: 1 | BH115: Neinformat | BI115: 0 | BJ115: 6 | BK115: -1.083333333 | BL115: 7 | BM115: 7
A116: 101 | B116: - | C116: X | D116: Reparație conductă 16” Govora - Drăgășani | E116: 168372 | F116: Băbeni | G116: Vâlcea | H116: 440989.942 | I116: 386476.457 | J116: 440127.889 | K116: 372025.923 | L116: - | M116: - | N116: SM0224D0 | O116: Băbeni | P116: - | Q116: - | R116: - | S116: - | T116: SM-SD001 | U116: Nova Power, Cez Vânzare, Engie România, Enel, Energia Gas & Power, Met România, Romgaz | V116: Distrigaz Sud Rețele | W116: iunie 2018 | X116: 2018-06-26 | Y116: 08:00:00 | Z116: 2018-06-26 | AA116: 20:00:00 | AB116: Craiova | AC116: Efectuată | AE116: 2018-06-26 | AF116: 08:03:00 | AG116: 2018-06-26 | AH116: 17:35:00 | AI116: 2018-06-20 | AJ116: 12:27:00 | AK116: 2018-06-20 | AL116: 12:03:00 | AM116: 1629/20.06.2018 | AN116: DA | AO116: e-mail de notificare partener adiacent a sosit doar cu 4 zile lucratoare inaintea lucrarii | BE116: 4 | BF116: 0 | BG116: 1 | BH116: 4 | BI116: 0 | BJ116: 7 | BK116: -2.416666667 | BL116: 8 | BM116: 8
A117: 102 | B117: - | C117: X | D117: Reparație conductă 16” Govora - Drăgășani | E117: 172377 | F117: Popești | G117: Vâlcea | H117: 440989.942 | I117: 386476.457 | J117: 440127.889 | K117: 372025.923 | L117: - | M117: - | N117: - | O117: - | P117: PM0034 | Q117: Popești Lăpușata | R117: - | S117: - | T117: PM-PP001 | U117: Alpha Metal, Nova Power, Cez Vânzare, Cis Gaz, Distrigaz Vest, Engie România, E.on Energie, Energy Distribution, Enel, E.on Gaz Furnizare, Gaz Est, Met România, Next Energy, Premier Energy, OMV Petrom, Energy Gas, Restart Energy, Romgaz, Saint Gobain, Tinmar, WIEE România | V117: OMV Petrom | W117: iunie 2018 | X117: 2018-06-26 | Y117: 08:00:00 | Z117: 2018-06-26 | AA117: 20:00:00 | AB117: Craiova | AC117: Efectuată | AE117: 2018-06-26 | AF117: 08:05:00 | AG117: 2018-06-26 | AH117: 17:35:00 | AI117: 2018-06-19 | AJ117: 10:43:00 | AK117: 2018-06-19 | AL117: 10:21:00 | AM117: 1629/20.06.2018 | AN117: NU | BE117: Nu a fost afectat producator/consumator | BF117: - | BG117: - | BH117: Nu a fost afectat producator/consumator | BI117: - | BJ117: - | BK117: Nu a fost afectat producator/consumator | BL117: - | BM117: -
A118: 103 | B118: - | C118: X | D118: Reparație conductă 20” Hurezani - Corbu - Bucuresti F2, tronson Drăgășani - Corbu, zona Jitaru - Oporelu | E118: 80515 | F118: Hurezani | G118: Gorj | H118: 453702.586 | I118: 343855.375 | J118: 463374.121 | K118: 337922.342 | L118: - | M118: - | N118: - | O118: - | P118: PM0205 | Q118: Hurezani SU | R118: - | S118: - | T118: PM-PP001 | U118: Alpha Metal, Cez Vânzare, Complexul Energetic Hunedoara, Engie România, E-on Energie, Electrocentrale București, Enel, E.on Gaz Furnizare, Gaz Est, Met România, Ottogaz, Premier Energy, OMV Petrom, Romgaz, Tinmar | V118: Romgaz | W118: iulie - august 2018 septembrie - octombrie 2018 aprilie - septembrie 2019 | AB118: Craiova | AC118: Se amână pentru anul gazier 2018-2019 | AD118: existenta de culturi agricole ce trebuie recoltate volum mare de lucrări | BE118: Afectat sau NU? | BF118: - | BG118: - | BH118: Afectat sau NU? | BI118: - | BJ118: - | BK118: Afectat sau NU? | BL118: - | BM118: -
A119: 104 | B119: - | C119: X | D119: Reparație conductă 20” Hurezani - Corbu - Bucuresti F2, tronson Drăgășani - Corbu, zona Jitaru - Oporelu | E119: 80506 | F119: Hurezani | G119: Gorj | H119: 453702.586 | I119: 343855.375 | J119: 463374.121 | K119: 337922.342 | L119: - | M119: - | N119: - | O119: - | P119: PM0062 | Q119: Hurezani Bulbuceni | R119: - | S119: - | T119: PM-PP001 | U119: Alpha Metal, Nova Power, Azomureș, Cez Vânzare, Cis Gaz, Distrigaz Vest, Engie România, E-on Energie, Energy Distribution, E.on Gaz Furnizare, Met România, Next Energy, Premier Energy, OMV Petrom, Energy Gas, Restart Energy, Romgaz, Saint Gobain, Tinmar, WIEE România | V119: OMV Petrom | W119: iulie - august 2018 septembrie - octombrie 2018 aprilie - septembrie 2019 | AB119: Craiova | AC119: Se amână pentru anul gazier 2018-2019 | AD119: existenta de culturi agricole ce trebuie recoltate volum mare de lucrări | BE119: Afectat sau NU? | BF119: - | BG119: - | BH119: Afectat sau NU? | BI119: - | BJ119: - | BK119: Afectat sau NU? | BL119: - | BM119: -
A120: 105 | B120: - | C120: X | D120: Reparație conductă 20” Hurezani - Corbu - Bucuresti F2, tronson Drăgășani - Corbu, zona Jitaru - Oporelu | E120: 80757 | F120: Hurezani | G120: Gorj | H120: 453702.586 | I120: 343855.375 | J120: 463374.121 | K120: 337922.342 | L120: - | M120: - | N120: - | O120: - | P120: PM0253 | Q120: Hurezani Bustuchini | R120: - | S120: - | T120: PM-PP001 | U120: Alpha Metal, Nova Power, Azomureș, Cez Vânzare, Cis Gaz, Distrigaz Vest, Engie România, E-on Energie, Energy Distribution, E.on Gaz Furnizare, Met România, Next Energy, Premier Energy, OMV Petrom, Energy Gas, Restart Energy, Romgaz, Saint Gobain, Tinmar, WIEE România | V120: OMV Petrom | W120: iulie - august 2018 septembrie - octombrie 2018 aprilie - septembrie 2019 | AB120: Craiova | AC120: Se amână pentru anul gazier 2018-2019 | AD120: existenta de culturi agricole ce trebuie recoltate volum mare de lucrări | AQ120: =IF(B120="X",IF(AN120="","Afectat sau NU?",IF(AN120="DA",IF(((AK120+AL120)-(AE120+AF120))*24<-720,"Neinformat",((AK120+AL120)-(AE120+AF120))*24),"Nu a fost afectat producator/consumator")),"") ->  | AT120: =IF(B120="X",IF(AN120="","Afectat sau NU?",IF(AN120="DA",IF(((AI120+AJ120)-(AE120+AF120))*24<-720,"Neinformat",((AI120+AJ120)-(AE120+AF120))*24),"Nu a fost afectat producator/consumator")),"") ->  | AW120: =IF(B120="X",IF(AN120="","Afectat sau NU?",IF(AN120="DA",((AG120+AH120)-(AE120+AF120))*24,"Nu a fost afectat producator/consumator")),"") ->  | BE120: Afectat sau NU? | BF120: - | BG120: - | BH120: Afectat sau NU? | BI120: - | BJ120: - | BK120: =IF(C120="X",IF(AN120="","Afectat sau NU?",IF(AN120="DA",((AG120+AH120)-(Z120+AA120))*24,"Nu a fost afectat producator/consumator")),"") -> Afectat sau NU? | BL120: - | BM120: -
A121: 106 | B121: - | C121: X | D121: Reparație conductă 20” Hurezani - Corbu - Bucuresti F2, tronson Drăgășani - Corbu, zona Jitaru - Oporelu | E121: 172377 | F121: Popești | G121: Vâlcea | H121: 453702.586 | I121: 343855.375 | J121: 463374.121 | K121: 337922.342 | L121: - | M121: - | N121: - | O121: - | P121: PM0034 | Q121: Popești Lăpușata | R121: - | S121: - | T121: PM-PP001 | U121: Alpha Metal, Nova Power, Azomureș, Cez Vânzare, Cis Gaz, Distrigaz Vest, Engie România, E-on Energie, Energy Distribution, E.on Gaz Furnizare, Met România, Next Energy, Premier Energy, OMV Petrom, Energy Gas, Restart Energy, Romgaz, Saint Gobain, Tinmar, WIEE România | V121: OMV Petrom | W121: iulie - august 2018 septembrie - octombrie 2018 aprilie - septembrie 2019 | AB121: Craiova | AC121: Se amână pentru anul gazier 2018-2019 | AD121: existenta de culturi agricole ce trebuie recoltate volum mare de lucrări | BE121: Afectat sau NU? | BF121: - | BG121: - | BH121: Afectat sau NU? | BI121: - | BJ121: - | BK121: Afectat sau NU? | BL121: - | BM121: -
A122: 107 | B122: - | C122: X | D122: Reparație conductă 20” Hurezani - Corbu - Bucuresti F2, tronson Drăgășani - Corbu, zona Jitaru - Oporelu | E122: 168434 | F122: Tătărani | G122: Vâlcea | H122: 453702.586 | I122: 343855.375 | J122: 463374.121 | K122: 337922.342 | L122: - | M122: - | N122: - | O122: - | P122: PM0068 | Q122: Tătărani | R122: - | S122: - | T122: PM-PP001 | U122: Alpha Metal, Nova Power, Azomureș, Cez Vânzare, Cis Gaz, Distrigaz Vest, Engie România, E-on Energie, Energy Distribution, E.on Gaz Furnizare, Met România, Next Energy, Premier Energy, OMV Petrom, Energy Gas, Restart Energy, Romgaz, Saint Gobain, Tinmar, WIEE România | V122: OMV Petrom | W122: iulie - august 2018 septembrie - octombrie 2018 aprilie - septembrie 2019 | AB122: Craiova | AC122: Se amână pentru anul gazier 2018-2019 | AD122: existenta de culturi agricole ce trebuie recoltate volum mare de lucrări | BE122: Afectat sau NU? | BF122: - | BG122: - | BH122: Afectat sau NU? | BI122: - | BJ122: - | BK122: Afectat sau NU? | BL122: - | BM122: -
A123: 108 | B123: - | C123: X | D123: Reparație conductă 20” Hurezani - Corbu - Bucuresti F2, tronson Drăgășani - Corbu, zona Jitaru - Oporelu | E123: 170872 | F123: Pârâienii de Jos | G123: Vâlcea | H123: 453702.586 | I123: 343855.375 | J123: 463374.121 | K123: 337922.342 | L123: - | M123: - | N123: - | O123: - | P123: PM0259 | Q123: Pârâienii de Jos | R123: - | S123: - | T123: PM-PP001 | U123: Alpha Metal, Nova Power, Azomureș, Cez Vânzare, Cis Gaz, Distrigaz Vest, Engie România, E-on Energie, Energy Distribution, E.on Gaz Furnizare, Met România, Next Energy, Premier Energy, OMV Petrom, Energy Gas, Restart Energy, Romgaz, Saint Gobain, Tinmar, WIEE România | V123: OMV Petrom | W123: iulie - august 2018 septembrie - octombrie 2018 aprilie - septembrie 2019 | AB123: Craiova | AC123: Se amână pentru anul gazier 2018-2019 | AD123: existenta de culturi agricole ce trebuie recoltate volum mare de lucrări | BE123: Afectat sau NU? | BF123: - | BG123: - | BH123: Afectat sau NU? | BI123: - | BJ123: - | BK123: Afectat sau NU? | BL123: - | BM123: -
A124: 109 | B124: - | C124: X | D124: Reparație conductă 20” Hurezani - Corbu - Bucuresti F2, tronson Drăgășani - Corbu, zona Jitaru - Oporelu | E124: 170346 | F124: Grădiștea | G124: Vâlcea | H124: 453702.586 | I124: 343855.375 | J124: 463374.121 | K124: 337922.342 | L124: - | M124: - | N124: - | O124: - | P124: PM0053 | Q124: Grădiștea | R124: - | S124: - | T124: PM-PP001 | U124: Alpha Metal, Nova Power, Azomureș, Cez Vânzare, Cis Gaz, Complexul Energetic Hunedoara, Distrigaz Vest, Engie România, E-on Energie, Electrocentrale București, Energy Distribution, Enel, E.on Gaz Furnizare, Gaz Est, Met România, Next Energy, Ottogaz, Premier Energy, OMV Petrom, Energy Gas, Restart Energy, Saint Gobain, WIEE România, Romgaz, Tinmar | V124: Romgaz | W124: iulie - august 2018 septembrie - octombrie 2018 aprilie - septembrie 2019 | AB124: Craiova | AC124: Se amână pentru anul gazier 2018-2019 | AD124: existenta de culturi agricole ce trebuie recoltate volum mare de lucrări | BE124: Afectat sau NU? | BF124: - | BG124: - | BH124: Afectat sau NU? | BI124: - | BJ124: - | BK124: Afectat sau NU? | BL124: - | BM124: -
A125: 110 | B125: - | C125: X | D125: Reparație conductă 20” Hurezani - Corbu - Bucuresti F2, tronson Drăgășani - Corbu, zona Jitaru - Oporelu | E125: 82243 | F125: Stejari (Bălcești) | G125: Gorj | H125: 453702.586 | I125: 343855.375 | J125: 463374.121 | K125: 337922.342 | L125: - | M125: - | N125: - | O125: - | P125: PM0206 | Q125: Piscu Stejari SU | R125: - | S125: - | T125: PM-PP001 | U125: Alpha Metal, Cez Vânzare, Complexul Energetic Hunedoara, Engie România, E-on Energie, Electrocentrale București, Enel, E.on Gaz Furnizare, Gaz Est, Met România, Ottogaz, Premier Energy, OMV Petrom, Romgaz, Tinmar | V125: Romgaz | W125: iulie - august 2018 septembrie - octombrie 2018 aprilie - septembrie 2019 | AB125: Craiova | AC125: Se amână pentru anul gazier 2018-2019 | AD125: existenta de culturi agricole ce trebuie recoltate volum mare de lucrări | BE125: Afectat sau NU? | BF125: - | BG125: - | BH125: Afectat sau NU? | BI125: - | BJ125: - | BK125: Afectat sau NU? | BL125: - | BM125: -
A126: 111 | B126: - | C126: X | D126: Reparație conductă 20” Hurezani - Corbu - Bucuresti F2, tronson Drăgășani - Corbu, zona Jitaru - Oporelu | E126: 80070 | F126: Hălăngești | G126: Gorj | H126: 453702.586 | I126: 343855.375 | J126: 463374.121 | K126: 337922.342 | L126: - | M126: - | N126: - | O126: - | P126: PM0064 | Q126: Hălăngești | R126: - | S126: - | T126: PM-PP001 | U126: Alpha Metal, Nova Power, Azomureș, Cez Vânzare, Cis Gaz, Distrigaz Vest, Engie România, E-on Energie, Energy Distribution, E.on Gaz Furnizare, Met România, Next Energy, Premier Energy, OMV Petrom, Energy Gas, Restart Energy, Romgaz, Saint Gobain, Tinmar, WIEE România | V126: OMV Petrom | W126: iulie - august 2018 septembrie - octombrie 2018 aprilie - septembrie 2019 | AB126: Craiova | AC126: Se amână pentru anul gazier 2018-2019 | AD126: existenta de culturi agricole ce trebuie recoltate volum mare de lucrări | BE126: Afectat sau NU? | BF126: - | BG126: - | BH126: Afectat sau NU? | BI126: - | BJ126: - | BK126: Afectat sau NU? | BL126: - | BM126: -
A127: 112 | B127: - | C127: X | D127: Reparație conductă 20” Hurezani - Corbu - Bucuresti F2, tronson Drăgășani - Corbu, zona Jitaru - Oporelu | E127: 174290 | F127: Zătreni | G127: Vâlcea | H127: 453702.586 | I127: 343855.375 | J127: 463374.121 | K127: 337922.342 | L127: - | M127: - | N127: - | O127: - | P127: PM0270 | Q127: SU Zătreni | R127: - | S127: - | T127: PM-PP001 | U127: Alpha Metal, Cez Vânzare, Complexul Energetic Hunedoara, Distrigaz Est, Engie România, E-on Energie, Electrocentrale București, Enel, Energia Gas & Power, E.on Gaz Furnizare, Gaz Est, Met România, Next Energy, Ottogaz, Premier Energy, OMV Petrom, Energy Gas, Restart Energy, RWE România, Romgaz, Tinmar, WIEE România | V127: Romgaz | W127: iulie - august 2018 septembrie - octombrie 2018 aprilie - septembrie 2019 | AB127: Craiova | AC127: Se amână pentru anul gazier 2018-2019 | AD127: existenta de culturi agricole ce trebuie recoltate volum mare de lucrări | BE127: Afectat sau NU? | BF127: - | BG127: - | BH127: Afectat sau NU? | BI127: - | BJ127: - | BK127: Afectat sau NU? | BL127: - | BM127: -
A128: 113 | B128: - | C128: X | D128: Reparație conductă 20” Hurezani - Corbu - Bucuresti F2, tronson Drăgășani - Corbu, zona Jitaru - Oporelu | E128: 174290 | F128: Zătreni | G128: Vâlcea | H128: 453702.586 | I128: 343855.375 | J128: 463374.121 | K128: 337922.342 | L128: - | M128: - | N128: - | O128: - | P128: PM0054 | Q128: Zătreni | R128: - | S128: - | T128: PM-PP001 | U128: Alpha Metal, Cez Vânzare, Complexul Energetic Hunedoara, Distrigaz Est, Engie România, E-on Energie, Electrocentrale București, Enel, Energia Gas & Power, E.on Gaz Furnizare, Gaz Est, Met România, Next Energy, Ottogaz, Premier Energy, OMV Petrom, Energy Gas, Restart Energy, RWE România, Romgaz, Tinmar, WIEE România | V128: Romgaz | W128: iulie - august 2018 septembrie - octombrie 2018 aprilie - septembrie 2019 | AB128: Craiova | AC128: Se amână pentru anul gazier 2018-2019 | AD128: existenta de culturi agricole ce trebuie recoltate volum mare de lucrări | BE128: Afectat sau NU? | BF128: - | BG128: - | BH128: Afectat sau NU? | BI128: - | BJ128: - | BK128: Afectat sau NU? | BL128: - | BM128: -
A129: 114 | B129: - | C129: X | D129: Reparație conductă 20” Hurezani - Corbu - Bucuresti F2, tronson Drăgășani - Corbu, zona Jitaru - Oporelu | E129: 171209 | F129: Mamu | G129: Vâlcea | H129: 453702.586 | I129: 343855.375 | J129: 463374.121 | K129: 337922.342 | L129: - | M129: - | N129: - | O129: - | P129: PM0296 | Q129: Mamu (Crețeni) | R129: - | S129: - | T129: PM-PP001 | U129: Alpha Metal, Nova Power, Cez Vânzare, Cis Gaz, Distrigaz Vest, Engie România, E-on Energie, Energy Distribution, E.on Gaz Furnizare, Gaz Est, Met România, Next Energy, Premier Energy, OMV Petrom, Energy Gas, Restart Energy, Saint Gobain, WIEE România | V129: OMV Petrom | W129: iulie - august 2018 septembrie - octombrie 2018 aprilie - septembrie 2019 | AB129: Craiova | AC129: Se amână pentru anul gazier 2018-2019 | AD129: existenta de culturi agricole ce trebuie recoltate volum mare de lucrări | BE129: Afectat sau NU? | BF129: - | BG129: - | BH129: Afectat sau NU? | BI129: - | BJ129: - | BK129: Afectat sau NU? | BL129: - | BM129: -
A130: 115 | B130: - | C130: X | D130: Reparație conductă 20” Hurezani - Corbu - Bucuresti F2, tronson Drăgășani - Corbu, zona Jitaru - Oporelu | E130: 171218 | F130: Mădulari | G130: Vâlcea | H130: 453702.586 | I130: 343855.375 | J130: 463374.121 | K130: 337922.342 | L130: - | M130: - | N130: - | O130: - | P130: PM0191 | Q130: Mădulari | R130: - | S130: - | T130: PM-PP001 | U130: Alpha Metal, Nova Power, Azomureș, Cez Vânzare, Cis Gaz, Distrigaz Vest, Engie România, E-on Energie, Energy Distribution, E.on Gaz Furnizare, Met România, Next Energy, Premier Energy, OMV Petrom, Energy Gas, Restart Energy, Romgaz, Saint Gobain, Tinmar, WIEE România | V130: OMV Petrom | W130: iulie - august 2018 septembrie - octombrie 2018 aprilie - septembrie 2019 | AB130: Craiova | AC130: Se amână pentru anul gazier 2018-2019 | AD130: existenta de culturi agricole ce trebuie recoltate volum mare de lucrări | BE130: Afectat sau NU? | BF130: - | BG130: - | BH130: Afectat sau NU? | BI130: - | BJ130: - | BK130: Afectat sau NU? | BL130: - | BM130: -
A131: 116 | B131: - | C131: X | D131: Reparație conductă 20” Țicleni - Turcinești | E131: 77812 | F131: Târgu Jiu | G131: Gorj | H131: 371137.066 | I131: 386056.682 | J131: 374136.343 | K131: 380014.316 | L131: - | M131: - | N131: SM0083D0 | O131: SC Avicola Tg. Jiu | P131: - | Q131: - | R131: - | S131: - | T131: SM-SD001 | U131: Cez Vânzare, Cis Gaz, Engie România, E-on Energie, Enel, Gaz Est, Met România, Premier Energy, OMV Petrom, Energy Gas, Restart Energy, RWE Supply, Tinmar | V131: Distrigaz Sud Rețele | W131: mai 2018 | X131: 2018-05-30 | Y131: 08:30:00 | Z131: 2018-05-30 | AA131: 18:30:00 | AB131: Craiova | AC131: Efectuată | AE131: 2018-05-30 | AF131: 08:30:00 | AG131: 2018-05-31 | AH131: 14:45:00 | AI131: 2018-05-24 | AJ131: 09:13:00 | AK131: 2018-05-23 | AL131: 14:51:00 | AM131: 1409/25.05.2018 | AN131: NU | AO131: Deși dispecerul m-a întrebat dacă trebuie să informeze UR și i-am spus că DA, nu a transmis mailul; ulterior a fost transmis de BET | BE131: Nu a fost afectat producator/consumator | BF131: - | BG131: - | BH131: Nu a fost afectat producator/consumator | BI131: - | BJ131: - | BK131: Nu a fost afectat producator/consumator | BL131: - | BM131: -
A132: 117 | B132: - | C132: X | D132: Reparație conductă 20” Țicleni - Turcinești | E132: 78463 | F132: Țicleni | G132: Gorj | H132: 371137.066 | I132: 386056.682 | J132: 374136.343 | K132: 380014.316 | L132: - | M132: - | N132: - | O132: - | P132: - | Q132: - | R132: PM0198 | S132: Țicleni Târgug Jiu | T132: PM-PP001 | U132: Alpha Metal, Nova Power, Azomureș, Cez Vânzare, Cis Gaz, Distrigaz Vest, Engie România, E-on Energie, Energy Distribution, Enel, E.on Gaz Furnizare, Gaz Est, Met România, Next Energy, Premier Energy, OMV Petrom, Energy Gas, Restart Energy, Romgaz, Saint Gobain, Tinmar, WIEE România | V132: OMV Petrom | W132: mai 2018 | X132: 2018-05-30 | Y132: 08:30:00 | Z132: 2018-05-30 | AA132: 18:30:00 | AB132: Craiova | AC132: Efectuată | AE132: 2018-05-30 | AF132: 08:30:00 | AG132: 2018-05-31 | AH132: 14:45:00 | AI132: 2018-05-24 | AJ132: 09:13:00 | AK132: 2018-05-23 | AL132: 14:44:00 | AM132: 1409/25.05.2018 | AN132: DA | AO132: Deși dispecerul m-a întrebat dacă trebuie să informeze UR și i-am spus că DA, nu a transmis mailul; ulterior a fost transmis de BET. Din motive obiective nu s-a putut finaliza lucrarea și reluarea prestării serviciului la data programată. | BE132: 4 | BF132: 0 | BG132: 1 | BH132: 3 | BI132: 0 | BJ132: 22 | BK132: 20.25 | BL132: 0 | BM132: 23
A133: 118 | B133: - | C133: X | D133: Reparație conductă 3” racord SRM Bisericani | E133: 124938 | F133: Bisericani | G133: Neamț | H133: 596489.6247 | I133: 605291.1225 | J133: 594513.1685 | K133: 607367.5773 | L133: - | M133: - | N133: SM0456D0 | O133: Spitalul de Pneumoftiziologie Bisericani | P133: - | Q133: - | R133: - | S133: - | T133: SM-CF001 | U133: Met România | V133: Spitalul de Pneumoftiziologie Bisericani | W133: mai octombrie 2018 | AB133: Bacău | AC133: Se amână pentru anul gazier 2018-2019 | AD133: Datorită agravării situației din zona (alunecare de teren),se impune întocmirea temei de proiectarea și a proiectului tehnic de execuție. | BE133: Afectat sau NU? | BF133: - | BG133: - | BH133: Afectat sau NU? | BI133: - | BJ133: - | BK133: Afectat sau NU? | BL133: - | BM133: -
A134: 119 | B134: - | C134: X | D134: Reparație conductă racord SRM Livezi localitate | E134: 23289 | F134: Livezi | G134: Bacău | H134: 633283.34 | I134: 546591.74 | J134: 633307.15 | K134: 546563.16 | L134: - | M134: - | N134: SM1265D0 | O134: Livezi | P134: - | Q134: - | R134: - | S134: - | U134: punctul nu este momerntan pus în funcțiune | W134: iulie 2018 septembrie - octombrie 2018 | AB134: Bacău | AD134: Se va realiza concomitent cu reabilitarea conductei Onești - Gheriești Fir II | BE134: Afectat sau NU? | BF134: - | BG134: - | BH134: Afectat sau NU? | BI134: - | BJ134: - | BK134: Afectat sau NU? | BL134: - | BM134: -
A135: 120 | B135: - | C135: X | D135: Reparație conductă 4” racord SRM Zagna Vădeni (R307-R198 și R198-R308), zona Vădeni | E135: 44391 | F135: Vădeni | G135: Brăila | H135: 726933.61 | I135: 434717.27 | J135: 728268.27 | K135: 433340.27 | L135: - | M135: - | N135: SM0532D0 | O135: Zagna Vădeni | P135: - | Q135: - | R135: - | S135: - | T135: SM-SD001 | U135: Cis Gaz, Engie România, Enel, Premier Energy | V135: Distrigaz Sud Rețele | W135: aprilie - septembrie iunie - septembrie 2018 septembrie 2018 | AB135: Brăila | AD135: condiții meteo nefavorabile și acces dificil în teren în curs de achiziție materiale | BE135: Afectat sau NU? | BF135: - | BG135: - | BH135: Afectat sau NU? | BI135: - | BJ135: - | BK135: Afectat sau NU? | BL135: - | BM135: -
A136: 121 | B136: - | C136: X | D136: Reparație conductă 24” Peceneaga - Siliștea (R21-R20), zona Tichilești | E136: 43313 | F136: Gropeni | G136: Brăila | H136: 728735.12 | I136: 411121.88 | J136: 728184.03 | K136: 400321.14 | L136: - | M136: - | N136: SM0115D0 | O136: SC Tebu Consult Invest Gropeni | P136: - | Q136: - | R136: - | S136: - | T136: SM-CF001 | U136: Tinmar | V136: Tebu Consult Invest | W136: aprilie - septembrie august - octombrie 2018 septembrie 2018 | AB136: Brăila | AD136: acces dificil în teren, condiții de debit redus, acces prin culturi agricole de sezon In curs de achiziție materiale | BE136: Afectat sau NU? | BF136: - | BG136: - | BH136: Afectat sau NU? | BI136: - | BJ136: - | BK136: Afectat sau NU? | BL136: - | BM136: -
A137: 122 | B137: - | C137: X | D137: Reparație conductă 24” Peceneaga - Siliștea (R21-R20), zona Tichilești | E137: 44177 | F137: Tichilești | G137: Brăila | H137: 728735.12 | I137: 411121.88 | J137: 728184.03 | K137: 400321.14 | L137: - | M137: - | N137: SM0528D0 | O137: Tichilești | P137: - | Q137: - | R137: - | S137: - | T137: SM-SD001 | U137: Engie România, E-on Energie | V137: Distrigaz Sud Rețele | W137: aprilie - septembrie august - octombrie 2018 septembrie 2018 | AB137: Brăila | AD137: acces dificil în teren, condiții de debit redus, acces prin culturi agricole de sezon în curs de achiziție materiale | BE137: Afectat sau NU? | BF137: - | BG137: - | BH137: Afectat sau NU? | BI137: - | BJ137: - | BK137: Afectat sau NU? | BL137: - | BM137: -
A138: 123 | B138: - | C138: X | D138: Reparație conductă 20” Adjudul Vechi - Siliștea, zona Malul Alb (R67-R68) | E138: 76692 | F138: Matca | G138: Galați | H138: 689722 | I138: 482285.32 | J138: 702807.18 | K138: 468728.4 | L138: - | M138: - | N138: SM0980D0 | O138: Matca (Vega 93) | P138: - | Q138: - | R138: - | S138: - | T138: SM-SD001 | U138: Engie România, Enel | V138: Vega 93 | W138: aprilie - septembrie iunie - septembre 2018 septembrie 2018 | AB138: Brăila | AD138: acces dificil prin culturi agricole de sezon în curs de achiziție materiale | BE138: Afectat sau NU? | BF138: - | BG138: - | BH138: Afectat sau NU? | BI138: - | BJ138: - | BK138: Afectat sau NU? | BL138: - | BM138: -
A139: 124 | B139: - | C139: X | D139: Reparație conductă 16” racord SRM Vaslui, înlocuire R96 și eliminare separator | E139: 162194 | F139: Sălcioara | G139: Vaslui | H139: 702930.04 | I139: 531560.03 | J139: 715279.04 | K139: 557596.13 | L139: - | M139: - | N139: SM1130D0 | O139: Sălcioara | P139: - | Q139: - | R139: - | S139: - | T139: SM-SD001 | U139: WIEE România | V139: Delgaz Grid | W139: aprilie - septembrie mai - septembrie 2018 septembrie 2018 | AB139: Brăila | AD139: se urmăresc condiții de debit redus (consumuri mici pe perioada anotimpului cald) în curs de achiziție materiale | BE139: Afectat sau NU? | BF139: - | BG139: - | BH139: Afectat sau NU? | BI139: - | BJ139: - | BK139: Afectat sau NU? | BL139: - | BM139: -
A140: 125 | B140: - | C140: X | D140: Reparație conductă 16” racord SRM Vaslui, înlocuire R96 și eliminare separator | E140: 163137 | F140: Chițcani | G140: Vaslui | H140: 702930.04 | I140: 531560.03 | J140: 715279.04 | K140: 557596.13 | L140: - | M140: - | N140: SM1256D0 | O140: SC FNC Safir Chițcani | P140: - | Q140: - | R140: - | S140: - | T140: SM-CF001 | U140: WIEE România | V140: Safir | W140: aprilie - septembrie mai - septembrie 2018 septembrie 2018 | AB140: Brăila | AD140: se urmăresc condiții de debit redus (consumuri mici pe perioada anotimpului cald) în curs de achiziție materiale | BE140: Afectat sau NU? | BF140: - | BG140: - | BH140: Afectat sau NU? | BI140: - | BJ140: - | BK140: Afectat sau NU? | BL140: - | BM140: -
A141: 126 | B141: - | C141: X | D141: Reparație conductă 16” racord SRM Vaslui, înlocuire R96 și eliminare separator | E141: 163137 | F141: Costești | G141: Vaslui | H141: 702930.04 | I141: 531560.03 | J141: 715279.04 | K141: 557596.13 | L141: - | M141: - | N141: SM1114D0 | O141: Chițcani | P141: - | Q141: - | R141: - | S141: - | T141: SM-SD001 | U141: Gaz Est | V141: Gaz Est | W141: aprilie - septembrie mai - septembrie 2018 septembrie 2018 | AB141: Brăila | AD141: se urmăresc condiții de debit redus (consumuri mici pe perioada anotimpului cald) în curs de achiziție materiale | BE141: Afectat sau NU? | BF141: - | BG141: - | BH141: Afectat sau NU? | BI141: - | BJ141: - | BK141: Afectat sau NU? | BL141: - | BM141: -
A142: 127 | B142: - | C142: X | D142: Reparație conductă 16” racord SRM Vaslui, înlocuire R96 și eliminare separator | E142: 165817 | F142: Roșiești | G142: Vaslui | H142: 702930.04 | I142: 531560.03 | J142: 715279.04 | K142: 557596.13 | L142: - | M142: - | N142: SM1150D0 | O142: SC Sagem Roșiești | P142: - | Q142: - | R142: - | S142: - | T142: SM-CF001 | U142: WIEE România | V142: Sagem | W142: aprilie - septembrie mai - septembrie 2018 septembrie 2018 | AB142: Brăila | AD142: se urmăresc condiții de debit redus (consumuri mici pe perioada anotimpului cald) în curs de achiziție materiale | BE142: Afectat sau NU? | BF142: - | BG142: - | BH142: Afectat sau NU? | BI142: - | BJ142: - | BK142: Afectat sau NU? | BL142: - | BM142: -
A143: 127.1 | B143: - | C143: X | D143: Reparație conductă 16” racord SRM Vaslui, înlocuire R96 și eliminare separator | E143: 162194 | F143: Gara Banca | G143: Vaslui | H143: 702930.04 | I143: 531560.03 | J143: 715279.04 | K143: 557596.13 | L143: - | M143: - | N143: SM1185D0 | O143: Gara Banca | P143: - | Q143: - | R143: - | S143: - | T143: SM-SD001 | U143: Gaz Est | V143: Gaz Est | W143: mai - septembrie 2018 septembrie 2018 | AB143: Brăila | AD143: se urmăresc condiții de debit redus (consumuri mici pe perioada anotimpului cald). SRM nou pus în funcție PIF : 18.12.2017 în curs de achiziție materiale | AQ143: =IF(B143="X",IF(AN143="","Afectat sau NU?",IF(AN143="DA",IF(((AK143+AL143)-(AE143+AF143))*24<-720,"Neinformat",((AK143+AL143)-(AE143+AF143))*24),"Nu a fost afectat producator/consumator")),"") ->  | AR143: =IF(B143="X",IF(AN143="DA",IF(AQ143<6,LEN(TRIM(V143))-LEN(SUBSTITUTE(V143,CHAR(44),""))+1,0),"-"),"") ->  | AS143: =IF(B143="X",IF(AN143="DA",LEN(TRIM(V143))-LEN(SUBSTITUTE(V143,CHAR(44),""))+1,"-"),"") ->  | AT143: =IF(B143="X",IF(AN143="","Afectat sau NU?",IF(AN143="DA",IF(((AI143+AJ143)-(AE143+AF143))*24<-720,"Neinformat",((AI143+AJ143)-(AE143+AF143))*24),"Nu a fost afectat producator/consumator")),"") ->  | AU143: =IF(B143="X",IF(AN143="DA",IF(AT143<6,LEN(TRIM(U143))-LEN(SUBSTITUTE(U143,CHAR(44),""))+1,0),"-"),"") ->  | AV143: =IF(B143="X",IF(AN143="DA",LEN(TRIM(U143))-LEN(SUBSTITUTE(U143,CHAR(44),""))+1,"-"),"") ->  | AW143: =IF(B143="X",IF(AN143="","Afectat sau NU?",IF(AN143="DA",((AG143+AH143)-(AE143+AF143))*24,"Nu a fost afectat producator/consumator")),"") ->  | AX143: =IF(B143="X",IF(AN143="DA",IF(AW143>24,IF(AZ143="NU",0,LEN(TRIM(V143))-LEN(SUBSTITUTE(V143,CHAR(44),""))+1),0),"-"),"") ->  | AY143: =IF(B143="X",IF(AN143="DA",IF(AW143>24,LEN(TRIM(V143))-LEN(SUBSTITUTE(V143,CHAR(44),""))+1,0),"-"),"") ->  | BE143: Afectat sau NU? | BF143: =IF(C143="X",IF(AN143="DA",IF(AND(BE143>=5,AK143<>""),LEN(TRIM(V143))-LEN(SUBSTITUTE(V143,CHAR(44),""))+1,0),"-"),"") -> - | BG143: =IF(C143="X",IF(AN143="DA",LEN(TRIM(V143))-LEN(SUBSTITUTE(V143,CHAR(44),""))+1,"-"),"") -> - | BH143: Afectat sau NU? | BI143: =IF(C143="X",IF(AN143="DA",IF(AND(BH143>=5,AI143<>""),LEN(TRIM(U143))-LEN(SUBSTITUTE(U143,CHAR(44),""))+1,0),"-"),"") -> - | BJ143: =IF(C143="X",IF(AN143="DA",LEN(TRIM(U143))-LEN(SUBSTITUTE(U143,CHAR(44),""))+1,"-"),"") -> - | BK143: =IF(C143="X",IF(AN143="","Afectat sau NU?",IF(AN143="DA",((AG143+AH143)-(Z143+AA143))*24,"Nu a fost afectat producator/consumator")),"") -> Afectat sau NU? | BL143: =IF(C143="X",IF(AN143<>"DA","-",IF(AND(AN143="DA",BK143<=0),LEN(TRIM(V143))-LEN(SUBSTITUTE(V143,CHAR(44),""))+1+LEN(TRIM(U143))-LEN(SUBSTITUTE(U143,CHAR(44),""))+1,0)),"") -> - | BM143: =IF(C143="X",IF(AN143="DA",LEN(TRIM(V143))-LEN(SUBSTITUTE(V143,CHAR(44),""))+1+LEN(TRIM(U143))-LEN(SUBSTITUTE(U143,CHAR(44),""))+1,"-"),"") -> -
A144: =A142+1 -> 128 | B144: - | C144: X | D144: Reparație conductă 16” racord SRM Vaslui, înlocuire R96 și eliminare separator | E144: 165817 | F144: Roșiești | G144: Vaslui | H144: 702930.04 | I144: 531560.03 | J144: 715279.04 | K144: 557596.13 | L144: - | M144: - | N144: SM1238D0 | O144: Roșiești | P144: - | Q144: - | R144: - | S144: - | T144: SM-SD001 | U144: Gaz Est | V144: Gaz Est | W144: aprilie - septembrie mai - septembrie 2018 septembrie 2018 | AB144: Brăila | AD144: se urmăresc condiții de debit redus (consumuri mici pe perioada anotimpului cald) în curs de achiziție materiale | AQ144: =IF(B144="X",IF(AN144="","Afectat sau NU?",IF(AN144="DA",IF(((AK144+AL144)-(AE144+AF144))*24<-720,"Neinformat",((AK144+AL144)-(AE144+AF144))*24),"Nu a fost afectat producator/consumator")),"") ->  | AR144: =IF(B144="X",IF(AN144="DA",IF(AQ144<6,LEN(TRIM(V144))-LEN(SUBSTITUTE(V144,CHAR(44),""))+1,0),"-"),"") ->  | AS144: =IF(B144="X",IF(AN144="DA",LEN(TRIM(V144))-LEN(SUBSTITUTE(V144,CHAR(44),""))+1,"-"),"") ->  | AT144: =IF(B144="X",IF(AN144="","Afectat sau NU?",IF(AN144="DA",IF(((AI144+AJ144)-(AE144+AF144))*24<-720,"Neinformat",((AI144+AJ144)-(AE144+AF144))*24),"Nu a fost afectat producator/consumator")),"") ->  | AU144: =IF(B144="X",IF(AN144="DA",IF(AT144<6,LEN(TRIM(U144))-LEN(SUBSTITUTE(U144,CHAR(44),""))+1,0),"-"),"") ->  | AV144: =IF(B144="X",IF(AN144="DA",LEN(TRIM(U144))-LEN(SUBSTITUTE(U144,CHAR(44),""))+1,"-"),"") ->  | AW144: =IF(B144="X",IF(AN144="","Afectat sau NU?",IF(AN144="DA",((AG144+AH144)-(AE144+AF144))*24,"Nu a fost afectat producator/consumator")),"") ->  | AX144: =IF(B144="X",IF(AN144="DA",IF(AW144>24,IF(AZ144="NU",0,LEN(TRIM(V144))-LEN(SUBSTITUTE(V144,CHAR(44),""))+1),0),"-"),"") ->  | AY144: =IF(B144="X",IF(AN144="DA",IF(AW144>24,LEN(TRIM(V144))-LEN(SUBSTITUTE(V144,CHAR(44),""))+1,0),"-"),"") ->  | BE144: Afectat sau NU? | BF144: =IF(C144="X",IF(AN144="DA",IF(AND(BE144>=5,AK144<>""),LEN(TRIM(V144))-LEN(SUBSTITUTE(V144,CHAR(44),""))+1,0),"-"),"") -> - | BG144: =IF(C144="X",IF(AN144="DA",LEN(TRIM(V144))-LEN(SUBSTITUTE(V144,CHAR(44),""))+1,"-"),"") -> - | BH144: Afectat sau NU? | BI144: =IF(C144="X",IF(AN144="DA",IF(AND(BH144>=5,AI144<>""),LEN(TRIM(U144))-LEN(SUBSTITUTE(U144,CHAR(44),""))+1,0),"-"),"") -> - | BJ144: =IF(C144="X",IF(AN144="DA",LEN(TRIM(U144))-LEN(SUBSTITUTE(U144,CHAR(44),""))+1,"-"),"") -> - | BK144: =IF(C144="X",IF(AN144="","Afectat sau NU?",IF(AN144="DA",((AG144+AH144)-(Z144+AA144))*24,"Nu a fost afectat producator/consumator")),"") -> Afectat sau NU? | BL144: =IF(C144="X",IF(AN144<>"DA","-",IF(AND(AN144="DA",BK144<=0),LEN(TRIM(V144))-LEN(SUBSTITUTE(V144,CHAR(44),""))+1+LEN(TRIM(U144))-LEN(SUBSTITUTE(U144,CHAR(44),""))+1,0)),"") -> - | BM144: =IF(C144="X",IF(AN144="DA",LEN(TRIM(V144))-LEN(SUBSTITUTE(V144,CHAR(44),""))+1+LEN(TRIM(U144))-LEN(SUBSTITUTE(U144,CHAR(44),""))+1,"-"),"") -> -
A145: 129 | B145: - | C145: X | D145: Reparație conductă 20” Bârghiș - Făgăraș, tronson Cincu - Făgăraș | E145: 40820 | F145: Cincu | G145: Brașov | H145: 485001.6068 | I145: 491486.8454 | J145: 481681 | K145: 499886 | L145: - | M145: - | N145: SM0786D0 | O145: Cincu | P145: - | Q145: - | R145: - | S145: - | T145: SM-SD001 | U145: Engie România, E-on Energie | V145: Distrigaz Sud Rețele | W145: iunie - septembrie 2018 | AB145: Mediaș | BE145: Afectat sau NU? | BF145: - | BG145: - | BH145: Afectat sau NU? | BI145: - | BJ145: - | BK145: Afectat sau NU? | BL145: - | BM145: -
A146: 130 | B146: - | C146: X | D146: Reparație conductă 10” Pct.B - Victoria - defecte de coroziune | E146: 42101 | F146: Ucea de Jos | G146: Brașov | H146: 474295.754 | I146: 477143.1429 | J146: 475942.204 | K146: 472860.797 | L146: - | M146: - | N146: SM0811D0 | O146: Ucea de Jos | P146: - | Q146: - | R146: - | S146: - | T146: SM-SD001 | U146: Engie România, OMV Petrom | V146: Distrigaz Sud Rețele | W146: mai - septembrie 2018 | AB146: Mediaș | BE146: Afectat sau NU? | BF146: - | BG146: - | BH146: Afectat sau NU? | BI146: - | BJ146: - | BK146: Afectat sau NU? | BL146: - | BM146: -
A147: 131 | B147: - | C147: X | D147: Reparație conductă 10” Pct.B - Victoria - defecte de coroziune | E147: 42101 | F147: Ucea de Sus | G147: Brașov | H147: 474295.754 | I147: 477143.1429 | J147: 475942.204 | K147: 472860.797 | L147: - | M147: - | N147: SM0812D0 | O147: Ucea de Sus | P147: - | Q147: - | R147: - | S147: - | T147: SM-SD001 | U147: Engie România | V147: Distrigaz Sud Rețele | W147: mai - septembrie 2018 | AB147: Mediaș | BE147: Afectat sau NU? | BF147: - | BG147: - | BH147: Afectat sau NU? | BI147: - | BJ147: - | BK147: Afectat sau NU? | BL147: - | BM147: -
A148: 132 | B148: - | C148: X | D148: Reparație conductă racord SRM Vard | E148: 144456 | F148: Vard | G148: Sibiu | H148: 467779 | I148: 494027 | J148: 468618 | K148: 494023 | L148: - | M148: - | N148: SM0789D0 | O148: Vard | P148: - | Q148: - | R148: - | S148: - | T148: SM-SD001 | U148: E-on Energie, E.on Gaz Furnizare | V148: Delgaz Grid | W148: iunie 2018 | AB148: Mediaș | BE148: Afectat sau NU? | BF148: - | BG148: - | BH148: Afectat sau NU? | BI148: - | BJ148: - | BK148: Afectat sau NU? | BL148: - | BM148: -
A149: 133 | B149: - | C149: X | D149: Reparație conductă 10” racord Beclean - Năsăud | E149: 34903 | F149: Cociu | G149: Bistrița Năsăud | H149: 437752.715 | I149: 629581.66 | J149: 448508.5454 | K149: 641785.3288 | L149: - | M149: - | N149: SM0027D0 | O149: Cociu | P149: - | Q149: - | R149: - | S149: - | T149: SM-SD001 | U149: E-on Energie, E.on Gaz Furnizare | V149: Delgaz Grid | W149: iunie - iulie 2018 | AB149: Cluj | BE149: Afectat sau NU? | BF149: - | BG149: - | BH149: Afectat sau NU? | BI149: - | BJ149: - | BK149: Afectat sau NU? | BL149: - | BM149: -
A150: 134 | B150: - | C150: X | D150: Reparație conductă 10” racord Beclean - Năsăud | E150: 33122 | F150: Chiuza | G150: Bistrița Năsăud | H150: 437752.715 | I150: 629581.66 | J150: 448508.5454 | K150: 641785.3288 | L150: - | M150: - | N150: SM1269D0 | O150: Chiuza | P150: - | Q150: - | R150: - | S150: - | T150: SM-SD001 | U150: OMV Petrom | V150: Premier Energy | W150: iunie - iulie 2018 | AB150: Cluj | BE150: Afectat sau NU? | BF150: - | BG150: - | BH150: Afectat sau NU? | BI150: - | BJ150: - | BK150: Afectat sau NU? | BL150: - | BM150: -
A151: 135 | B151: - | C151: X | D151: Reparație conductă 10” racord Beclean - Năsăud | E151: 32544 | F151: Năsăud | G151: Bistrița Năsăud | H151: 437752.715 | I151: 629581.66 | J151: 448508.5454 | K151: 641785.3288 | L151: - | M151: - | N151: SM0870D0 | O151: Năsăud | P151: - | Q151: - | R151: - | S151: - | T151: SM-SD001 | U151: Nova power, Cis Gaz, Engie România, E-on Energie, Enel, Premier Energy | V151: CPL Concordia | W151: iunie - iulie 2018 | AB151: Cluj | BE151: Afectat sau NU? | BF151: - | BG151: - | BH151: Afectat sau NU? | BI151: - | BJ151: - | BK151: Afectat sau NU? | BL151: - | BM151: -
A152: 136 | B152: - | C152: X | D152: Reparație conductă racord Abrămuț - Petrom | E152: 27178 | F152: Abrămuţ | G152: Bihor | H152: 294775.5668 | I152: 651782.2035 | J152: 294775.5668 | K152: 651782.2035 | L152: - | M152: - | N152: - | O152: - | P152: - | Q152: - | R152: PM0083 | S152: Abrămuţ | T152: PM-PP001 | U152: Alpha Metal, Nova Power, Cez Vânzare, Cis Gaz, Distrigaz Vest, Engie România, E-on Energie, Energy Distribution, E.on Gaz Furnizare, Gaz Est, Met România, Next Energy, Premier Energy, OMV Petrom, Energy Gas, Restart Energy, Saint Gobain, WIEE România | V152: OMV Petrom | W152: mai - iunie 2018 | AB152: Cluj | BE152: =IF(C152="X",IF(AN152="","Afectat sau NU?",IF(AN152="DA",IF(AK152="","Neinformat",NETWORKDAYS(AK152+AL152,AE152+AF152,$BR$2:$BR$14)-1),"Nu a fost afectat producator/consumator")),"") -> Afectat sau NU? | BF152: - | BG152: - | BH152: =IF(C152="X",IF(AN152="","Afectat sau NU?",IF(AN152="DA",IF(AI152="","Neinformat",NETWORKDAYS(AI152+AJ152,AE152+AF152,$BR$2:$BR$14)-1),"Nu a fost afectat producator/consumator")),"") -> Afectat sau NU? | BI152: - | BJ152: - | BK152: Afectat sau NU? | BL152: - | BM152: -
A153: 137 | B153: - | C153: X | D153: Reparație Panou Vaidei | E153: 118575 | F153: Vaideiu | G153: Mureș | H153: 448030.6719 | I153: 556139.2218 | J153: 448030.6719 | K153: 556139.2218 | L153: - | M153: - | N153: - | O153: - | P153: - | Q153: - | R153: PM0136 | S153: Vaideiu SU | T153: PM-PP001 | U153: Alpha Metal, Nova Power, Complexul Energetic Hunedoara, Engie România, E-on Energie, Electrocentrale București, E.on Gaz Furnizare, Ottogaz, Premier Energy, Restart Energy, Romgaz, Tinmar | V153: Romgaz | W153: iunie - iulie 2018 | AB153: Cluj | BE153: Afectat sau NU? | BF153: - | BG153: - | BH153: Afectat sau NU? | BI153: - | BJ153: - | BK153: Afectat sau NU? | BL153: - | BM153: -
A154: 138 | B154: - | C154: X | D154: Reparație Panou Vaidei | E154: 117667 | F154: Iclănzel | G154: Mureș | H154: 448030.6719 | I154: 556139.2218 | J154: 448030.6719 | K154: 556139.2218 | L154: - | M154: - | N154: SM0672D0 | O154: Iclănzel | P154: - | Q154: - | R154: - | S154: - | T154: SM-SD001 | U154: Alpiq Romindustries, Engie România, E-on Energie, Enel, E.on Gaz Furnizare, Restart Energiy | V154: Delgaz Grid | W154: iunie - iulie 2018 | AB154: Cluj | BE154: Afectat sau NU? | BF154: - | BG154: - | BH154: Afectat sau NU? | BI154: - | BJ154: - | BK154: Afectat sau NU? | BL154: - | BM154: -
A155: 139 | B155: - | C155: X | D155: Lucrări de mentenanță pe conducta 12” racord SRM Roșiori de Vede | E155: 151870 | F155: Roșiorii de Vede | G155: Teleorman | H155: 482098.382 | I155: 278705.442 | J155: 493993.494 | K155: 285232.495 | L155: - | M155: - | N155: SM0082D0 | O155: Roșiorii de Vede | P155: - | Q155: - | R155: - | S155: - | T155: SM-SD001 | U155: Cez Vânzare, Cis Gaz, Engie România, E-on Energie, Gaz Est, Premier Energy, Restart Energy | V155: Premier Energy | W155: septembrie 2018 octombrie 2018 - septembrie 2019 aprilie - septembrie 2019 | AB155: Craiova | AC155: Se amână pentru anul gazier 2018-2019 | AD155: Volum mare de lucrări | BE155: Afectat sau NU? | BF155: - | BG155: - | BH155: Afectat sau NU? | BI155: - | BJ155: - | BK155: Afectat sau NU? | BL155: - | BM155: -
A156: 140 | B156: - | C156: X | D156: Lucrări de mentenanță pe conducta 12” Strâmba - Turcineşti, zona SRM Câlnic | E156: 80846 | F156: Mătăsari | G156: Gorj | H156: 346261.031 | I156: 379765.543 | J156: 347430.943 | K156: 386957.876 | L156: - | M156: - | N156: SM0994D0 | O156: Mătăsari | P156: - | Q156: - | R156: - | S156: - | T156: SM-SD001 | U156: Cez Vânzare, Engie România, Premier Energy, OMV Petrom | V156: Distrigaz Sud Rețele | W156: august 2018 | X156: 2018-08-30 | Y156: 08:00:00 | Z156: 2018-08-30 | AA156: 18:00:00 | AB156: Craiova | AC156: Efectuată | AE156: 2018-08-30 | AF156: 08:00:00 | AG156: 2018-08-30 | AH156: 17:50:00 | AI156: 2018-08-24 | AJ156: 10:25:00 | AK156: 2018-08-24 | AL156: 09:24:00 | AM156: 2237/27.08.2018 | AN156: DA | AO156: Notificat doar cu 4 zile inainte de lucrare | BE156: 4 | BF156: 0 | BG156: 1 | BH156: 4 | BI156: 0 | BJ156: 4 | BK156: -0.1666666667 | BL156: 5 | BM156: 5
A157: 141 | B157: - | C157: X | D157: Lucrări de mentenanță pe conducta 12” Strâmba - Turcineşti, zona SRM Câlnic | E157: 78141 | F157: Motru | G157: Gorj | H157: 346261.031 | I157: 379765.543 | J157: 347430.943 | K157: 386957.876 | L157: - | M157: - | N157: SM0993D0 | O157: Motru | P157: - | Q157: - | R157: - | S157: - | T157: SM-SD001 | U157: Cez Vânzare, Cis Gaz, Engie România, E-on Energie, Enel, Premier Energy, OMV Petrom, Restart Energy | V157: Premier Energy | W157: august 2018 | X157: 2018-08-30 | Y157: 08:00:00 | Z157: 2018-08-30 | AA157: 18:00:00 | AB157: Craiova | AC157: Efectuată | AE157: 2018-08-30 | AF157: 08:00:00 | AG157: 2018-08-30 | AH157: 17:50:00 | AI157: 2018-08-24 | AJ157: 10:25:00 | AK157: 2018-08-24 | AL157: 09:28:00 | AM157: 2237/27.08.2018 | AN157: DA | AO157: Notificat doar cu 4 zile inainte de lucrare | BE157: 4 | BF157: 0 | BG157: 1 | BH157: 4 | BI157: 0 | BJ157: 8 | BK157: -0.1666666667 | BL157: 9 | BM157: 9
A158: 142 | B158: - | C158: X | D158: Lucrări de mentenanță pe conducta 12” Strâmba - Turcineşti, zona SRM Câlnic | E158: 80427 | F158: Godinești | G158: Gorj | H158: 346261.031 | I158: 379765.543 | J158: 347430.943 | K158: 386957.876 | L158: - | M158: - | N158: SM0960D0 | O158: Godinești | P158: - | Q158: - | R158: - | S158: - | T158: SM-SD001 | U158: Cez Vânzare, Engie Rommânia | V158: Distrigaz Sud Rețele | W158: august 2018 | AB158: Craiova | AC158: Efectuată (NU a mai fost necesară întreruperea) | AM158: 2237/27.08.2018 | AN158: NU | AO158: Alimentat din zestrea conductei de racord | BE158: Nu a fost afectat producator/consumator | BF158: - | BG158: - | BH158: Nu a fost afectat producator/consumator | BI158: - | BJ158: - | BK158: Nu a fost afectat producator/consumator | BL158: - | BM158: -
A159: 143 | B159: - | C159: X | D159: Lucrări de mentenanță pe conducta 12” Strâmba - Turcineşti, zona SRM Câlnic | E159: 82617 | F159: Strâmba Jiu | G159: Gorj | H159: 346261.031 | I159: 379765.543 | J159: 347430.943 | K159: 386957.876 | L159: - | M159: - | N159: - | O159: - | P159: - | Q159: - | R159: PM0197 | S159: Strâmba | T159: PM-PP001 | U159: Alpha Metal, Cez Vânzare, Complexul Energetic Hunedoara, Distrigaz Vest, Engie România, E-on Energie, Enel, Energia Gas & Power, Electrocentrale București, E.on Gaz Furnizare, Gaz Est, Met România, Next Energy, Ottogaz, Premier Energy, OMV Petrom, Energy Gas, Restart Energy, RWE România, Romgaz, SCAEP Giurgiu, Tinmar, WIEE România | V159: Romgaz | W159: august 2018 | X159: 2018-08-30 | Y159: 08:00:00 | Z159: 2018-08-30 | AA159: 18:00:00 | AB159: Craiova | AC159: Efectuată | AE159: 2018-08-30 | AF159: 08:00:00 | AG159: 2018-08-30 | AH159: 17:50:00 | AI159: 2018-08-24 | AJ159: 10:25:00 | AK159: 2018-08-24 | AL159: 09:32:00 | AM159: 2237/27.08.2018 | AN159: DA | AO159: Notificat doar cu 4 zile inainte de lucrare | BE159: 4 | BF159: 0 | BG159: 1 | BH159: 4 | BI159: 0 | BJ159: 23 | BK159: -0.1666666667 | BL159: 24 | BM159: 24
A160: 144 | B160: - | C160: X | D160: Lucrări de mentenanță pe conducta 16” Slătioarele - Vața | E160: 19793 | F160: Vața | G160: Argeș | H160: 474706.092 | I160: 359387.538 | J160: 477763.848 | K160: 369836.352 | L160: - | M160: - | N160: SM0219D0 | O160: Vața | P160: - | Q160: - | R160: - | S160: - | T160: SM-SD001 | U160: Engie România | V160: Distrigaz Sud Rețele | W160: august 2018 | AB160: Craiova | AC160: Efectuată | AO160: A fost efectuata in regim de urgenta si publicata la pozitia 248 | BE160: Afectat sau NU? | BF160: - | BG160: - | BH160: Afectat sau NU? | BI160: - | BJ160: - | BK160: Afectat sau NU? | BL160: - | BM160: -
A161: 145 | B161: - | C161: X | D161: Lucrări de mentenanță pe conducta 16” Slătioarele - Vața | E161: 18028 | F161: Poiana Lacului | G161: Argeș | H161: 474706.092 | I161: 359387.538 | J161: 477763.848 | K161: 369836.352 | L161: - | M161: - | N161: SM1258D0 | O161: Poiana Lacului | P161: - | Q161: - | R161: - | S161: - | T161: SM-SD001 | U161: OMV Petrom, Restart Energy | V161: Tehnologia Radion | W161: august 2018 | AB161: Craiova | AC161: Efectuată | AO161: A fost efectuata in regim de urgenta si publicata la pozitia 249 | BE161: Afectat sau NU? | BF161: - | BG161: - | BH161: Afectat sau NU? | BI161: - | BJ161: - | BK161: Afectat sau NU? | BL161: - | BM161: -
A162: 146 | B162: - | C162: X | D162: Lucrări de mentenanță în SRM Bănești | E162: 132315 | F162: Bănești | G162: Prahova | H162: 559787.947 | I162: 399683.531 | J162: 559787.947 | K162: 399683.531 | L162: - | M162: - | N162: SM0092D0 | O162: Bănești | P162: - | Q162: - | R162: - | S162: - | T162: SM-SD001 | U162: Engie România, Enel, Tinmar | V162: Distrigaz Sud Rețele | W162: iunie 2018 iulie 2018 august 2018 septembrie 2018 octombrie 2018 | AB162: București | AD162: Materialele necesare efectuării lucrării se află în procedura de achiziții publice centralizate. | BE162: Afectat sau NU? | BF162: - | BG162: - | BH162: Afectat sau NU? | BI162: - | BJ162: - | BK162: Afectat sau NU? | BL162: - | BM162: -
A163: 147 | B163: - | C163: X | D163: Lucrări de mentenanță în SRM Moreni | E163: 65841 | F163: Moreni | G163: Dâmbovița | H163: 552087.198 | I163: 385342.33 | J163: 552087.198 | K163: 385342.33 | L163: - | M163: - | N163: SM0102D1 | O163: Moreni | P163: - | Q163: - | R163: - | S163: - | T163: SM-SD001 | U163: Cez Vânzare, Engie România, E-on Energie, Premier Energy | V163: Distrigaz Sud Rețele | W163: aprilie - iulie 2018 | AB163: București | AC163: Efectuată (NU a mai fost necesară întreruperea) | AN163: NU | BE163: Nu a fost afectat producator/consumator | BF163: - | BG163: - | BH163: Nu a fost afectat producator/consumator | BI163: - | BJ163: - | BK163: Nu a fost afectat producator/consumator | BL163: - | BM163: -
A164: 148 | B164: - | C164: X | D164: Lucrări de mentenanță în SRM Moreni | E164: 67737 | F164: Ghirdoveni | G164: Dâmbovița | H164: 552087.198 | I164: 385342.33 | J164: 552087.198 | K164: 385342.33 | L164: - | M164: - | N164: SM0102D2 | O164: Moreni - Ghirdoveni | P164: - | Q164: - | R164: - | S164: - | T164: SM-SD001 | U164: Cez Vânzare, Engie România | V164: Distrigaz Sud Rețele | W164: aprilie - iulie 2018 | AB164: București | AC164: Efectuată (NU a mai fost necesară întreruperea) | AN164: NU | BE164: Nu a fost afectat producator/consumator | BF164: - | BG164: - | BH164: Nu a fost afectat producator/consumator | BI164: - | BJ164: - | BK164: Nu a fost afectat producator/consumator | BL164: - | BM164: -
A165: 149 | B165: - | C165: X | D165: Lucrări de mentenanță pe conducta 20”' Ernei - Reghin | E165: 117177 | F165: Gorneşti | G165: Mureș | H165: 472177.9974 | I165: 569756.7803 | J165: 473998.1419 | K165: 574954.8125 | L165: - | M165: - | N165: SM0699D0 | O165: Gorneşti | P165: - | Q165: - | R165: - | S165: - | T165: SM-SD001 | U165: Alpiq Romindusrties, Cis Gaz, Engie România, E-on Energie, Enel, E.on Gaz Furnizare | V165: Delgaz Grid | W165: iulie - august 2018 | AB165: Cluj | BE165: Afectat sau NU? | BF165: - | BG165: - | BH165: Afectat sau NU? | BI165: - | BJ165: - | BK165: Afectat sau NU? | BL165: - | BM165: -
A166: 150 | B166: - | C166: X | D166: Lucrări de mentenanță pe conducta 20”' Ernei - Reghin | E166: 117177 | F166: Periş | G166: Mureș | H166: 472177.9974 | I166: 569756.7803 | J166: 473998.1419 | K166: 574954.8125 | L166: - | M166: - | N166: SM0701D0 | O166: Periş | P166: - | Q166: - | R166: - | S166: - | T166: SM-SD001 | U166: Alpiq Romindustries, Cez Vânzare, Cis Gaz, E-on Energie, Enel, E.on Gaz, Restart Energy | V166: Delgaz Grid | W166: iulie - august 2018 | AB166: Cluj | BE166: Afectat sau NU? | BF166: - | BG166: - | BH166: Afectat sau NU? | BI166: - | BJ166: - | BK166: Afectat sau NU? | BL166: - | BM166: -
A167: 151 | B167: - | C167: X | D167: Lucrări de mentenanță pe conducta 20”' Ernei - Reghin | E167: 118799 | F167: Petelea | G167: Mureș | H167: 472177.9974 | I167: 569756.7803 | J167: 473998.1419 | K167: 574954.8125 | L167: - | M167: - | N167: SM0710D0 | O167: Petelea | P167: - | Q167: - | R167: - | S167: - | T167: SM-SD001 | U167: Cis Gaz, E-on Energie, Enel, E.on Gaz Furnizare, Gaz Est, Restart Energy | V167: Delgaz Grid | W167: iulie - august 2018 | AB167: Cluj | BE167: Afectat sau NU? | BF167: - | BG167: - | BH167: Afectat sau NU? | BI167: - | BJ167: - | BK167: Afectat sau NU? | BL167: - | BM167: -
A168: 152 | B168: - | C168: X | D168: Lucrări de mentenanță pe conducta 20”' Ernei - Reghin | E168: 114809 | F168: Reghin | G168: Mureș | H168: 472177.9974 | I168: 569756.7803 | J168: 473998.1419 | K168: 574954.8125 | L168: - | M168: - | N168: SM0696D0 | O168: Reghin | P168: - | Q168: - | R168: - | S168: - | T168: SM-SD001 | U168: Alpiq Romindustries, Cez Vânzare, Cis Gaz, Engie România, E-on Energie, Enel, E.on Gaz Furnizare, Gaz Est, Met România, Premier Energy, OMV Petrom, Restart Energy | V168: Delgaz Grid | W168: iulie - august 2018 | AB168: Cluj | BE168: Afectat sau NU? | BF168: - | BG168: - | BH168: Afectat sau NU? | BI168: - | BJ168: - | BK168: Afectat sau NU? | BL168: - | BM168: -
A169: 153 | B169: - | C169: X | D169: Montare/înlocuire îmbinare electroizolanță pe conducta 8” Vața - Pitești Sud | E169: 13935 | F169: Albota | G169: Argeș | H169: 488282.297 | I169: 362733.684 | J169: 491673.721 | K169: 366155.923 | L169: - | M169: - | N169: SM1245D0 | O169: Albota | P169: - | Q169: - | R169: - | S169: - | T169: SM-SD001 | U169: Cez Vânzare, Engie România, Restart Energy, Tinmar | V169: Distrigaz Sud Rețele | W169: august 2018 octombrie 2018 - septembrie 2019 aprilie - septembrie 2019 | AB169: Craiova | AC169: Se amână pentru anul gazier 2018-2019 | AD169: Volum mare de lucrări | BE169: Afectat sau NU? | BF169: - | BG169: - | BH169: Afectat sau NU? | BI169: - | BJ169: - | BK169: Afectat sau NU? | BL169: - | BM169: -
A170: 154 | B170: - | C170: X | D170: Montare/înlocuire îmbinare electroizolanță pe conducta 2” racord SRM Secuieni 1 | E170: 124233 | F170: Secuieni | G170: Neamț | H170: 642260.4267 | I170: 597186.6962 | J170: 642269.9557 | K170: 597145.4246 | L170: - | M170: - | N170: SM0472D0 | O170: SC SCAZ Secuieni I | P170: - | Q170: - | R170: - | S170: - | T170: SM-CF001 | U170: Gaz Est, Tinmar | V170: SCAZ Secuieni | W170: iulie 2018 | X170: 2018-07-05 | Y170: 10:00:00 | Z170: 2018-07-05 | AA170: 15:00:00 | AB170: Bacău | AC170: Efectuată | AE170: 2018-07-05 | AF170: 09:14:00 | AG170: 2018-07-05 | AH170: 14:00:00 | AI170: 2018-06-28 | AJ170: 10:16:00 | AK170: 2018-06-28 | AL170: 09:49:00 | AM170: 3792/04.07.2018 | AN170: Da | BE170: 5 | BF170: 1 | BG170: 1 | BH170: 5 | BI170: 2 | BJ170: 2 | BK170: -0.9999999999 | BL170: 3 | BM170: 3
A171: 155 | B171: - | C171: X | D171: Montare/înlocuire îmbinare electroizolanță pe conducta 2” racord SRM Secuieni 2 | E171: 124233 | F171: Secuieni | G171: Neamț | H171: 640462.3512 | I171: 596963.6936 | J171: 640482.9933 | K171: 596912.8929 | L171: - | M171: - | N171: SM0481D0 | O171: SC SCAZ Secuieni II | P171: - | Q171: - | R171: - | S171: - | T171: SM-CF001 | U171: Gaz Est, Tinmar | V171: SCAZ Secuieni | W171: iulie 2018 | X171: 2018-07-05 | Y171: 10:00:00 | Z171: 2018-07-05 | AA171: 15:00:00 | AB171: Bacău | AC171: Efectuată | AE171: 2018-07-05 | AF171: 09:14:00 | AG171: 2018-07-05 | AH171: 13:45:00 | AI171: 2018-06-28 | AJ171: 10:16:00 | AK171: 2018-06-28 | AL171: 09:49:00 | AM171: 3792/04.07.2018 | AN171: Nu | BE171: Nu a fost afectat producator/consumator | BF171: - | BG171: - | BH171: Nu a fost afectat producator/consumator | BI171: - | BJ171: - | BK171: Nu a fost afectat producator/consumator | BL171: - | BM171: -
A172: 156 | B172: - | C172: X | D172: Montare/înlocuire îmbinare electroizolanță pe conducta 6” racord SRM Podoleni | E172: 124625 | F172: Podoleni | G172: Neamț | H172: 622525.4764 | I172: 589094.2064 | J172: 622773.1313 | K172: 588848.1417 | L172: - | M172: - | N172: SM0939D0 | O172: Podoleni | P172: - | Q172: - | R172: - | S172: - | T172: SM-SD001 | U172: Engie România, E-on Energie, Enel, E.on Gaz Furnizare, Gaz Est | V172: Delgaz Grid | W172: august 2018 | X172: 2018-08-23 | Y172: 09:00:00 | Z172: 2018-08-23 | AA172: 14:00:00 | AB172: Bacău | AC172: Efectuată | AE172: 2018-08-23 | AF172: 09:00:00 | AG172: 2018-08-23 | AH172: 12:26:00 | AI172: 2018-08-14 | AJ172: 15:06:00 | AK172: 2018-08-14 | AL172: 13:17:00 | AM172: 4669/20.08.2018 | AN172: NU | BE172: Nu a fost afectat producator/consumator | BF172: - | BG172: - | BH172: Nu a fost afectat producator/consumator | BI172: - | BJ172: - | BK172: Nu a fost afectat producator/consumator | BL172: - | BM172: -
A173: 157 | B173: - | C173: X | D173: Montare/înlocuire îmbinare electroizolanță pe conducta 10 3/4” Tazlău - Săvinești | E173: 124616 | F173: Tazlău | G173: Neamț | H173: 613260.5036 | I173: 581376.348 | J173: 613225.5805 | K173: 581343.0089 | L173: - | M173: - | N173: SM0452D0 | O173: Tazlău | P173: - | Q173: - | R173: - | S173: - | T173: SM-SD001 | U173: E-on Energie, E.on Gaz Furnizare, Premier Energy | V173: Delgaz Grid | W173: august 2018 octombrie 2018 | AB173: Bacău | AC173: Se amână pentru anul gazier 2018-2019 | AD173: Volum mare de lucrări | BE173: Afectat sau NU? | BF173: - | BG173: - | BH173: Afectat sau NU? | BI173: - | BJ173: - | BK173: Afectat sau NU? | BL173: - | BM173: -
A174: 158 | B174: - | C174: X | D174: Montare/înlocuire îmbinare electroizolanță pe conducta 10 3/4” Tazlău - Săvinești | E174: 124616 | F174: Tazlău | G174: Neamț | H174: 613260.5036 | I174: 581376.348 | J174: 613225.5805 | K174: 581343.0089 | L174: - | M174: - | N174: - | O174: - | P174: - | Q174: - | R174: PM0096 | S174: Tazlău | T174: PM-PP001 | U174: Alpha Metal, Cez Vanzare, Complexul Energetic Hunedoara, Engie România, E-on Energie, Electrocentrale București, Enel, E.on Gaz Furnizare, Gaz Est, Met Romania, Ottogaz, Premier Energy, Romgaz, Tinmar | V174: Romgaz | W174: august 2018 octombrie 2018 | AB174: Bacău | AC174: Se amână pentru anul gazier 2018-2019 | AD174: Volum mare de lucrări | BE174: Afectat sau NU? | BF174: - | BG174: - | BH174: Afectat sau NU? | BI174: - | BJ174: - | BK174: Afectat sau NU? | BL174: - | BM174: -
A175: 159 | B175: - | C175: X | D175: Montare/înlocuire îmbinare electroizolanță pe conducta de racord SRM Vad | E175: 41818 | F175: Vad | G175: Brașov | H175: 511539.3215 | I175: 478245.4786 | J175: 477822 | K175: 511691 | L175: - | M175: - | N175: SM0021D0 | O175: Vad | P175: - | Q175: - | R175: - | S175: - | T175: SM-SD001 | U175: Engie România, E-on Energie | V175: Distrigaz Sud Rețele | W175: iulie 2018 | AB175: Mediaș | BE175: Afectat sau NU? | BF175: - | BG175: - | BH175: Afectat sau NU? | BI175: - | BJ175: - | BK175: Afectat sau NU? | BL175: - | BM175: -
A176: 160 | B176: - | C176: X | D176: Montare/înlocuire îmbinare electroizolanță în SRM Șercaia | E176: 41818 | F176: Șercaia | G176: Brașov | H176: 508967.5678 | I176: 481292.4038 | J176: 481124 | K176: 510692 | L176: - | M176: - | N176: SM0019D0 | O176: Șercaia | P176: - | Q176: - | R176: - | S176: - | T176: SM-SD001 | U176: Engie România | V176: Distrigaz Sud Rețele | W176: iulie 2018 | AB176: Mediaș | AQ176: =IF(B176="X",IF(AN176="","Afectat sau NU?",IF(AN176="DA",IF(((AK176+AL176)-(AE176+AF176))*24<-720,"Neinformat",((AK176+AL176)-(AE176+AF176))*24),"Nu a fost afectat producator/consumator")),"") ->  | AR176: =IF(B176="X",IF(AN176="DA",IF(AQ176<6,LEN(TRIM(V176))-LEN(SUBSTITUTE(V176,CHAR(44),""))+1,0),"-"),"") ->  | AS176: =IF(B176="X",IF(AN176="DA",LEN(TRIM(V176))-LEN(SUBSTITUTE(V176,CHAR(44),""))+1,"-"),"") ->  | AT176: =IF(B176="X",IF(AN176="","Afectat sau NU?",IF(AN176="DA",IF(((AI176+AJ176)-(AE176+AF176))*24<-720,"Neinformat",((AI176+AJ176)-(AE176+AF176))*24),"Nu a fost afectat producator/consumator")),"") ->  | AU176: =IF(B176="X",IF(AN176="DA",IF(AT176<6,LEN(TRIM(U176))-LEN(SUBSTITUTE(U176,CHAR(44),""))+1,0),"-"),"") ->  | AW176: =IF(B176="X",IF(AN176="","Afectat sau NU?",IF(AN176="DA",((AG176+AH176)-(AE176+AF176))*24,"Nu a fost afectat producator/consumator")),"") ->  | AX176: =IF(B176="X",IF(AN176="DA",IF(AW176>24,IF(AZ176="NU",0,LEN(TRIM(V176))-LEN(SUBSTITUTE(V176,CHAR(44),""))+1),0),"-"),"") ->  | AY176: =IF(B176="X",IF(AN176="DA",IF(AW176>24,LEN(TRIM(V176))-LEN(SUBSTITUTE(V176,CHAR(44),""))+1,0),"-"),"") ->  | BE176: Afectat sau NU? | BF176: =IF(C176="X",IF(AN176="DA",IF(AND(BE176>=5,AK176<>""),LEN(TRIM(V176))-LEN(SUBSTITUTE(V176,CHAR(44),""))+1,0),"-"),"") -> - | BG176: =IF(C176="X",IF(AN176="DA",LEN(TRIM(V176))-LEN(SUBSTITUTE(V176,CHAR(44),""))+1,"-"),"") -> - | BH176: Afectat sau NU? | BI176: =IF(C176="X",IF(AN176="DA",IF(AND(BH176>=5,AI176<>""),LEN(TRIM(U176))-LEN(SUBSTITUTE(U176,CHAR(44),""))+1,0),"-"),"") -> - | BJ176: - | BK176: =IF(C176="X",IF(AN176="","Afectat sau NU?",IF(AN176="DA",((AG176+AH176)-(Z176+AA176))*24,"Nu a fost afectat producator/consumator")),"") -> Afectat sau NU? | BL176: =IF(C176="X",IF(AN176<>"DA","-",IF(AND(AN176="DA",BK176<=0),LEN(TRIM(V176))-LEN(SUBSTITUTE(V176,CHAR(44),""))+1+LEN(TRIM(U176))-LEN(SUBSTITUTE(U176,CHAR(44),""))+1,0)),"") -> - | BM176: -
A177: 161 | B177: - | C177: X | D177: Montare/înlocuire îmbinare electroizolanță în SRM Comana | E177: 40857 | F177: Comana | G177: Brașov | H177: 519175.9845 | I177: 490071.2473 | J177: 490172 | K177: 518741 | L177: - | M177: - | N177: SM0025D0 | O177: Comana | P177: - | Q177: - | R177: - | S177: - | T177: SM-SD001 | U177: Engie România, Enel | V177: Distrigaz Sud Rețele | W177: iulie 2018 | AB177: Mediaș | BE177: Afectat sau NU? | BF177: - | BG177: - | BH177: Afectat sau NU? | BI177: - | BJ177: - | BK177: Afectat sau NU? | BL177: - | BM177: -
A178: =A177+1 -> 162 | B178: - | C178: X | D178: Montare/înlocuire îmbinare electroizolanță în SRM Vârghiș | E178: 64997 | F178: Vârghiș | G178: Harghita | H178: 545495.6815 | I178: 513386.5669 | J178: 513364 | K178: 545447 | L178: - | M178: - | N178: SM0392D0 | O178: Vârghiș | P178: - | Q178: - | R178: - | S178: - | T178: SM-SD001 | U178: Engie România, Met România | V178: Distrigaz Sud Rețele | W178: august 2018 | AB178: Brașov | AD178: Nu se va opri. S-a montat alimentare alternativă provizorie | BE178: Afectat sau NU? | BF178: - | BG178: - | BH178: Afectat sau NU? | BI178: - | BJ178: - | BK178: Afectat sau NU? | BL178: - | BM178: -
A179: 163 | B179: - | C179: X | D179: Montare/înlocuire îmbinare electroizolanță în SRM Tabăra Creștină | E179: 84629 | F179: Lueta | G179: Harghita | H179: 543408.3451 | I179: 536008.1765 | J179: 535955 | K179: 543400 | L179: - | M179: - | N179: SM0413D0 | O179: Fundația Tabor Lueta | P179: - | Q179: - | R179: - | S179: - | T179: SM-CF001 | U179: Distrigaz Vest | V179: Fundația Tabor | W179: august 2018 octombrie 2018 - septembrie 2019 | AB179: Brașov | AD179: Materiale achiziționate cu caracteristici necorespunzătoare | BE179: Afectat sau NU? | BF179: - | BG179: - | BH179: Afectat sau NU? | BI179: - | BJ179: - | BK179: Afectat sau NU? | BL179: - | BM179: -
A180: 164 | B180: - | C180: X | D180: Montare/înlocuire îmbinare electroizolanță în SRM Noul Român | E180: 143959 | F180: Noul Român | G180: Brașov | H180: 467412.7883 | I180: 479215.436 | J180: 479214 | K180: 467412 | L180: - | M180: - | N180: SM0794D0 | O180: Noul Român | P180: - | Q180: - | R180: - | S180: - | T180: SM-SD001 | U180: E-on Energie, E.on Gaz Furnizare, Restart Energy | V180: Delgaz Grid | W180: iulie 2018 | AB180: Mediaș | BE180: Afectat sau NU? | BF180: - | BG180: - | BH180: Afectat sau NU? | BI180: - | BJ180: - | BK180: Afectat sau NU? | BL180: - | BM180: -
A181: 165 | B181: - | C181: X | D181: Montare/înlocuire îmbinare electroizolanță în SRM Ucea de Sus | E181: 42101 | F181: Ucea de Sus | G181: Brașov | H181: 475941.2577 | I181: 472864.0186 | J181: 472823 | K181: 475828 | L181: - | M181: - | N181: SM0812D0 | O181: Ucea de Sus | P181: - | Q181: - | R181: - | S181: - | T181: SM-SD001 | U181: Engie România | V181: Distrigaz Sud Rețele | W181: iulie 2018 | AB181: Mediaș | BE181: Afectat sau NU? | BF181: - | BG181: - | BH181: Afectat sau NU? | BI181: - | BJ181: - | BK181: Afectat sau NU? | BL181: - | BM181: -
A182: 166 | B182: - | C182: X | D182: Montare/înlocuire îmbinare electroizolanță pe conducta de racord SRM Videle | E182: 151905 | F182: Videle | G182: Teleorman | H182: 543744.139 | I182: 321212.962 | J182: 543274.566 | K182: 310044.615 | L182: - | M182: - | N182: SM1111D0 | O182: Videle | P182: - | Q182: - | R182: - | S182: - | T182: SM-SD001 | U182: Cez Vânzare, Engie România, E-on Energie, Gaz Est, Premier Energy, OMV Petrom, Energy Gas | V182: Premier Energy | W182: august 2018 octombrie 2018 - septembrie 2019 | AB182: București | AC182: Se amână pentru anul gazier 2018-2019 | AD182: Se află în faza de întocmire proiect. | BE182: Afectat sau NU? | BF182: - | BG182: - | BH182: Afectat sau NU? | BI182: - | BJ182: - | BK182: Afectat sau NU? | BL182: - | BM182: -
A183: 167 | B183: - | C183: X | D183: Montare/înlocuire îmbinare electroizolanță pe conducta de racord SRM Videle | E183: 104225 | F183: Mârșa | G183: Giurgiu | H183: 543744.139 | I183: 321212.962 | J183: 543274.566 | K183: 310044.615 | L183: - | M183: - | N183: SM1165D0 | O183: Depozit 160 Videle | P183: - | Q183: - | R183: - | S183: - | T183: SM-SD001 | U183: OMV Petrom | V183: OMV Petrom | W183: august 2018 octombrie 2018 - septembrie 2019 | AB183: București | AC183: Se amână pentru anul gazier 2018-2019 | AD183: Se află în faza de întocmire proiect. | BE183: Afectat sau NU? | BF183: - | BG183: - | BH183: Afectat sau NU? | BI183: - | BJ183: - | BK183: Afectat sau NU? | BL183: - | BM183: -
A184: 168 | B184: - | C184: X | D184: Lucrări de mentenanță în SRM Focșani | E184: 174744 | F184: Focșani | G184: Vrancea | H184: 668732.43 | I184: 471274.5 | J184: 668732.43 | K184: 471274.5 | L184: - | M184: - | N184: SM0512D0 | O184: Focșani | P184: - | Q184: - | R184: - | S184: - | T184: SM-SD001 | U184: Nova Power, Cez Vânzare, Engie România, E-on Energie, Energy Distribution, Enel, Energia Gas & Power, Gaz Est, Met România, Premier Energy, OMV Petrom, Energy Gas, Restart energy, RWE Supply, Tinmar, WIEE România | V184: Distrigaz Sud Rețele | W184: aprilie - septembrie iulie - septembrie 2018 septembrie 2018 | AB184: Brăila | AD184: se urmăresc condiții de debit redus (consumuri mici pe perioada anotimpului cald) | BE184: Afectat sau NU? | BF184: - | BG184: - | BH184: Afectat sau NU? | BI184: - | BJ184: - | BK184: Afectat sau NU? | BL184: - | BM184: -
A185: 169 | B185: - | C185: X | D185: Lucrări de mentenanță în SRM Chișcani | E185: 42708 | F185: Chișcani | G185: Brăila | H185: 727559.85 | I185: 414006.44 | J185: 727559.85 | K185: 414006.44 | L185: - | M185: - | N185: SM0531D1 | O185: Chișcani | P185: - | Q185: - | R185: - | S185: - | T185: SM-SD001 | U185: Cez Vânzare, Engie România, E-on Energie, Enel, Premier Energy | V185: Distrigaz Sud Rețele | W185: aprilie - septembrie mai - septembrie 2018 septembrie 2018 | AB185: Brăila | AD185: se urmăresc condiții de debit redus (consumuri mici pe perioada anotimpului cald) în curs de achiziție materiale | BE185: Afectat sau NU? | BF185: - | BG185: - | BH185: Afectat sau NU? | BI185: - | BJ185: - | BK185: Afectat sau NU? | BL185: - | BM185: -
A186: 170 | B186: - | C186: X | D186: Lucrări de mentenanță în SRM Mândra | E186: 41426 | F186: Mândra | G186: Brașov | H186: 479974 | I186: 504159 | J186: 479974 | K186: 504159 | L186: - | M186: - | N186: SM0020D0 | O186: Mândra BV | P186: - | Q186: - | R186: - | S186: - | T186: SM-SD001 | U186: Engie România | V186: Distrigaz Sud Rețele | W186: iulie 2018 | AB186: Mediaș | BE186: Afectat sau NU? | BF186: - | BG186: - | BH186: Afectat sau NU? | BI186: - | BJ186: - | BK186: Afectat sau NU? | BL186: - | BM186: -
A187: 171 | B187: - | C187: X | D187: Lucrări de mentenanță în SRM Victoria II | E187: 40465 | F187: Victoria | G187: Brașov | H187: 466961 | I187: 478828 | J187: 466961 | K187: 478828 | L187: - | M187: - | N187: SM0817D1 | O187: SC Viromet Victoria | P187: - | Q187: - | R187: - | S187: - | T187: SM-CF001 | U187: WIEE România | V187: Viromet | W187: iulie 2018 | AB187: Mediaș | BE187: Afectat sau NU? | BF187: - | BG187: - | BH187: Afectat sau NU? | BI187: - | BJ187: - | BK187: Afectat sau NU? | BL187: - | BM187: -
A188: 172 | B188: - | C188: X | D188: Lucrări de mentenanță în SRM Victoria II | E188: 40465 | F188: Victoria | G188: Brașov | H188: 466961 | I188: 478828 | J188: 466961 | K188: 478828 | L188: - | M188: - | N188: SM0817D2 | O188: Victoria - Cartier Sumerna | P188: - | Q188: - | R188: - | S188: - | T188: SM-SD001 | U188: Engie România | V188: Distrigaz Sud Rețele | W188: iulie 2018 | AB188: Mediaș | BE188: Afectat sau NU? | BF188: - | BG188: - | BH188: Afectat sau NU? | BI188: - | BJ188: - | BK188: Afectat sau NU? | BL188: - | BM188: -
A189: 173 | B189: - | C189: X | D189: Lucrări de mentenanță în SRM Valea Călugărească | E189: 135949 | F189: Valea Călugărească | G189: Prahova | H189: 591733.455 | I189: 384306.786 | J189: 591733.455 | K189: 384306.786 | L189: - | M189: - | N189: SM0136D1 | O189: Valea Călugărească | P189: - | Q189: - | R189: - | S189: - | T189: SM-SD001 | U189: Engie România | V189: Distrigaz Sud Rețele | W189: septembrie 2018 octombrie 2018 - septembrie 2019 | AB189: București | AC189: Se amână pentru anul gazier 2018-2019 | AD189: Materialele necesare efectuării lucrării se află în procedura de achiziții publice centralizate. | BE189: Afectat sau NU? | BF189: - | BG189: - | BH189: Afectat sau NU? | BI189: - | BJ189: - | BK189: Afectat sau NU? | BL189: - | BM189: -
A190: 174 | B190: - | C190: X | D190: Lucrări de mentenanță în SRM Valea Călugărească | E190: 135949 | F190: Valea Călugărească | G190: Prahova | H190: 591733.455 | I190: 384306.786 | J190: 591733.455 | K190: 384306.786 | L190: - | M190: - | N190: SM1112D0 | O190: Urlați | P190: - | Q190: - | R190: - | S190: - | T190: SM-SD001 | U190: Cez Vânzare, Engie România, Alpiq Romindustries, E-on Energie, Energy Gas, OMV Petrom, Premier Energy | V190: Distrigaz Sud Rețele | W190: septembrie 2018 octombrie 2018 - septembrie 2019 | AB190: București | AC190: Se amână pentru anul gazier 2018-2019 | AD190: Materialele necesare efectuării lucrării se află în procedura de achiziții publice centralizate. | BE190: Afectat sau NU? | BF190: - | BG190: - | BH190: Afectat sau NU? | BI190: - | BJ190: - | BK190: Afectat sau NU? | BL190: - | BM190: -
A191: 175 | B191: - | C191: X | D191: Reparație conductă 6” racord alimentare ELSID Titu | E191: 66081 | F191: Titu | G191: Dâmbovița | H191: 540291.87 | I191: 360529.127 | J191: 544542.814 | K191: 352331.208 | L191: - | M191: - | N191: SM0147D0 | O191: SC Elsid Titu | P191: - | Q191: - | R191: - | S191: - | T191: SM-CF001 | U191: E-on Energie | V191: Elsid | W191: iulie - septembrie 2018 august 2018 septembrie 2018 octombrie 2018 - septembrie 2019 | AB191: București | AC191: Se amână pentru anul gazier 2018-2019 | AD191: Se află în faza de întocmire proiect. În curs de obținere a Acordului de acces în teren | BE191: Afectat sau NU? | BF191: - | BG191: - | BH191: Afectat sau NU? | BI191: - | BJ191: - | BK191: Afectat sau NU? | BL191: - | BM191: -
A192: 176 | B192: - | C192: X | D192: Punere în siguranță tronson conductă transport gaze naturale 20” Adjudu Vechi, zonele Braniștea, Schela și Independența (RV64- RV65) | E192: 77153 | F192: Schela | G192: Galați | H192: 724254.19 | I192: 442629.69 | J192: 716510.08 | K192: 451620.98 | L192: - | M192: - | N192: SM0522D0 | O192: Schela | P192: - | Q192: - | R192: - | S192: - | T192: SM-SD001 | U192: Cez Vânzare, Engie România, Enel | V192: Distrigaz Sud Rețele | W192: aprilie - septembrie iunie - septembrie 2018 septembrie 2018 | AB192: Brăila | AD192: se urmăresc condiții de debit redus (consumuri mici pe perioada anotimpului cald) constructorul nu a început lucrarea deși s-a predat amplasamentul și există ordin de începere a lucrărilor | BE192: Afectat sau NU? | BF192: - | BG192: - | BH192: Afectat sau NU? | BI192: - | BJ192: - | BK192: Afectat sau NU? | BL192: - | BM192: -
A193: 177 | B193: - | C193: X | D193: Punere în siguranță tronson conductă transport gaze naturale 20” Adjudu Vechi, zonele Braniștea, Schela și Independența (RV64- RV65) | E193: 76585 | F193: Independența | G193: Galați | H193: 724254.19 | I193: 442629.69 | J193: 716510.08 | K193: 451620.98 | L193: - | M193: - | N193: SM0523D2 | O193: Independența | P193: - | Q193: - | R193: - | S193: - | T193: SM-SD001 | U193: Cez Vânzare, Engie România, E.on Energie, Energy Distribution, Enel, Met România, Premier Energy | V193: Distrigaz Sud Rețele | W193: aprilie - septembrie iunie - septembrie 2018 septembrie 2018 | AB193: Brăila | AD193: se urmăresc condiții de debit redus (consumuri mici pe perioada anotimpului cald) constructorul nu a început lucrarea deși s-a predat amplasamentul și există ordin de începere a lucrărilor | BE193: Afectat sau NU? | BF193: - | BG193: - | BH193: Afectat sau NU? | BI193: - | BJ193: - | BK193: Afectat sau NU? | BL193: - | BM193: -
A194: 178 | B194: - | C194: X | D194: Punere în siguranță tronson conductă transport gaze naturale 20” Adjudu Vechi, zonele Braniștea, Schela și Independența (RV64- RV65) | E194: 76585 | F194: Independența | G194: Galați | H194: 724254.19 | I194: 442629.69 | J194: 716510.08 | K194: 451620.98 | L194: - | M194: - | N194: SM0523D1 | O194: SC Cereal Prod Independența Galați | P194: - | Q194: - | R194: - | S194: - | T194: SM-CF001 | U194: punct suspendat momentan | V194: Cereal Prod | W194: aprilie - septembrie iunie - septembrie 2018 septembrie 2018 | AB194: Brăila | AD194: se urmăresc condiții de debit redus (consumuri mici pe perioada anotimpului cald) constructorul nu a început lucrarea deși s-a predat amplasamentul și există ordin de începere a lucrărilor | BE194: Afectat sau NU? | BF194: - | BG194: - | BH194: Afectat sau NU? | BI194: - | BJ194: - | BK194: Afectat sau NU? | BL194: - | BM194: -
A195: 179 | B195: - | C195: X | D195: Punere în siguranță tronson conductă transport gaze naturale 20” Adjudu Vechi, zonele Braniștea, Schela și Independența (RV64- RV65) | E195: 42682 | F195: Lascăr Catargiu | G195: Galați | H195: 724254.19 | I195: 442629.69 | J195: 716510.08 | K195: 451620.98 | L195: - | M195: - | N195: SM0519D0 | O195: Independența - Petrom | P195: - | Q195: - | R195: - | S195: - | T195: SM-CF001 | U195: OMV Petrom | V195: OMV Petrom | W195: aprilie - septembrie iunie - septembrie 2018 septembrie 2018 | AB195: Brăila | AD195: se urmăresc condiții de debit redus (consumuri mici pe perioada anotimpului cald) constructorul nu a început lucrarea deși s-a predat amplasamentul și există ordin de începere a lucrărilor | BE195: Afectat sau NU? | BF195: - | BG195: - | BH195: Afectat sau NU? | BI195: - | BJ195: - | BK195: Afectat sau NU? | BL195: - | BM195: -
A196: 180 | B196: - | C196: X | D196: Reabilitare conductă 20” Șendreni - Albești | E196: 43279 | F196: Grădiștea | G196: Brăila | H196: 702787.34 | I196: 426837.6 | J196: 677089.85 | K196: 419343.64 | L196: - | M196: - | N196: - | O196: - | P196: - | Q196: - | R196: PM0265 | S196: Balta Albă Gr 22 | T196: PM-PP001 | U196: Nova Power, Cez Vânzare, Distrigaz Vest, Engie România, E-on Energie, Enel, Met România, Premier Energy, OMV Petrom, RWE Supply, WIEE România | V196: Amronco Energy | W196: aprilie - septembrie 2018 | X196: 2018-04-26 | Y196: 10:00:00 | Z196: 2018-04-27 | AA196: 11:00:00 | AB196: Brăila | AC196: Efectuată | AE196: 2018-04-26 | AF196: 10:00:00 | AG196: 2018-04-27 | AH196: 10:50:00 | AK196: 2018-03-26 | AL196: 14:14:00 | AM196: 3362/16.04.2018 | AN196: DA | AO196: SAS a omis transmiterea FM catre BET | BE196: 21 | BF196: 1 | BG196: 1 | BH196: Neinformat | BI196: 0 | BJ196: 11 | BK196: -0.1666666667 | BL196: 12 | BM196: 12
A197: 181 | B197: - | C197: X | D197: Reabilitare conductă 20” Șendreni - Albești | E197: 43180 | F197: Galbenu | G197: Brăila | H197: 673804.03 | I197: 417584.6 | J197: 664130.82 | K197: 407745.49 | L197: - | M197: - | N197: - | O197: - | P197: - | Q197: - | R197: PM0264 | S197: Galbenu | T197: PM-PP001 | U197: Alpha Metal, Nova Power, Cez Vânzare, Complexul Energetic Hunedoara, Engie România, E-on Energie, Electrocentrale București, Enel, E.on Gaz Furnizare, Gaz Est, Met Romînia, Premier Energy, Energy Gas Provider, Romgaz, Tinmar | V197: Romgaz | W197: aprilie - septembrie 2018 | X197: 2018-05-03 | Y197: 10:00:00 | Z197: 2018-05-04 | AA197: 11:00:00 | AB197: Brăila | AC197: Efectuată | AE197: 2018-05-03 | AF197: 09:40:00 | AG197: 2018-05-04 | AH197: 12:40:00 | AI197: 2018-04-26 | AJ197: 15:16:00 | AK197: 2018-04-20 | AL197: 09:40:00 | AM197: 3643/25.04.2018 | AN197: DA | AO197: FM aprobata a ajuns la BET cu 4 zile lucratoare inainte de data intreruperii Constructorul nu a finalizat lucrarea conform minutei semnate | BE197: 8 | BF197: 1 | BG197: 1 | BH197: 4 | BI197: 0 | BJ197: 15 | BK197: 1.666666667 | BL197: 0 | BM197: 16
A198: 181.1 | B198: - | C198: X | D198: Reabilitare conductă 20” Șendreni - Albești | E198: 43180 | F198: Galbenu | G198: Brăila | H198: 673804.03 | I198: 417584.6 | J198: 664130.82 | K198: 407745.49 | L198: - | M198: - | N198: - | O198: - | P198: - | Q198: - | R198: PM0299 | S198: Galbenu II | T198: PM-PP001 | U198: Alpha Metal, Nova Power, Cez Vânzare, Complexul Energetic Hunedoara, Engie România, E-on Energie, Electrocentrale București, Enel, E.on Gaz Furnizare, Gaz Est, Met Romînia, Premier Energy, Energy Gas Provider, Romgaz, Tinmar | V198: Romgaz | W198: aprilie - septembrie 2018 | X198: 2018-05-03 | Y198: 10:00:00 | Z198: 2018-05-04 | AA198: 11:00:00 | AB198: Brăila | AC198: Efectuată | AD198: Panou de măsură nou pus în funcție PIF : 02.03.2018 | AE198: 2018-05-03 | AF198: 09:40:00 | AG198: 2018-05-04 | AH198: 12:40:00 | AI198: 2018-04-26 | AJ198: 15:16:00 | AK198: 2018-04-20 | AL198: 09:40:00 | AM198: 3643/25.04.2018 | AN198: DA | AO198: FM aprobata a ajuns la BET cu 4 zile lucratoare inainte de data intreruperii Constructorul nu a finalizat lucrarea conform minutei semnate | BE198: 8 | BF198: 1 | BG198: 1 | BH198: 4 | BI198: 0 | BJ198: 15 | BK198: 1.666666667 | BL198: 0 | BM198: 16
A199: =A197+1 -> 182 | B199: - | C199: X | D199: Reabilitare conductă 20” Șendreni - Albești | E199: 46830 | F199: Ghergheasa | G199: Buzău | H199: 673804.03 | I199: 417584.6 | J199: 664130.82 | K199: 407745.49 | L199: - | M199: - | N199: SM0181D0 | O199: Ghergheasa | P199: - | Q199: - | R199: - | S199: - | T199: SM-SD001 | U199: Cez Vânzare, Cis Gaz, Engie România, E-on Energie, Enel, Gaz Est, Met România, Premier Energy, OMV Petrom, Restart Energy, RWE Supply, Tinmar | V199: Distrigaz Sud Rețele | W199: aprilie - septembrie 2018 septembrie 2018 | AB199: Brăila | AD199: constructorul nu a început lucrarea deși s-a predat amplasamentul și există ordin de începere a lucrărilor | BE199: Afectat sau NU? | BF199: - | BG199: - | BH199: Afectat sau NU? | BI199: - | BJ199: - | BK199: Afectat sau NU? | BL199: - | BM199: -
A200: 183 | B200: - | C200: X | D200: Reabilitare conductă 20” Șendreni - Albești | E200: 48771 | F200: Poșta Câlnău | G200: Buzău | H200: 673804.03 | I200: 417584.6 | J200: 664130.82 | K200: 407745.49 | L200: SM1136D0 | M200: Poşta Câlnău | N200: - | O200: - | P200: - | Q200: - | R200: - | S200: - | T200: SM-SD001 | U200: C-Gaz&Energy | V200: Distrigaz Sud Rețele | W200: aprilie - septembrie 2018 | AB200: Brăila | AC200: Efectuată (NU a mai fost necesară întreruperea) | AM200: 3643/25.04.2018 | AN200: NU | BE200: Nu a fost afectat producator/consumator | BF200: - | BG200: - | BH200: Nu a fost afectat producator/consumator | BI200: - | BJ200: - | BK200: Nu a fost afectat producator/consumator | BL200: - | BM200: -
... 171 more rows
